Workbook

Sheet Start Here
A1: Welcome to V2Connect!
B9: To use this workbook
B10: 1. Open a Project in 2.11 and run an "V2Connect" report (under Miscellaneous category) for All Cases for your selected Partner
B11: 2. Once it is finished running and you see the output that says "V2Connect is Ready Please Refresh the Spreadsheet" minimize or close 2.11 and don't run any more reports.
B12: 3. Now hit the green refresh button on this sheet and it will load data from the that economic run in PHDwin 2.11 (macros must be enabled for this sheet).
B13: 4. Refer to the sheet named "Bottom Line" to get an analysis of this project for totals and QC work or check the tabs to see raw data. Please note warnings below
B15: WARNINGS!
B16: 1. This sheet is only intended for the output of data after PHDwin report runs are laid down in Microsoft Access by the program. You are not editing the live dataset and any changes here will not be reflected in the program.
B17: 2. This sheet is not intended for multi-partner reporting. If you wish to get a similar One Liner output run the "Excel One Liner" report in PHDwin in Multi-scenario mode.
B18: 3. This workbook is not intended for the comparing of PHDwin V3 files to V2 and will not be supported for that purpose. For example the output here is the wrong type of decline (nominal) compared to what V2 wants (tangent effective) because V3 stores data differently
B19: 4. Microsoft Access is required for full functionality. Sometimes it can take a while for all the queires to refresh. If you cannot enable macros the "Refresh All" button on the data ribbon in Excel performs same function of macro and green refresh button
B20: 5. This workbook expects the PHDWinOut.mdb to be in the default location of C:\Program Files (x86)\PHDWin 2.11\Reports and if the your report file is elsewhere you must define that new location by right clicking on any of the Queries, clicking "Edit," change the "Data Source Setting," then "Close and Load" and save the sheet.

Sheet Bottom Line
A1: ='ConnectOneLiner'!D96 -> TxWells
B3: Volumes | G3: Maximum Asset Information
B4: Total Gross Oil | C4: =SUM('ConnectOneLiner'!X:X) -> 42.87451998 | D4: ='ConnectOneLiner'!AE96 -> Mbbl | G4: ="Max Net Revenue "&D12 -> Max Net Revenue M$ | H4: =MAX('ConnectOneLiner'!AN:AN) -> 19038.64338 | I4: =INDEX('ConnectOneLiner'!A:A,MATCH(MAX('ConnectOneLiner'!AN:AN),'ConnectOneLiner'!AN:AN,0)) -> OSCAR LU 1-18-19WH
B5: Total Gross Gas | C5: =SUM('ConnectOneLiner'!Y:Y) -> 102973.3541 | D5: ='ConnectOneLiner'!AF96 -> MMcf | G5: ="Max Net Expenses "&D12 -> Max Net Expenses M$ | H5: =MAX('ConnectOneLiner'!AU:AU) -> 8369.86065 | I5: =INDEX('ConnectOneLiner'!A:A,MATCH(MAX('ConnectOneLiner'!AU:AU),'ConnectOneLiner'!AU:AU,0)) -> OSCAR LU 1-18-19WH
B6: Total Gross NGL | C6: =SUM('ConnectOneLiner'!Z:Z) -> 0 | D6: ='ConnectOneLiner'!AG96 -> bbl | G6: Max Gradient | H6: =MAX('ConnectOneLiner'!Q:Q) -> 0 | I6: =INDEX('ConnectOneLiner'!A:A,MATCH(MAX('ConnectOneLiner'!Q:Q),'ConnectOneLiner'!Q:Q,0)) -> KLIMEK 10-2H
B7: Total Net Oil | C7: =SUM('ConnectOneLiner'!AB:AB) -> 32.15588999 | D7: ='ConnectOneLiner'!AE96 -> Mbbl | G7: Max B Factor | H7: =MAX(Projections!M:M) -> 1 | I7: =INDEX(Projections!C:C,MATCH(MAX(Projections!M:M),Projections!M:M,0)) -> FIELDS 19-1HX
B8: Total Net Gas | C8: =SUM('ConnectOneLiner'!AC:AC) -> 77230.01556 | D8: ='ConnectOneLiner'!AF96 -> MMcf | G8: Last ECL After Date | H8: =MAX('ConnectOneLiner'!BH:BH) -> 00:00:00 | I8: =INDEX('ConnectOneLiner'!A:A,MATCH(MAX('ConnectOneLiner'!BH:BH),'ConnectOneLiner'!BH:BH,0)) -> 
B9: Total Net NGL | C9: =SUM('ConnectOneLiner'!AD:AD) -> 0 | D9: ='ConnectOneLiner'!AG96 -> bbl | G9: ="Max Oil Price "&D31 ->  | H9: =MAX('ConnectOneLiner'!AH:AH) -> 85.05 | I9: =INDEX('ConnectOneLiner'!A:A,MATCH(MAX('ConnectOneLiner'!AH:AH),'ConnectOneLiner'!AH:AH,0)) -> CARVER 1-8-5WH
G10: ="Max Gas Price "&D32 ->  | H10: =MAX('ConnectOneLiner'!AI:AI) -> 5.729 | I10: =INDEX('ConnectOneLiner'!A:A,MATCH(MAX('ConnectOneLiner'!AI:AI),'ConnectOneLiner'!AI:AI,0)) -> SCRANTON 1-19-31WH
B11: Revenue and Expenses | G11: Max NGL Price | H11: =MAX('ConnectOneLiner'!AJ:AJ) -> 0 | I11: =INDEX('ConnectOneLiner'!A:A,MATCH(MAX('ConnectOneLiner'!AJ:AJ),'ConnectOneLiner'!AJ:AJ,0)) -> KLIMEK 10-2H
B12: Total Net Revenue | C12: =SUM('ConnectOneLiner'!AN:AN) -> 368985.2122 | D12: ='ConnectOneLiner'!BF96 -> M$ | G12: Highest Oil Differential % | H12: =MAX(#REF!) ->  | I12: =INDEX(#REF!,MATCH(MAX(#REF!),#REF!,0)) -> 
B13: Total Net Expenses | C13: =SUM('ConnectOneLiner'!AU:AU) -> 202490.7692 | D13: ='ConnectOneLiner'!BF96 -> M$ | G13: ="Highest Oil Differential "&D28 ->  | H13: =MAX(#REF!) ->  | I13: =INDEX(#REF!,MATCH(MAX(#REF!),#REF!,0)) -> 
B14: Total Net Cashflow | C14: =SUM('ConnectOneLiner'!BC:BC) -> 135564.9422 | D14: ='ConnectOneLiner'!BF96 -> M$ | G14: Highest Gas Differential % | H14: =MAX(#REF!) ->  | I14: =INDEX(#REF!,MATCH(MAX(#REF!),#REF!,0)) -> 
B15: Total Primary Discount Cashflow | C15: =SUM('ConnectOneLiner'!BD:BD) -> 92881.27847 | D15: ='ConnectOneLiner'!BF96 -> M$ | G15: ="Highest Gas Differential "&D30 ->  | H15: =MAX(#REF!) ->  | I15: =INDEX(#REF!,MATCH(MAX(#REF!),#REF!,0)) -> 
B16: Total Oil Revenue | C16: =SUM('ConnectOneLiner'!AK:AK) -> 2140.940285 | D16: ='ConnectOneLiner'!BF96 -> M$ | G16: ="Max Net Investments by Case "&D12 -> Max Net Investments by Case M$ | H16: =MAX('ConnectOneLiner'!BA:BA) -> 50 | I16: =INDEX('ConnectOneLiner'!A:A,MATCH(MAX('ConnectOneLiner'!BA:BA),'ConnectOneLiner'!BA:BA,0)) -> KLIMEK 10-2H
B17: Total Gas Revenue | C17: =SUM('ConnectOneLiner'!AL:AL) -> 366844.272 | D17: ='ConnectOneLiner'!BF96 -> M$ | G17: Max Shrinkage Value | H17: =MAX('ConnectOneLiner'!AA:AA) -> 0 | I17: =INDEX('ConnectOneLiner'!A:A,MATCH(MAX('ConnectOneLiner'!AA:AA),'ConnectOneLiner'!AA:AA,0)) -> KLIMEK 10-2H
B18: Total NGL Revenue | C18: =SUM('ConnectOneLiner'!AM:AM) -> 0 | D18: ='ConnectOneLiner'!BF96 -> M$ | G18: Max Case Multipler | H18: =MAX('ConnectOneLiner'!BV:BV) -> 0 | I18: =INDEX('ConnectOneLiner'!A:A,MATCH(MAX('ConnectOneLiner'!BV:BV),'ConnectOneLiner'!BV:BV,0)) -> KLIMEK 10-2H
B19: Total Fixed and Well Costs | C19: =(SUM('ConnectOneLiner'!AS:AS)+SUM('ConnectOneLiner'!AT:AT)) -> 86517.12232 | D19: ='ConnectOneLiner'!BF96 -> M$ | G19: Max Volume Multiplier | H19: =MAX('ConnectOneLiner'!BW:BW) -> 1 | I19: =INDEX('ConnectOneLiner'!A:A,MATCH(MAX('ConnectOneLiner'!BW:BW),'ConnectOneLiner'!BW:BW,0)) -> KLIMEK 10-2H
B20: Total Variable Costs | C20: =SUM('ConnectOneLiner'!AR:AR) -> 115973.6469 | D20: ='ConnectOneLiner'!BF96 -> M$ | G20: Max BTU Factor | H20: =MAX(#REF!) ->  | I20: =INDEX(#REF!,MATCH(MAX(#REF!),#REF!,0)) -> 
B21: Total State Taxes | C21: =SUM('ConnectOneLiner'!AW:AW) -> 26179.50081 | D21: ='ConnectOneLiner'!BF96 -> M$
B22: Total Local Taxes | C22: =SUM('ConnectOneLiner'!AV:AV) -> 0 | D22: ='ConnectOneLiner'!BF96 -> M$
B23: Total Abandonment | C23: =SUM('ConnectOneLiner'!AZ:AZ) -> 4750 | D23: ='ConnectOneLiner'!BF96 -> M$
B24: Total Net Investments | C24: =SUM('ConnectOneLiner'!BA:BA) -> 4750 | D24: ='ConnectOneLiner'!BF96 -> M$
B26: Average Asset Information
B27: Average Oil Differential % | C27: =AVERAGE(#REF!) -> 
B28: Average Oil Differential | C28: =AVERAGE(#REF!) ->  | D28: =#REF! -> 
B29: Average Gas Differential % | C29: =AVERAGE(#REF!) -> 
B30: Average Gas Differential | C30: =AVERAGE(#REF!) ->  | D30: =#REF! -> 
B31: Average Oil Price | C31: =AVERAGE('ConnectOneLiner'!AH:AH) -> 53.72829474 | D31: =#REF! -> 
B32: Average Gas Price | C32: =AVERAGE('ConnectOneLiner'!AI:AI) -> 4.509347368 | D32: =#REF! -> 
B33: Average BTU Factor | C33: =AVERAGE(#REF!) -> 
B34: Average Single Case Net Investment M$ | C34: =AVERAGE('ConnectOneLiner'!BA:BA) -> 50 | D34: ='ConnectOneLiner'!BF96 -> M$
B35: Average Case Life | C35: =AVERAGE('ConnectOneLiner'!BG:BG) -> 12.03504449 | D35: Years
B36: Average B Factor | C36: =AVERAGE(Projections!M:M) -> 0.3431441845
B37: Average Shrinkage Value | C37: =AVERAGE('ConnectOneLiner'!AA:AA) -> 0
B39: V2Connect Version 211

Sheet ConnectOneLiner
A1: CaseName | B1: UniqueId | C1: Archive | D1: Project | E1: Partner | F1: ReserveClass | G1: ReserveCategory | H1: Field | I1: Reservoir | J1: County | K1: State | L1: OperatorName | M1: PHDWinID | N1: API_Code | O1: Latitude | P1: Longitude | Q1: Gradient | R1: TotalDepth | S1: Location | T1: LowerPerf | U1: UpperPerf | V1: CaseType | W1: MajorPhase | X1: GrossOil | Y1: GrossGas | Z1: GrossNGL | AA1: Shrinkage | AB1: NetOil | AC1: NetGas | AD1: NetNGL | AE1: OilUnits | AF1: GasUnits | AG1: NGLUnits | AH1: OilPrice | AI1: GasPrice | AJ1: NGLPrice | AK1: CoNetRevOil | AL1: CoNetRevGas | AM1: CoNetRevNGL | AN1: AllNetRevenue | AO1: OpCost | AP1: TransCost | AQ1: OtherCost | AR1: VariableExpense | AS1: WellCost | AT1: FixedCost | AU1: AllNetExpense | AV1: NetLocalTax | AW1: NetProdTax | AX1: NetTanInv | AY1: NetInTanInv | AZ1: NetAbandon | BA1: NetInv | BB1: NetProfit | BC1: NDCash | BD1: DiscCash | BE1: DiscFactor | BF1: RevenueUnits | BG1: CaseLife | BH1: ECLAfterDate | BI1: ECLAfterLink | BJ1: AsofDate | BK1: ECLDate | BL1: FirstReversionDate | BM1: SecondReversionDate | BN1: ROI | BO1: DiscROI | BP1: DiscPayout | BQ1: Is_Eco | BR1: InitRIOil | BS1: InitRIGas | BT1: FirstOfWellCnt | BU1: LastOfWellCnt | BV1: CaseMultiplier | BW1: VolumeMultiplier | BX1: IDCaseName | BY1: IDPHDWinID | BZ1: API Formatted | CA1: API Number | CB1: Field Code | CC1: Operator Code | CD1: PhdWin ID | CE1: Retrieval Code | CF1: RRC Dist Code | CG1: Unique ID
A2: KLIMEK 10-2H | B2: A61BE2A680924536797500002 | C2: default | D2: TxWells | E2: All Cases | F2: Proved | G2: Producing | H2: TIGER FLATS SOUTHEAST | I2: MISSISSIPPIAN | J2: OKMULGEE | K2: OK | L2: CALYX ENERGY III LLC | M2: 2 | N2: 35111274820000 | O2: 35.52209 | P2: -96.01984 | Q2: 0 | R2: 7313 | S2: N 12.0/E 12.0/SEC 10.0 SW SE SE | T2: 6905 | U2: 3015 | V2: Standard Case | W2: Gas | X2: 0 | Y2: 0 | Z2: 0 | AA2: 0 | AB2: 0 | AC2: 0 | AD2: 0 | AE2: Mbbl | AF2: MMcf | AG2: bbl | AH2: 0 | AI2: 0 | AJ2: 0 | AK2: 0 | AL2: 0 | AM2: 0 | AN2: 0 | AO2: 0 | AP2: 0 | AQ2: 0 | AR2: 0 | AS2: 0 | AT2: 0 | AU2: 0 | AV2: 0 | AW2: 0 | AX2: 0 | AY2: 50 | AZ2: 50 | BA2: 50 | BB2: 0 | BC2: -50 | BD2: -50 | BE2: 10 | BF2: M$ | BG2: 0 | BI2: Seg1 | BJ2: 2022-10-01 | BK2: 2022-10-01 | BN2: 0 | BO2: 0 | BP2: 0 | BQ2: False | BR2: 0.75 | BS2: 0.75 | BT2: 0 | BU2: 0 | BV2: 0 | BW2: 1 | BX2: KLIMEK 10-2H | BY2: 2 | BZ2: 35-111-27482-0000 | CA2: 35111274820000 | CB2: 049783 | CC2: 269133 | CD2: 00002 | CE2: 23500112157 | CG2: A61BE2A680924536797500002
A3: CHEATWOOD 15-1HX | B3: A61BE2A680924536797800003 | C3: default | D3: TxWells | E3: All Cases | F3: Proved | G3: Producing | H3: BEARDEN EAST | I3: MISSISSIPPIAN | J3: OKFUSKEE | K3: OK | L3: CALYX ENERGY III LLC | M3: 3 | N3: 35107235710100 | O3: 35.33589 | P3: -96.35194 | Q3: 0 | R3: 10146 | S3: N 10.0/E 9.0/SEC 15.0 NW SW SW | T3: 0 | U3: 0 | V3: Standard Case | W3: Gas | X3: 0 | Y3: 327.6429223 | Z3: 0 | AA3: 0 | AB3: 0 | AC3: 245.7321917 | AD3: 0 | AE3: Mbbl | AF3: MMcf | AG3: bbl | AH3: 0 | AI3: 4.626 | AJ3: 0 | AK3: 0 | AL3: 1136.705292 | AM3: 0 | AN3: 1136.705292 | AO3: 0 | AP3: 368.5982876 | AQ3: 0 | AR3: 368.5982876 | AS3: 229.3214107 | AT3: 110.8593511 | AU3: 708.7790494 | AV3: 0 | AW3: 80.64924046 | AX3: 0 | AY3: 50 | AZ3: 50 | BA3: 50 | BB3: 0 | BC3: 297.277002 | BD3: 270.9059655 | BE3: 10 | BF3: M$ | BG3: 4.498288843 | BI3: Seg1 | BJ3: 2022-10-01 | BK3: 2027-03-31 | BN3: 6.945540041 | BO3: 9.477715874 | BP3: 0.1861738535 | BQ3: True | BR3: 0.75 | BS3: 0.75 | BT3: 1 | BU3: 1 | BV3: 0 | BW3: 1 | BX3: CHEATWOOD 15-1HX | BY3: 3 | BZ3: 35-107-23571-0100 | CA3: 35107235710100 | CB3: 003136 | CC3: 269133 | CD3: 00003 | CE3: 23500112494 | CG3: A61BE2A680924536797800003
A4: FIELDS 19-1HX | B4: A61BE2A680924536798100004 | C4: default | D4: TxWells | E4: All Cases | F4: Proved | G4: Producing | H4: GREASY CREEK | I4: MISSISSIPPIAN | J4: HUGHES | K4: OK | L4: CALYX ENERGY III LLC | M4: 4 | N4: 35063245930000 | O4: 35.23092 | P4: -96.19069 | Q4: 0 | R4: 12258 | S4: N 9.0/E 11.0/SEC 30.0 SWNENWNW | T4: 12149 | U4: 3835 | V4: Standard Case | W4: Gas | X4: 0.2417304447 | Y4: 898.5765847 | Z4: 0 | AA4: 0 | AB4: 0.1812978335 | AC4: 673.9324385 | AD4: 0 | AE4: Mbbl | AF4: MMcf | AG4: bbl | AH4: 63.897 | AI4: 4.709 | AJ4: 0 | AK4: 11.58442214 | AL4: 3173.818822 | AM4: 0 | AN4: 3185.403244 | AO4: 0.725191334 | AP4: 1010.898658 | AQ4: 0 | AR4: 1011.623849 | AS4: 804.8632769 | AT4: 389.0897948 | AU4: 2205.576921 | AV4: 0 | AW4: 226.0043602 | AX4: 0 | AY4: 50 | AZ4: 50 | BA4: 50 | BB4: 0 | BC4: 703.8219632 | BD4: 542.8636435 | BE4: 10 | BF4: M$ | BG4: 15.77823409 | BI4: Seg1 | BJ4: 2022-10-01 | BK4: 2038-07-11 | BN4: 15.07643926 | BO4: 53.23997241 | BP4: 0.04654346338 | BQ4: True | BR4: 0.75 | BS4: 0.75 | BT4: 1 | BU4: 1 | BV4: 0 | BW4: 1 | BX4: FIELDS 19-1HX | BY4: 4 | BZ4: 35-063-24593-0000 | CA4: 35063245930000 | CB4: 020345 | CC4: 269133 | CD4: 00004 | CE4: 23500112800 | CG4: A61BE2A680924536798100004
A5: MEADORS 25-1H | B5: A61BE2A680924536798300005 | C5: default | D5: TxWells | E5: All Cases | F5: Proved | G5: Producing | H5: GREASY CREEK | I5: MISSISSIPPIAN | J5: HUGHES | K5: OK | L5: CALYX ENERGY III LLC | M5: 5 | N5: 35063246190000 | O5: 35.21591 | P5: -96.20507 | Q5: 0 | R5: 8759 | S5: N 9.0/E 10.0/SEC 36.0 SENWNENW | T5: 0 | U5: 0 | V5: Standard Case | W5: Gas | X5: 0.01545562184 | Y5: 17.54546554 | Z5: 0 | AA5: 0 | AB5: 0.01159171638 | AC5: 13.15909915 | AD5: 0 | AE5: Mbbl | AF5: MMcf | AG5: bbl | AH5: 83.893 | AI5: 5.291 | AJ5: 0 | AK5: 0.9724615356 | AL5: 69.62857978 | AM5: 0 | AN5: 70.60104131 | AO5: 0.04636686551 | AP5: 19.73864873 | AQ5: 0 | AR5: 19.78501559 | AS5: 25.17741068 | AT5: 12.17135113 | AU5: 57.1337774 | AV5: 0 | AW5: 5.009143881 | AX5: 0 | AY5: 50 | AZ5: 50 | BA5: 50 | BB5: 0 | BC5: -41.54187997 | BD5: -39.32931536 | BE5: 10 | BF5: M$ | BG5: 0.4982888433 | BI5: Seg1 | BJ5: 2022-10-01 | BK5: 2023-03-31 | BN5: 0.1691624007 | BO5: 0.1736220695 | BP5: 0 | BQ5: True | BR5: 0.75 | BS5: 0.75 | BT5: 1 | BU5: 1 | BV5: 0 | BW5: 1 | BX5: MEADORS 25-1H | BY5: 5 | BZ5: 35-063-24619-0000 | CA5: 35063246190000 | CB5: 020345 | CC5: 269133 | CD5: 00005 | CE5: 23500112876 | CG5: A61BE2A680924536798300005
A6: MEADORS 25-2H | B6: A61BE2A680924536798600006 | C6: default | D6: TxWells | E6: All Cases | F6: Proved | G6: Producing | H6: GREASY CREEK | I6: MISSISSIPPIAN | J6: HUGHES | K6: OK | L6: CALYX ENERGY III LLC | M6: 6 | N6: 35063246210000 | O6: 35.21587 | P6: -96.20521 | Q6: 0 | R6: 8862 | S6: N 9.0/E 10.0/SEC 36.0 SENWNENW | T6: 0 | U6: 0 | V6: Standard Case | W6: Gas | X6: 0.1616655521 | Y6: 252.2323439 | Z6: 0 | AA6: 0 | AB6: 0.1212491641 | AC6: 189.1742579 | AD6: 0 | AE6: Mbbl | AF6: MMcf | AG6: bbl | AH6: 72.896 | AI6: 4.601 | AJ6: 0 | AK6: 8.838542969 | AL6: 870.4197138 | AM6: 0 | AN6: 879.2582568 | AO6: 0.4849966562 | AP6: 283.7613868 | AQ6: 0 | AR6: 284.2463835 | AS6: 229.3214107 | AT6: 110.8593511 | AU6: 624.4271453 | AV6: 0 | AW6: 62.38337332 | AX6: 0 | AY6: 50 | AZ6: 50 | BA6: 50 | BB6: 0 | BC6: 142.4477382 | BD6: 135.1756555 | BE6: 10 | BF6: M$ | BG6: 4.498288843 | BI6: Seg1 | BJ6: 2022-10-01 | BK6: 2027-03-31 | BN6: 3.848954764 | BO6: 5.230179276 | BP6: 0.3148528405 | BQ6: True | BR6: 0.75 | BS6: 0.75 | BT6: 1 | BU6: 1 | BV6: 0 | BW6: 1 | BX6: MEADORS 25-2H | BY6: 6 | BZ6: 35-063-24621-0000 | CA6: 35063246210000 | CB6: 020345 | CC6: 269133 | CD6: 00006 | CE6: 23500112877 | CG6: A61BE2A680924536798600006
A7: MEADORS 36-1HX | B7: A61BE2A680924536799100007 | C7: default | D7: TxWells | E7: All Cases | F7: Proved | G7: Producing | H7: GREASY CREEK | I7: MISSISSIPPIAN | J7: HUGHES | K7: OK | L7: CALYX ENERGY III LLC | M7: 7 | N7: 35063246200000 | O7: 35.21591 | P7: -96.20502 | Q7: 0 | R7: 11818 | S7: N 9.0/E 10.0/SEC 36.0 SENWNENW | T7: 11716 | U7: 3920 | V7: Standard Case | W7: Gas | X7: 0.04792975153 | Y7: 21.44950181 | Z7: 0 | AA7: 0 | AB7: 0.03594731365 | AC7: 16.08712636 | AD7: 0 | AE7: Mbbl | AF7: MMcf | AG7: bbl | AH7: 83.904 | AI7: 5.281 | AJ7: 0 | AK7: 3.016121871 | AL7: 84.96171911 | AM7: 0 | AN7: 87.97784098 | AO7: 0.1437892546 | AP7: 24.13068954 | AQ7: 0 | AR7: 24.27447879 | AS7: 25.17741068 | AT7: 12.17135113 | AU7: 61.6232406 | AV7: 0 | AW7: 6.242027818 | AX7: 0 | AY7: 50 | AZ7: 50 | BA7: 50 | BB7: 0 | BC7: -29.88742743 | BD7: -27.91017647 | BE7: 10 | BF7: M$ | BG7: 0.4982888433 | BI7: Seg1 | BJ7: 2022-10-01 | BK7: 2023-03-31 | BN7: 0.4022514513 | BO7: 0.4135582158 | BP7: 0 | BQ7: True | BR7: 0.75 | BS7: 0.75 | BT7: 1 | BU7: 1 | BV7: 0 | BW7: 1 | BX7: MEADORS 36-1HX | BY7: 7 | BZ7: 35-063-24620-0000 | CA7: 35063246200000 | CB7: 020345 | CC7: 269133 | CD7: 00007 | CE7: 23500112909 | CG7: A61BE2A680924536799100007
A8: WASHINGTON 2-19-18CH | B8: A61BE2A680924536799500008 | C8: default | D8: TxWells | E8: All Cases | F8: Proved | G8: Producing | H8: DUSTIN SOUTH | I8: MISSISSIPPIAN | J8: HUGHES | K8: OK | L8: CALYX ENERGY III LLC | M8: 8 | N8: 35063246520000 | O8: 35.23226 | P8: -96.07606 | Q8: 0 | R8: 12330 | S8: N 9.0/E 12.0/SEC 19.0 SWSESWSE | T8: 0 | U8: 0 | V8: Standard Case | W8: Gas | X8: 0.2140623972 | Y8: 219.2814609 | Z8: 0 | AA8: 0 | AB8: 0.1605467979 | AC8: 164.4610957 | AD8: 0 | AE8: Mbbl | AF8: MMcf | AG8: bbl | AH8: 67.166 | AI8: 4.696 | AJ8: 0 | AK8: 10.78333894 | AL8: 772.3068113 | AM8: 0 | AN8: 783.0901503 | AO8: 0.6421871917 | AP8: 246.6916435 | AQ8: 0 | AR8: 247.3338307 | AS8: 178.2854107 | AT8: 86.18735113 | AU8: 511.8065925 | AV8: 0 | AW8: 55.56024616 | AX8: 0 | AY8: 50 | AZ8: 50 | BA8: 50 | BB8: 0 | BC8: 165.7233116 | BD8: 159.1117696 | BE8: 10 | BF8: M$ | BG8: 3.498973306 | BI8: Seg1 | BJ8: 2022-10-01 | BK8: 2026-03-31 | BN8: 4.314466232 | BO8: 5.507572349 | BP8: 0.2491444216 | BQ8: True | BR8: 0.75 | BS8: 0.75 | BT8: 1 | BU8: 1 | BV8: 0 | BW8: 1 | BX8: WASHINGTON 2-19-18CH | BY8: 8 | BZ8: 35-063-24652-0000 | CA8: 35063246520000 | CB8: 014393 | CC8: 269133 | CD8: 00008 | CE8: 23500113057 | CG8: A61BE2A680924536799500008
A9: WASHINGTON 1-19-18WH | B9: A61BE2A680924536799900009 | C9: default | D9: TxWells | E9: All Cases | F9: Proved | G9: Producing | H9: DUSTIN SOUTH | I9: WOODFORD | J9: HUGHES | K9: OK | L9: CALYX ENERGY III LLC | M9: 9 | N9: 35063246530000 | O9: 35.23226 | P9: -96.07596 | Q9: 0 | R9: 13100 | S9: N 9.0/E 12.0/SEC 19.0 SWSESWSE | T9: 12959 | U9: 4469 | V9: Standard Case | W9: Gas | X9: 0.0539417258 | Y9: 123.783009 | Z9: 0 | AA9: 0 | AB9: 0.04045629435 | AC9: 92.83725679 | AD9: 0 | AE9: Mbbl | AF9: MMcf | AG9: bbl | AH9: 79.741 | AI9: 4.972 | AJ9: 0 | AK9: 3.226030406 | AL9: 461.6173219 | AM9: 0 | AN9: 464.8433523 | AO9: 0.1618251774 | AP9: 139.2558852 | AQ9: 0 | AR9: 139.4177104 | AS9: 80.40527926 | AT9: 38.86979877 | AU9: 258.6927884 | AV9: 0 | AW9: 32.98063585 | AX9: 0 | AY9: 50 | AZ9: 50 | BA9: 50 | BB9: 0 | BC9: 123.1699281 | BD9: 121.7716077 | BE9: 10 | BF9: M$ | BG9: 1.579739904 | BI9: Seg1 | BJ9: 2022-10-01 | BK9: 2024-04-29 | BN9: 3.463398562 | BO9: 3.84957815 | BP9: 0.2026009582 | BQ9: True | BR9: 0.75 | BS9: 0.75 | BT9: 1 | BU9: 1 | BV9: 0 | BW9: 1 | BX9: WASHINGTON 1-19-18WH | BY9: 9 | BZ9: 35-063-24653-0000 | CA9: 35063246530000 | CB9: 014393 | CC9: 269133 | CD9: 00009 | CE9: 23500113079 | CG9: A61BE2A680924536799900009
A10: ADAMS 2-36-25CH | B10: A61BE2A680924536800400010 | C10: default | D10: TxWells | E10: All Cases | F10: Proved | G10: Producing | H10: CARSON | I10: MISSISSIPPIAN | J10: HUGHES | K10: OK | L10: CALYX ENERGY III LLC | M10: 10 | N10: 35063246930000 | O10: 35.20544 | P10: -96.10412 | Q10: 0 | R10: 13435 | S10: N 9.0/E 11.0/SEC 36.0 SWNWSWSW | T10: 0 | U10: 0 | V10: Standard Case | W10: Gas | X10: 0.02462212288 | Y10: 2189.030102 | Z10: 0 | AA10: 0 | AB10: 0.01846659216 | AC10: 1641.772577 | AD10: 0 | AE10: Mbbl | AF10: MMcf | AG10: bbl | AH10: 82.031 | AI10: 4.733 | AJ10: 0 | AK10: 1.514836367 | AL10: 7770.358147 | AM10: 0 | AN10: 7771.872984 | AO10: 0.07386636865 | AP10: 2462.658865 | AQ10: 0 | AR10: 2462.732731 | AS10: 1053.381924 | AT10: 509.2295407 | AU10: 4025.344196 | AV10: 0 | AW10: 551.4143882 | AX10: 0 | AY10: 50 | AZ10: 50 | BA10: 50 | BB10: 0 | BC10: 3145.114399 | BD10: 1980.868366 | BE10: 10 | BF10: M$ | BG10: 20.64613279 | BI10: Seg1 | BJ10: 2022-10-01 | BK10: 2043-05-24 | BN10: 63.90228799 | BO10: 310.5294244 | BP10: 0.01368925394 | BQ10: True | BR10: 0.75 | BS10: 0.75 | BT10: 1 | BU10: 1 | BV10: 0 | BW10: 1 | BX10: ADAMS 2-36-25CH | BY10: 10 | BZ10: 35-063-24693-0000 | CA10: 35063246930000 | CB10: 008500 | CC10: 269133 | CD10: 00010 | CE10: 23500113318 | CG10: A61BE2A680924536800400010
A11: ADAMS 1-36-25WH | B11: A61BE2A680924536802100011 | C11: default | D11: TxWells | E11: All Cases | F11: Proved | G11: Producing | H11: CARSON | I11: WOODFORD | J11: HUGHES | K11: OK | L11: CALYX ENERGY III LLC | M11: 11 | N11: 35063246910000 | O11: 35.20536 | P11: -96.10412 | Q11: 0 | R11: 14080 | S11: N 9.0/E 11.0/SEC 36.0 SWNWSWSW | T11: 0 | U11: 0 | V11: Standard Case | W11: Gas | X11: 0.1323477729 | Y11: 1385.942611 | Z11: 0 | AA11: 0 | AB11: 0.09926082964 | AC11: 1039.456959 | AD11: 0 | AE11: Mbbl | AF11: MMcf | AG11: bbl | AH11: 76.004 | AI11: 4.601 | AJ11: 0 | AK11: 7.544247501 | AL11: 4782.386228 | AM11: 0 | AN11: 4789.930475 | AO11: 0.3970433186 | AP11: 1559.185438 | AQ11: 0 | AR11: 1559.582481 | AS11: 602.6399866 | AT11: 291.3303109 | AU11: 2453.552779 | AV11: 0 | AW11: 339.8455672 | AX11: 0 | AY11: 50 | AZ11: 50 | BA11: 50 | BB11: 0 | BC11: 1946.532129 | BD11: 1516.413163 | BE11: 10 | BF11: M$ | BG11: 11.816564 | BI11: Seg1 | BJ11: 2022-10-01 | BK11: 2034-07-25 | BN11: 39.93064259 | BO11: 99.35343028 | BP11: 0.02737850787 | BQ11: True | BR11: 0.75 | BS11: 0.75 | BT11: 1 | BU11: 1 | BV11: 0 | BW11: 1 | BX11: ADAMS 1-36-25WH | BY11: 11 | BZ11: 35-063-24691-0000 | CA11: 35063246910000 | CB11: 008500 | CC11: 269133 | CD11: 00011 | CE11: 23500113319 | CG11: A61BE2A680924536802100011
A12: ADAMS 1-35-26WH | B12: A61BE2A680924536802700012 | C12: default | D12: TxWells | E12: All Cases | F12: Proved | G12: Producing | H12: CARSON | I12: WOODFORD | J12: HUGHES | K12: OK | L12: CALYX ENERGY III LLC | M12: 12 | N12: 35063246940000 | O12: 35.2054 | P12: -96.10412 | Q12: 0 | R12: 13528 | S12: N 9.0/E 11.0/SEC 36.0 SWNWSWSW | T12: 0 | U12: 0 | V12: Standard Case | W12: Gas | X12: 3.214177933 | Y12: 2619.582735 | Z12: 0 | AA12: 0 | AB12: 2.41063345 | AC12: 1964.687051 | AD12: 0 | AE12: Mbbl | AF12: MMcf | AG12: bbl | AH12: 61.144 | AI12: 4.745 | AJ12: 0 | AK12: 147.3965681 | AL12: 9322.964436 | AM12: 0 | AN12: 9470.361004 | AO12: 9.642533798 | AP12: 2947.030577 | AQ12: 0 | AR12: 2956.673111 | AS12: 1147.969411 | AT12: 554.9553511 | AU12: 4659.597873 | AV12: 0 | AW12: 671.9221132 | AX12: 0 | AY12: 50 | AZ12: 50 | BA12: 50 | BB12: 0 | BC12: 4088.841018 | BD12: 2496.83539 | BE12: 10 | BF12: M$ | BG12: 22.49965777 | BI12: Seg1 | BJ12: 2022-10-01 | BK12: 2045-03-31 | BN12: 82.77682036 | BO12: 470.2456417 | BP12: 0.008213552361 | BQ12: True | BR12: 0.75 | BS12: 0.75 | BT12: 1 | BU12: 1 | BV12: 0 | BW12: 1 | BX12: ADAMS 1-35-26WH | BY12: 12 | BZ12: 35-063-24694-0000 | CA12: 35063246940000 | CB12: 008500 | CC12: 269133 | CD12: 00012 | CE12: 23500113320 | CG12: A61BE2A680924536802700012
A13: JEFFERSON 1-29-32WH | B13: A61BE2A680924536803400013 | C13: default | D13: TxWells | E13: All Cases | F13: Proved | G13: Producing | H13: DUSTIN | I13: WOODFORD | J13: HUGHES | K13: OK | L13: CALYX ENERGY III LLC | M13: 13 | N13: 35063247030000 | O13: 35.23254 | P13: -96.06847 | Q13: 0 | R13: 12229 | S13: N 9.0/E 12.0/SEC 20.0 S2SWSWSW | T13: 0 | U13: 0 | V13: Standard Case | W13: Gas | X13: 0 | Y13: 874.546918 | Z13: 0 | AA13: 0 | AB13: 0 | AC13: 655.9101885 | AD13: 0 | AE13: Mbbl | AF13: MMcf | AG13: bbl | AH13: 0 | AI13: 4.723 | AJ13: 0 | AK13: 0 | AL13: 3097.631459 | AM13: 0 | AN13: 3097.631459 | AO13: 0 | AP13: 983.8652828 | AQ13: 0 | AR13: 983.8652828 | AS13: 829.6093871 | AT13: 401.0526452 | AU13: 2214.527315 | AV13: 0 | AW13: 219.776952 | AX13: 0 | AY13: 50 | AZ13: 50 | BA13: 50 | BB13: 0 | BC13: 613.3271917 | BD13: 466.7625944 | BE13: 10 | BF13: M$ | BG13: 16.25735797 | BI13: Seg1 | BJ13: 2022-10-01 | BK13: 2039-01-02 | BN13: 13.26654383 | BO13: 48.11184269 | BP13: 0.05201916496 | BQ13: True | BR13: 0.75 | BS13: 0.75 | BT13: 1 | BU13: 1 | BV13: 0 | BW13: 1 | BX13: JEFFERSON 1-29-32WH | BY13: 13 | BZ13: 35-063-24703-0000 | CA13: 35063247030000 | CB13: 014390 | CC13: 269133 | CD13: 00013 | CE13: 23500113321 | CG13: A61BE2A680924536803400013
A14: JEFFERSON 1-20-17WH | B14: A61BE2A680924536803700014 | C14: default | D14: TxWells | E14: All Cases | F14: Proved | G14: Producing | H14: DUSTIN | I14: WOODFORD | J14: HUGHES | K14: OK | L14: CALYX ENERGY III LLC | M14: 14 | N14: 35063247010000 | O14: 35.23254 | P14: -96.06857 | Q14: 0 | R14: 14105 | S14: N 9.0/E 12.0/SEC 20.0 SWSWSWSW | T14: 0 | U14: 0 | V14: Standard Case | W14: Gas | X14: 0.04621121123 | Y14: 2971.734211 | Z14: 0 | AA14: 0 | AB14: 0.03465840843 | AC14: 2228.800659 | AD14: 0 | AE14: Mbbl | AF14: MMcf | AG14: bbl | AH14: 80.398 | AI14: 4.906 | AJ14: 0 | AK14: 2.78645063 | AL14: 10934.63361 | AM14: 0 | AN14: 10937.42007 | AO14: 0.1386336337 | AP14: 3343.200988 | AQ14: 0 | AR14: 3343.339621 | AS14: 1824.074148 | AT14: 881.8002464 | AU14: 6049.214016 | AV14: 0 | AW14: 776.0099536 | AX14: 0 | AY14: 50 | AZ14: 50 | BA14: 50 | BB14: 0 | BC14: 4062.196096 | BD14: 1990.27305 | BE14: 10 | BF14: M$ | BG14: 35.74811773 | BI14: Seg1 | BJ14: 2022-10-01 | BK14: 2058-06-30 | BN14: 82.24392192 | BO14: 1400.304244 | BP14: 0.002737850787 | BQ14: True | BR14: 0.75 | BS14: 0.75 | BT14: 1 | BU14: 1 | BV14: 0 | BW14: 1 | BX14: JEFFERSON 1-20-17WH | BY14: 14 | BZ14: 35-063-24701-0000 | CA14: 35063247010000 | CB14: 014390 | CC14: 269133 | CD14: 00014 | CE14: 23500113322 | CG14: A61BE2A680924536803700014
A15: JEFFERSON 2-20-17CH | B15: A61BE2A680924536804000015 | C15: default | D15: TxWells | E15: All Cases | F15: Proved | G15: Producing | H15: DUSTIN | I15: MISSISSIPPIAN | J15: HUGHES | K15: OK | L15: CALYX ENERGY III LLC | M15: 15 | N15: 35063247020000 | O15: 35.23254 | P15: -96.06852 | Q15: 0 | R15: 13760 | S15: N 9.0/E 12.0/SEC 20.0 SWSWSWSW | T15: 0 | U15: 0 | V15: Standard Case | W15: Gas | X15: 0 | Y15: 930.772221 | Z15: 0 | AA15: 0 | AB15: 0 | AC15: 698.0791658 | AD15: 0 | AE15: Mbbl | AF15: MMcf | AG15: bbl | AH15: 0 | AI15: 4.706 | AJ15: 0 | AK15: 0 | AL15: 3284.993013 | AM15: 0 | AN15: 3284.993013 | AO15: 0 | AP15: 1047.118749 | AQ15: 0 | AR15: 1047.118749 | AS15: 806.646793 | AT15: 389.9519883 | AU15: 2243.71753 | AV15: 0 | AW15: 233.0702543 | AX15: 0 | AY15: 50 | AZ15: 50 | BA15: 50 | BB15: 0 | BC15: 758.2052286 | BD15: 577.0678076 | BE15: 10 | BF15: M$ | BG15: 15.81382615 | BI15: Seg1 | BJ15: 2022-10-01 | BK15: 2038-07-24 | BN15: 16.16410457 | BO15: 56.7286301 | BP15: 0.04380561259 | BQ15: True | BR15: 0.75 | BS15: 0.75 | BT15: 1 | BU15: 1 | BV15: 0 | BW15: 1 | BX15: JEFFERSON 2-20-17CH | BY15: 15 | BZ15: 35-063-24702-0000 | CA15: 35063247020000 | CB15: 014390 | CC15: 269133 | CD15: 00015 | CE15: 23500113323 | CG15: A61BE2A680924536804000015
A16: GRANT 2-2-35WH | B16: A61BE2A680924536804400016 | C16: default | D16: TxWells | E16: All Cases | F16: Proved | G16: Producing | H16: CARSON | I16: WOODFORD | J16: HUGHES | K16: OK | L16: CALYX ENERGY III LLC | M16: 16 | N16: 35063247270000 | O16: 35.1911 | P16: -96.01311 | Q16: 0 | R16: 14154 | S16: N 8.0/E 12.0/SEC 2.0 SW | T16: 0 | U16: 0 | V16: Standard Case | W16: Gas | X16: 0 | Y16: 884.2333825 | Z16: 0 | AA16: 0 | AB16: 0 | AC16: 663.1750369 | AD16: 0 | AE16: Mbbl | AF16: MMcf | AG16: bbl | AH16: 0 | AI16: 4.679 | AJ16: 0 | AK16: 0 | AL16: 3102.956559 | AM16: 0 | AN16: 3102.956559 | AO16: 0 | AP16: 994.7625554 | AQ16: 0 | AR16: 994.7625554 | AS16: 745.3824083 | AT16: 360.3353472 | AU16: 2100.480311 | AV16: 0 | AW16: 220.1547679 | AX16: 0 | AY16: 50 | AZ16: 50 | BA16: 50 | BB16: 0 | BC16: 732.3214804 | BD16: 575.6958924 | BE16: 10 | BF16: M$ | BG16: 14.61190965 | BI16: Seg1 | BJ16: 2022-10-01 | BK16: 2037-05-11 | BN16: 15.64642961 | BO16: 50.32446394 | BP16: 0.04928131417 | BQ16: True | BR16: 0.75 | BS16: 0.75 | BT16: 1 | BU16: 1 | BV16: 0 | BW16: 1 | BX16: GRANT 2-2-35WH | BY16: 16 | BZ16: 35-063-24727-0000 | CA16: 35063247270000 | CB16: 008500 | CC16: 269133 | CD16: 00016 | CE16: 23500113384 | CG16: A61BE2A680924536804400016
A17: GRANT 1-2-35WH | B17: A61BE2A680924536804700017 | C17: default | D17: TxWells | E17: All Cases | F17: Proved | G17: Producing | H17: CARSON | I17: WOODFORD | J17: HUGHES | K17: OK | L17: CALYX ENERGY III LLC | M17: 17 | N17: 35063247260000 | O17: 35.19105 | P17: -96.01312 | Q17: 0 | R17: 13936 | S17: N 8.0/E 12.0/SEC 2.0 SW | T17: 0 | U17: 0 | V17: Standard Case | W17: Gas | X17: 0 | Y17: 0 | Z17: 0 | AA17: 0 | AB17: 0 | AC17: 0 | AD17: 0 | AE17: Mbbl | AF17: MMcf | AG17: bbl | AH17: 0 | AI17: 0 | AJ17: 0 | AK17: 0 | AL17: 0 | AM17: 0 | AN17: 0 | AO17: 0 | AP17: 0 | AQ17: 0 | AR17: 0 | AS17: 0 | AT17: 0 | AU17: 0 | AV17: 0 | AW17: 0 | AX17: 0 | AY17: 50 | AZ17: 50 | BA17: 50 | BB17: 0 | BC17: -50 | BD17: -50 | BE17: 10 | BF17: M$ | BG17: 0 | BI17: Seg1 | BJ17: 2022-10-01 | BK17: 2022-10-01 | BN17: 0 | BO17: 0 | BP17: 0 | BQ17: False | BR17: 0.75 | BS17: 0.75 | BT17: 0 | BU17: 0 | BV17: 0 | BW17: 1 | BX17: GRANT 1-2-35WH | BY17: 17 | BZ17: 35-063-24726-0000 | CA17: 35063247260000 | CB17: 008500 | CC17: 269133 | CD17: 00017 | CE17: 23500113406 | CG17: A61BE2A680924536804700017
A18: CARVER 1-8-5WH | B18: A61BE2A680924536805100018 | C18: default | D18: TxWells | E18: All Cases | F18: Proved | G18: Producing | H18: DUSTIN | I18: MISSISSIPPIAN | J18: HUGHES | K18: OK | L18: CALYX ENERGY III LLC | M18: 18 | N18: 35063247450000 | O18: 35.26029 | P18: -96.05131 | Q18: 0 | R18: 14454 | S18: N 9.0/E 12.0/SEC 16.0 NWNWNWNW | T18: 0 | U18: 0 | V18: Standard Case | W18: Gas | X18: 0.001736268398 | Y18: 0.6749947043 | Z18: 0 | AA18: 0 | AB18: 0.001302201298 | AC18: 0.5062460282 | AD18: 0 | AE18: Mbbl | AF18: MMcf | AG18: bbl | AH18: 85.05 | AI18: 4.959 | AJ18: 0 | AK18: 0.1107522204 | AL18: 2.510474054 | AM18: 0 | AN18: 2.621226274 | AO18: 0.005208805193 | AP18: 0.7593690424 | AQ18: 0 | AR18: 0.7645778476 | AS18: 1.097548387 | AT18: 0.5305806452 | AU18: 2.39270688 | AV18: 0 | AW18: 0.1859760042 | AX18: 0 | AY18: 50 | AZ18: 50 | BA18: 50 | BB18: 0 | BC18: -49.95745661 | BD18: -49.86216628 | BE18: 10 | BF18: M$ | BG18: 0.0219028063 | BI18: Seg1 | BJ18: 2022-10-01 | BK18: 2022-10-08 | BN18: 0.0008508678099 | BO18: 0.0008515640635 | BP18: 0 | BQ18: True | BR18: 0.75 | BS18: 0.75 | BT18: 1 | BU18: 1 | BV18: 0 | BW18: 1 | BX18: CARVER 1-8-5WH | BY18: 18 | BZ18: 35-063-24745-0000 | CA18: 35063247450000 | CB18: 014390 | CC18: 269133 | CD18: 00018 | CE18: 23500113418 | CG18: A61BE2A680924536805100018
A19: CARVER 1-9-4WH | B19: A61BE2A680924536805400019 | C19: default | D19: TxWells | E19: All Cases | F19: Proved | G19: Producing | H19: DUSTIN | I19: WOODFORD | J19: HUGHES | K19: OK | L19: CALYX ENERGY III LLC | M19: 19 | N19: 35063247470000 | O19: 35.26062 | P19: -96.05094 | Q19: 0 | R19: 14421 | S19: N 9.0/E 12.0/SEC 16.0 NWNWNWNW | T19: 0 | U19: 0 | V19: Standard Case | W19: Gas | X19: 0.829541308 | Y19: 1428.093438 | Z19: 0 | AA19: 0 | AB19: 0.622155981 | AC19: 1071.070078 | AD19: 0 | AE19: Mbbl | AF19: MMcf | AG19: bbl | AH19: 62.752 | AI19: 3.736 | AJ19: 0 | AK19: 39.0416669 | AL19: 4001.740178 | AM19: 0 | AN19: 4040.781844 | AO19: 2.488623924 | AP19: 1606.605117 | AQ19: 0 | AR19: 1609.093741 | AS19: 892.7919461 | AT19: 431.5965768 | AU19: 2933.482264 | AV19: 0 | AW19: 286.6934719 | AX19: 0 | AY19: 50 | AZ19: 50 | BA19: 50 | BB19: 0 | BC19: 770.6061085 | BD19: 518.4754838 | BE19: 10 | BF19: M$ | BG19: 17.49760438 | BI19: Seg1 | BJ19: 2022-10-01 | BK19: 2040-03-30 | BN19: 16.41212217 | BO19: 60.21098661 | BP19: 0.05201916496 | BQ19: True | BR19: 0.75 | BS19: 0.75 | BT19: 1 | BU19: 1 | BV19: 0 | BW19: 1 | BX19: CARVER 1-9-4WH | BY19: 19 | BZ19: 35-063-24747-0000 | CA19: 35063247470000 | CB19: 014390 | CC19: 269133 | CD19: 00019 | CE19: 23500113419 | CG19: A61BE2A680924536805400019
A20: CARVER 1-16-21WH | B20: A61BE2A680924536805700020 | C20: default | D20: TxWells | E20: All Cases | F20: Proved | G20: Producing | H20: DUSTIN | I20: WOODFORD | J20: HUGHES | K20: OK | L20: CALYX ENERGY III LLC | M20: 20 | N20: 35063247460000 | O20: 35.2607 | P20: -96.05094 | Q20: 0 | R20: 13880 | S20: N 9.0/E 12.0/SEC 16.0 NWNWNWNW | T20: 0 | U20: 0 | V20: Standard Case | W20: Gas | X20: 0.5342653976 | Y20: 1001.455386 | Z20: 0 | AA20: 0 | AB20: 0.4006990482 | AC20: 751.0915394 | AD20: 0 | AE20: Mbbl | AF20: MMcf | AG20: bbl | AH20: 64.988 | AI20: 4.668 | AJ20: 0 | AK20: 26.04080428 | AL20: 3506.026193 | AM20: 0 | AN20: 3532.066997 | AO20: 1.602796193 | AP20: 1126.637309 | AQ20: 0 | AR20: 1128.240105 | AS20: 740.6595133 | AT20: 358.0521889 | AU20: 2226.951808 | AV20: 0 | AW20: 250.6001534 | AX20: 0 | AY20: 50 | AZ20: 50 | BA20: 50 | BB20: 0 | BC20: 1004.515036 | BD20: 775.3815604 | BE20: 10 | BF20: M$ | BG20: 14.51882272 | BI20: Seg1 | BJ20: 2022-10-01 | BK20: 2037-04-07 | BN20: 21.09030072 | BO20: 66.82013212 | BP20: 0.03832991102 | BQ20: True | BR20: 0.75 | BS20: 0.75 | BT20: 1 | BU20: 1 | BV20: 0 | BW20: 1 | BX20: CARVER 1-16-21WH | BY20: 20 | BZ20: 35-063-24746-0000 | CA20: 35063247460000 | CB20: 014390 | CC20: 269133 | CD20: 00020 | CE20: 23500113420 | CG20: A61BE2A680924536805700020
A21: BARGER 1-26-23CH | B21: A61BE2A680924536806000021 | C21: default | D21: TxWells | E21: All Cases | F21: Proved | G21: Producing | H21: GREASY CREEK | I21: MISSISSIPPIAN | J21: HUGHES | K21: OK | L21: CALYX ENERGY III LLC | M21: 21 | N21: 35063246770000 | O21: 35.21667 | P21: -96.22672 | Q21: 0 | R21: 14111 | S21: N 9.0/E 10.0/SEC 35.0 NENWNWNW | T21: 0 | U21: 0 | V21: Standard Case | W21: Gas | X21: 0.03771407585 | Y21: 858.1805622 | Z21: 0 | AA21: 0 | AB21: 0.02828555689 | AC21: 643.6354217 | AD21: 0 | AE21: Mbbl | AF21: MMcf | AG21: bbl | AH21: 80.633 | AI21: 4.712 | AJ21: 0 | AK21: 2.280751568 | AL21: 3032.867233 | AM21: 0 | AN21: 3035.147985 | AO21: 0.1131422276 | AP21: 965.4531325 | AQ21: 0 | AR21: 965.5662747 | AS21: 805.137664 | AT21: 389.22244 | AU21: 2159.926379 | AV21: 0 | AW21: 215.3437495 | AX21: 0 | AY21: 50 | AZ21: 50 | BA21: 50 | BB21: 0 | BC21: 609.8778568 | BD21: 471.5254506 | BE21: 10 | BF21: M$ | BG21: 15.78370979 | BI21: Seg1 | BJ21: 2022-10-01 | BK21: 2038-07-13 | BN21: 13.19755714 | BO21: 46.39982113 | BP21: 0.05201916496 | BQ21: True | BR21: 0.75 | BS21: 0.75 | BT21: 1 | BU21: 1 | BV21: 0 | BW21: 1 | BX21: BARGER 1-26-23CH | BY21: 21 | BZ21: 35-063-24677-0000 | CA21: 35063246770000 | CB21: 020345 | CC21: 269133 | CD21: 00021 | CE21: 23500113471 | CG21: A61BE2A680924536806000021
A22: BARGER EAST 1-35-2CH | B22: A61BE2A680924536806500022 | C22: default | D22: TxWells | E22: All Cases | F22: Proved | G22: Producing | H22: GREASY CREEK | I22: MISSISSIPPIAN | J22: HUGHES | K22: OK | L22: CALYX ENERGY III LLC | M22: 22 | N22: 35063247550000 | O22: 35.21668 | P22: -96.22682 | Q22: 0 | R22: 13511 | S22: N 9.0/E 10.0/SEC 35.0 NENWNWNW | T22: 0 | U22: 0 | V22: Standard Case | W22: Gas | X22: 0 | Y22: 1327.144471 | Z22: 0 | AA22: 0 | AB22: 0 | AC22: 995.358353 | AD22: 0 | AE22: Mbbl | AF22: MMcf | AG22: bbl | AH22: 0 | AI22: 4.783 | AJ22: 0 | AK22: 0 | AL22: 4760.911334 | AM22: 0 | AN22: 4760.911334 | AO22: 0 | AP22: 1493.03753 | AQ22: 0 | AR22: 1493.03753 | AS22: 1070.533372 | AT22: 517.5209528 | AU22: 3081.091854 | AV22: 0 | AW22: 337.7866592 | AX22: 0 | AY22: 50 | AZ22: 50 | BA22: 50 | BB22: 0 | BC22: 1292.032821 | BD22: 862.680291 | BE22: 10 | BF22: M$ | BG22: 20.98562628 | BI22: Seg1 | BJ22: 2022-10-01 | BK22: 2043-09-25 | BN22: 26.84065642 | BO22: 140.4373502 | BP22: 0.0219028063 | BQ22: True | BR22: 0.75 | BS22: 0.75 | BT22: 1 | BU22: 1 | BV22: 0 | BW22: 1 | BX22: BARGER EAST 1-35-2CH | BY22: 22 | BZ22: 35-063-24755-0000 | CA22: 35063247550000 | CB22: 020345 | CC22: 269133 | CD22: 00022 | CE22: 23500113472 | CG22: A61BE2A680924536806500022
A23: MADISON 1-23-14WH | B23: A61BE2A680924536806800023 | C23: default | D23: TxWells | E23: All Cases | F23: Proved | G23: Producing | H23: DUSTIN WEST | I23: WOODFORD | J23: HUGHES | K23: OK | L23: CALYX ENERGY III LLC | M23: 23 | N23: 35063247620000 | O23: 35.23387 | P23: -96.10579 | Q23: 0 | R23: 13726 | S23: N 9.0/E 11.0/SEC 23.0 SENESESE | T23: 0 | U23: 0 | V23: Standard Case | W23: Gas | X23: 0.00159326756 | Y23: 1628.475611 | Z23: 0 | AA23: 0 | AB23: 0.00119495067 | AC23: 1221.356708 | AD23: 0 | AE23: Mbbl | AF23: MMcf | AG23: bbl | AH23: 85.05 | AI23: 4.826 | AJ23: 0 | AK23: 0.1016305545 | AL23: 5894.108901 | AM23: 0 | AN23: 5894.210532 | AO23: 0.004779802679 | AP23: 1832.035062 | AQ23: 0 | AR23: 1832.039842 | AS23: 1275.924791 | AT23: 616.8119844 | AU23: 3724.776617 | AV23: 0 | AW23: 418.1942372 | AX23: 0 | AY23: 50 | AZ23: 50 | BA23: 50 | BB23: 0 | BC23: 1701.239678 | BD23: 1078.736841 | BE23: 10 | BF23: M$ | BG23: 25.01026694 | BI23: Seg1 | BJ23: 2022-10-01 | BK23: 2047-10-04 | BN23: 35.02479355 | BO23: 261.320528 | BP23: 0.01368925394 | BQ23: True | BR23: 0.75 | BS23: 0.75 | BT23: 1 | BU23: 1 | BV23: 0 | BW23: 1 | BX23: MADISON 1-23-14WH | BY23: 23 | BZ23: 35-063-24762-0000 | CA23: 35063247620000 | CB23: 014395 | CC23: 269133 | CD23: 00023 | CE23: 23500113575 | CG23: A61BE2A680924536806800023
A24: MADISON 1-24-13WH | B24: A61BE2A680924536807100024 | C24: default | D24: TxWells | E24: All Cases | F24: Proved | G24: Producing | H24: DUSTIN WEST | I24: WOODFORD | J24: HUGHES | K24: OK | L24: CALYX ENERGY III LLC | M24: 24 | N24: 35063247730000 | O24: 35.234 | P24: -96.10578 | Q24: 0 | R24: 13779 | S24: N 9.0/E 11.0/SEC 23.0 SENESESE | T24: 0 | U24: 0 | V24: Standard Case | W24: Gas | X24: 0.03539732927 | Y24: 123.8807266 | Z24: 0 | AA24: 0 | AB24: 0.02654799695 | AC24: 92.91054494 | AD24: 0 | AE24: Mbbl | AF24: MMcf | AG24: bbl | AH24: 77.791 | AI24: 4.863 | AJ24: 0 | AK24: 2.065198824 | AL24: 451.8389684 | AM24: 0 | AN24: 453.9041672 | AO24: 0.1061919878 | AP24: 139.3658174 | AQ24: 0 | AR24: 139.4720094 | AS24: 96.39832841 | AT24: 46.60121402 | AU24: 282.4715518 | AV24: 0 | AW24: 32.20450066 | AX24: 0 | AY24: 50 | AZ24: 50 | BA24: 50 | BB24: 0 | BC24: 89.2281147 | BD24: 89.87015339 | BE24: 10 | BF24: M$ | BG24: 1.897330595 | BI24: Seg1 | BJ24: 2022-10-01 | BK24: 2024-08-23 | BN24: 2.784562294 | BO24: 3.17062925 | BP24: 0.2765229295 | BQ24: True | BR24: 0.75 | BS24: 0.75 | BT24: 1 | BU24: 1 | BV24: 0 | BW24: 1 | BX24: MADISON 1-24-13WH | BY24: 24 | BZ24: 35-063-24773-0000 | CA24: 35063247730000 | CB24: 014395 | CC24: 269133 | CD24: 00024 | CE24: 23500113576 | CG24: A61BE2A680924536807100024
A25: MADISON 2-23-14CH | B25: A61BE2A680924536807300025 | C25: default | D25: TxWells | E25: All Cases | F25: Proved | G25: Producing | H25: DUSTIN WEST | I25: MISSISSIPPIAN | J25: HUGHES | K25: OK | L25: CALYX ENERGY III LLC | M25: 25 | N25: 35063247710000 | O25: 35.23391 | P25: -96.10579 | Q25: 0 | R25: 13392 | S25: N 9.0/E 11.0/SEC 23.0 SENESESE | T25: 0 | U25: 0 | V25: Standard Case | W25: Gas | X25: 0 | Y25: 2167.655082 | Z25: 0 | AA25: 0 | AB25: 0 | AC25: 1625.741311 | AD25: 0 | AE25: Mbbl | AF25: MMcf | AG25: bbl | AH25: 0 | AI25: 4.693 | AJ25: 0 | AK25: 0 | AL25: 7628.860347 | AM25: 0 | AN25: 7628.860347 | AO25: 0 | AP25: 2438.611967 | AQ25: 0 | AR25: 2438.611967 | AS25: 937.1970185 | AT25: 453.0630308 | AU25: 3828.872016 | AV25: 0 | AW25: 541.2676416 | AX25: 0 | AY25: 50 | AZ25: 50 | BA25: 50 | BB25: 0 | BC25: 3208.720689 | BD25: 2148.250937 | BE25: 10 | BF25: M$ | BG25: 18.36824093 | BI25: Seg1 | BJ25: 2022-10-01 | BK25: 2041-02-11 | BN25: 65.17441378 | BO25: 268.5553687 | BP25: 0.01368925394 | BQ25: True | BR25: 0.75 | BS25: 0.75 | BT25: 1 | BU25: 1 | BV25: 0 | BW25: 1 | BX25: MADISON 2-23-14CH | BY25: 25 | BZ25: 35-063-24771-0000 | CA25: 35063247710000 | CB25: 014395 | CC25: 269133 | CD25: 00025 | CE25: 23500113577 | CG25: A61BE2A680924536807300025
A26: MADISON 2-24-13CH | B26: A61BE2A680924536807600026 | C26: default | D26: TxWells | E26: All Cases | F26: Proved | G26: Producing | H26: DUSTIN WEST | I26: MISSISSIPPIAN | J26: HUGHES | K26: OK | L26: CALYX ENERGY III LLC | M26: 26 | N26: 35063247720000 | O26: 35.23395 | P26: -96.10578 | Q26: 0 | R26: 13414 | S26: N 9.0/E 11.0/SEC 23.0 SENESESE | T26: 0 | U26: 0 | V26: Standard Case | W26: Gas | X26: 0 | Y26: 514.6954106 | Z26: 0 | AA26: 0 | AB26: 0 | AC26: 386.021558 | AD26: 0 | AE26: Mbbl | AF26: MMcf | AG26: bbl | AH26: 0 | AI26: 4.61 | AJ26: 0 | AK26: 0 | AL26: 1779.410973 | AM26: 0 | AN26: 1779.410973 | AO26: 0 | AP26: 579.0323369 | AQ26: 0 | AR26: 579.0323369 | AS26: 280.4971396 | AT26: 135.5988994 | AU26: 995.128376 | AV26: 0 | AW26: 126.2492086 | AX26: 0 | AY26: 50 | AZ26: 50 | BA26: 50 | BB26: 0 | BC26: 608.0333888 | BD26: 538.2102371 | BE26: 10 | BF26: M$ | BG26: 5.500342231 | BI26: Seg1 | BJ26: 2022-10-01 | BK26: 2028-03-31 | BN26: 13.16066778 | BO26: 19.61017865 | BP26: 0.09308692676 | BQ26: True | BR26: 0.75 | BS26: 0.75 | BT26: 1 | BU26: 1 | BV26: 0 | BW26: 1 | BX26: MADISON 2-24-13CH | BY26: 26 | BZ26: 35-063-24772-0000 | CA26: 35063247720000 | CB26: 014395 | CC26: 269133 | CD26: 00026 | CE26: 23500113578 | CG26: A61BE2A680924536807600026
A27: LINCOLN 1-13-12WH | B27: A61BE2A680924536807800027 | C27: default | D27: TxWells | E27: All Cases | F27: Proved | G27: Producing | H27: CARSON | I27: WOODFORD | J27: HUGHES | K27: OK | L27: CALYX ENERGY III LLC | M27: 27 | N27: 35063247680000 | O27: 35.16017 | P27: -96.00223 | Q27: 0 | R27: 14838 | S27: N 8.0/E 12.0/SEC 14.0 SWSESESE | T27: 0 | U27: 0 | V27: Standard Case | W27: Gas | X27: 0 | Y27: 3181.243954 | Z27: 0 | AA27: 0 | AB27: 0 | AC27: 2385.932965 | AD27: 0 | AE27: Mbbl | AF27: MMcf | AG27: bbl | AH27: 0 | AI27: 4.753 | AJ27: 0 | AK27: 0 | AL27: 11339.40525 | AM27: 0 | AN27: 11339.40525 | AO27: 0 | AP27: 3578.899448 | AQ27: 0 | AR27: 3578.899448 | AS27: 1216.855503 | AT27: 588.2565045 | AU27: 5384.011455 | AV27: 0 | AW27: 804.5308028 | AX27: 0 | AY27: 50 | AZ27: 50 | BA27: 50 | BB27: 0 | BC27: 5100.862996 | BD27: 3050.884052 | BE27: 10 | BF27: M$ | BG27: 23.85215606 | BI27: Seg1 | BJ27: 2022-10-01 | BK27: 2046-08-07 | BN27: 103.0172599 | BO27: 657.040879 | BP27: 0.008213552361 | BQ27: True | BR27: 0.75 | BS27: 0.75 | BT27: 1 | BU27: 1 | BV27: 0 | BW27: 1 | BX27: LINCOLN 1-13-12WH | BY27: 27 | BZ27: 35-063-24768-0000 | CA27: 35063247680000 | CB27: 008500 | CC27: 269133 | CD27: 00027 | CE27: 23500113704 | CG27: A61BE2A680924536807800027
A28: LINCOLN 1-14-11WH | B28: A61BE2A680924536809600028 | C28: default | D28: TxWells | E28: All Cases | F28: Proved | G28: Producing | H28: CARSON | I28: WOODFORD | J28: HUGHES | K28: OK | L28: CALYX ENERGY III LLC | M28: 28 | N28: 35063247690000 | O28: 35.16015 | P28: -96.00233 | Q28: 0 | R28: 14870 | S28: N 8.0/E 12.0/SEC 14.0 SWSESESE | T28: 0 | U28: 0 | V28: Standard Case | W28: Gas | X28: 0 | Y28: 373.0934486 | Z28: 0 | AA28: 0 | AB28: 0 | AC28: 279.8200864 | AD28: 0 | AE28: Mbbl | AF28: MMcf | AG28: bbl | AH28: 0 | AI28: 4.572 | AJ28: 0 | AK28: 0 | AL28: 1279.330597 | AM28: 0 | AN28: 1279.330597 | AO28: 0 | AP28: 419.7301296 | AQ28: 0 | AR28: 419.7301296 | AS28: 284.6890082 | AT28: 137.625347 | AU28: 842.0444849 | AV28: 0 | AW28: 90.76850583 | AX28: 0 | AY28: 50 | AZ28: 50 | BA28: 50 | BB28: 0 | BC28: 296.5176059 | BD28: 267.7809167 | BE28: 10 | BF28: M$ | BG28: 5.582477755 | BI28: Seg1 | BJ28: 2022-10-01 | BK28: 2028-04-30 | BN28: 6.930352119 | BO28: 10.33534842 | BP28: 0.1779603012 | BQ28: True | BR28: 0.75 | BS28: 0.75 | BT28: 1 | BU28: 1 | BV28: 0 | BW28: 1 | BX28: LINCOLN 1-14-11WH | BY28: 28 | BZ28: 35-063-24769-0000 | CA28: 35063247690000 | CB28: 008500 | CC28: 269133 | CD28: 00028 | CE28: 23500113709 | CG28: A61BE2A680924536809600028
A29: THUNDER 1-18-6MH | B29: A61BE2A680924536809900029 | C29: default | D29: TxWells | E29: All Cases | F29: Proved | G29: Producing | H29: PAPOOSE | I29: MISSISSIPPIAN | J29: HUGHES | K29: OK | L29: CALYX ENERGY III LLC | M29: 29 | N29: 35063248150000 | O29: 35.2574 | P29: -96.29875 | Q29: 0 | R29: 15281 | S29: N 9.0/E 10.0/SEC 18.0 SWSWNWNW | T29: 0 | U29: 0 | V29: Standard Case | W29: Gas | X29: 0 | Y29: 0 | Z29: 0 | AA29: 0 | AB29: 0 | AC29: 0 | AD29: 0 | AE29: Mbbl | AF29: MMcf | AG29: bbl | AH29: 0 | AI29: 0 | AJ29: 0 | AK29: 0 | AL29: 0 | AM29: 0 | AN29: 0 | AO29: 0 | AP29: 0 | AQ29: 0 | AR29: 0 | AS29: 0 | AT29: 0 | AU29: 0 | AV29: 0 | AW29: 0 | AX29: 0 | AY29: 50 | AZ29: 50 | BA29: 50 | BB29: 0 | BC29: -50 | BD29: -50 | BE29: 10 | BF29: M$ | BG29: 0 | BI29: Seg1 | BJ29: 2022-10-01 | BK29: 2022-10-01 | BN29: 0 | BO29: 0 | BP29: 0 | BQ29: False | BR29: 0.75 | BS29: 0.75 | BT29: 0 | BU29: 0 | BV29: 0 | BW29: 1 | BX29: THUNDER 1-18-6MH | BY29: 29 | BZ29: 35-063-24815-0000 | CA29: 35063248150000 | CB29: 037776 | CC29: 269133 | CD29: 00029 | CE29: 23500113710 | CG29: A61BE2A680924536809900029
A30: LINCOLN 1-23-26WH | B30: A61BE2A680924536810200030 | C30: default | D30: TxWells | E30: All Cases | F30: Proved | G30: Producing | H30: CARSON | I30: WOODFORD | J30: HUGHES | K30: OK | L30: CALYX ENERGY III LLC | M30: 30 | N30: 35063247670000 | O30: 35.16016 | P30: -96.00228 | Q30: 0 | R30: 15477 | S30: N 8.0/E 12.0/SEC 14.0 SWSESESE | T30: 0 | U30: 0 | V30: Standard Case | W30: Gas | X30: 0 | Y30: 2875.455971 | Z30: 0 | AA30: 0 | AB30: 0 | AC30: 2156.591978 | AD30: 0 | AE30: Mbbl | AF30: MMcf | AG30: bbl | AH30: 0 | AI30: 4.821 | AJ30: 0 | AK30: 0 | AL30: 10397.22536 | AM30: 0 | AN30: 10397.22536 | AO30: 0 | AP30: 3234.887967 | AQ30: 0 | AR30: 3234.887967 | AS30: 1414.249129 | AT30: 683.6812156 | AU30: 5332.818312 | AV30: 0 | AW30: 737.6831391 | AX30: 0 | AY30: 50 | AZ30: 50 | BA30: 50 | BB30: 0 | BC30: 4276.723906 | BD30: 2301.80802 | BE30: 10 | BF30: M$ | BG30: 27.71800137 | BI30: Seg1 | BJ30: 2022-10-01 | BK30: 2050-06-19 | BN30: 86.53447811 | BO30: 728.3947145 | BP30: 0.008213552361 | BQ30: True | BR30: 0.75 | BS30: 0.75 | BT30: 1 | BU30: 1 | BV30: 0 | BW30: 1 | BX30: LINCOLN 1-23-26WH | BY30: 30 | BZ30: 35-063-24767-0000 | CA30: 35063247670000 | CB30: 008500 | CC30: 269133 | CD30: 00030 | CE30: 23500113711 | CG30: A61BE2A680924536810200030
A31: LINCOLN 1-24-25WH | B31: A61BE2A680924536810800031 | C31: default | D31: TxWells | E31: All Cases | F31: Proved | G31: Producing | H31: CARSON | I31: WOODFORD | J31: HUGHES | K31: OK | L31: CALYX ENERGY III LLC | M31: 31 | N31: 35063247660000 | O31: 35.16018 | P31: -96.00218 | Q31: 0 | R31: 15354 | S31: N 8.0/E 12.0/SEC 14.0 SWSESESE | T31: 0 | U31: 0 | V31: Standard Case | W31: Gas | X31: 0.2838906325 | Y31: 319.9086768 | Z31: 0 | AA31: 0 | AB31: 0.2129179743 | AC31: 239.9315076 | AD31: 0 | AE31: Mbbl | AF31: MMcf | AG31: bbl | AH31: 75.772 | AI31: 4.756 | AJ31: 0 | AK31: 16.13332178 | AL31: 1141.024104 | AM31: 0 | AN31: 1157.157426 | AO31: 0.8516718974 | AP31: 359.8972614 | AQ31: 0 | AR31: 360.7489333 | AS31: 176.9134752 | AT31: 85.52412532 | AU31: 623.1865338 | AV31: 0 | AW31: 82.10031935 | AX31: 0 | AY31: 50 | AZ31: 50 | BA31: 50 | BB31: 0 | BC31: 401.8705725 | BD31: 378.4270072 | BE31: 10 | BF31: M$ | BG31: 3.471594798 | BI31: Seg1 | BJ31: 2022-10-01 | BK31: 2026-03-21 | BN31: 9.037411451 | BO31: 11.6914945 | BP31: 0.1013004791 | BQ31: True | BR31: 0.75 | BS31: 0.75 | BT31: 1 | BU31: 1 | BV31: 0 | BW31: 1 | BX31: LINCOLN 1-24-25WH | BY31: 31 | BZ31: 35-063-24766-0000 | CA31: 35063247660000 | CB31: 008500 | CC31: 269133 | CD31: 00031 | CE31: 23500113712 | CG31: A61BE2A680924536810800031
A32: THUNDER 1-13-25CH | B32: A61BE2A680924536811300032 | C32: default | D32: TxWells | E32: All Cases | F32: Proved | G32: Producing | H32: GILCREASE DISTRICT EAST | I32: MISSISSIPPIAN | J32: HUGHES | K32: OK | L32: CALYX ENERGY III LLC | M32: 32 | N32: 35063248140000 | O32: 35.25728 | P32: -96.29875 | Q32: 0 | R32: 16149 | S32: N 9.0/E 10.0/SEC 18.0 SWNWSWNW | T32: 0 | U32: 0 | V32: Standard Case | W32: Gas | X32: 0 | Y32: 137.0185708 | Z32: 0 | AA32: 0 | AB32: 0 | AC32: 102.7639281 | AD32: 0 | AE32: Mbbl | AF32: MMcf | AG32: bbl | AH32: 0 | AI32: 4.863 | AJ32: 0 | AK32: 0 | AL32: 499.6990336 | AM32: 0 | AN32: 499.6990336 | AO32: 0 | AP32: 154.1458922 | AQ32: 0 | AR32: 154.1458922 | AS32: 98.19452156 | AT32: 47.46953593 | AU32: 299.8099497 | AV32: 0 | AW32: 35.45364644 | AX32: 0 | AY32: 50 | AZ32: 50 | BA32: 50 | BB32: 0 | BC32: 114.4354375 | BD32: 113.7863634 | BE32: 10 | BF32: M$ | BG32: 1.932922656 | BI32: Seg1 | BJ32: 2022-10-01 | BK32: 2024-09-05 | BN32: 3.28870875 | BO32: 3.758034689 | BP32: 0.2354551677 | BQ32: True | BR32: 0.75 | BS32: 0.75 | BT32: 1 | BU32: 1 | BV32: 0 | BW32: 1 | BX32: THUNDER 1-13-25CH | BY32: 32 | BZ32: 35-063-24814-0000 | CA32: 35063248140000 | CB32: 056766 | CC32: 269133 | CD32: 00032 | CE32: 23500113719 | CG32: A61BE2A680924536811300032
A33: THUNDER 1-18-30CH | B33: A61BE2A680924536811700033 | C33: default | D33: TxWells | E33: All Cases | F33: Proved | G33: Producing | H33: GREASY CREEK | I33: MISSISSIPPIAN | J33: HUGHES | K33: OK | L33: CALYX ENERGY III LLC | M33: 33 | N33: 35063248130000 | O33: 35.25732 | P33: -96.29875 | Q33: 0 | R33: 15570 | S33: N 9.0/E 10.0/SEC 18.0 SWSWNWNW | T33: 0 | U33: 0 | V33: Standard Case | W33: Gas | X33: 0.4477688908 | Y33: 1661.735495 | Z33: 0 | AA33: 0 | AB33: 0.3358266681 | AC33: 1246.301621 | AD33: 0 | AE33: Mbbl | AF33: MMcf | AG33: bbl | AH33: 70.091 | AI33: 4.853 | AJ33: 0 | AK33: 23.53833562 | AL33: 6048.554071 | AM33: 0 | AN33: 6072.092406 | AO33: 1.343306672 | AP33: 1869.452431 | AQ33: 0 | AR33: 1870.795738 | AS33: 1373.675335 | AT33: 664.0668912 | AU33: 3908.537964 | AV33: 0 | AW33: 430.8149562 | AX33: 0 | AY33: 50 | AZ33: 50 | BA33: 50 | BB33: 0 | BC33: 1682.739486 | BD33: 1012.948931 | BE33: 10 | BF33: M$ | BG33: 26.92676249 | BI33: Seg1 | BJ33: 2022-10-01 | BK33: 2049-09-03 | BN33: 34.65478972 | BO33: 296.8475066 | BP33: 0.01095140315 | BQ33: True | BR33: 0.75 | BS33: 0.75 | BT33: 1 | BU33: 1 | BV33: 0 | BW33: 1 | BX33: THUNDER 1-18-30CH | BY33: 33 | BZ33: 35-063-24813-0000 | CA33: 35063248130000 | CB33: 020345 | CC33: 269133 | CD33: 00033 | CE33: 23500113720 | CG33: A61BE2A680924536811700033
A34: TRUMAN 4-19-18CH | B34: A61BE2A680924536812000034 | C34: default | D34: TxWells | E34: All Cases | F34: Proved | G34: Producing | H34: DUSTIN | I34: MISSISSIPPIAN | J34: HUGHES | K34: OK | L34: CALYX ENERGY III LLC | M34: 34 | N34: 35063248430000 | O34: 35.23091 | P34: -96.08194 | Q34: 0 | R34: 14405 | S34: N 9.0/E 12.0/SEC 30.0 NW | T34: 0 | U34: 0 | V34: Standard Case | W34: Gas | X34: 0 | Y34: 1107.914792 | Z34: 0 | AA34: 0 | AB34: 0 | AC34: 830.9360939 | AD34: 0 | AE34: Mbbl | AF34: MMcf | AG34: bbl | AH34: 0 | AI34: 4.589 | AJ34: 0 | AK34: 0 | AL34: 3812.766113 | AM34: 0 | AN34: 3812.766113 | AO34: 0 | AP34: 1246.404141 | AQ34: 0 | AR34: 1246.404141 | AS34: 555.9941801 | AT34: 268.7806335 | AU34: 2071.178955 | AV34: 0 | AW34: 270.5157557 | AX34: 0 | AY34: 50 | AZ34: 50 | BA34: 50 | BB34: 0 | BC34: 1421.071402 | BD34: 1125.451204 | BE34: 10 | BF34: M$ | BG34: 10.90485969 | BI34: Seg1 | BJ34: 2022-10-01 | BK34: 2033-08-26 | BN34: 29.42142805 | BO34: 67.66039584 | BP34: 0.03832991102 | BQ34: True | BR34: 0.75 | BS34: 0.75 | BT34: 1 | BU34: 1 | BV34: 0 | BW34: 1 | BX34: TRUMAN 4-19-18CH | BY34: 34 | BZ34: 35-063-24843-0000 | CA34: 35063248430000 | CB34: 014390 | CC34: 269133 | CD34: 00034 | CE34: 23500113721 | CG34: A61BE2A680924536812000034
A35: TRUMAN 3-19-18CH | B35: A61BE2A680924536813900035 | C35: default | D35: TxWells | E35: All Cases | F35: Proved | G35: Producing | H35: DUSTIN | I35: MISSISSIPPIAN | J35: HUGHES | K35: OK | L35: CALYX ENERGY III LLC | M35: 35 | N35: 35063248420000 | O35: 35.23091 | P35: -96.08204 | Q35: 0 | R35: 14624 | S35: N 9.0/E 12.0/SEC 30.0 NW | T35: 0 | U35: 0 | V35: Standard Case | W35: Gas | X35: 0.004159266437 | Y35: 1476.165895 | Z35: 0 | AA35: 0 | AB35: 0.003119449828 | AC35: 1107.124421 | AD35: 0 | AE35: Mbbl | AF35: MMcf | AG35: bbl | AH35: 85.05 | AI35: 4.631 | AJ35: 0 | AK35: 0.2653092078 | AL35: 5127.470563 | AM35: 0 | AN35: 5127.735872 | AO35: 0.01247779931 | AP35: 1660.686632 | AQ35: 0 | AR35: 1660.69911 | AS35: 710.7662505 | AT35: 343.6010842 | AU35: 2715.066444 | AV35: 0 | AW35: 363.8128601 | AX35: 0 | AY35: 50 | AZ35: 50 | BA35: 50 | BB35: 0 | BC35: 1998.856568 | BD35: 1489.6702 | BE35: 10 | BF35: M$ | BG35: 13.93566051 | BI35: Seg1 | BJ35: 2022-10-01 | BK35: 2036-09-06 | BN35: 40.97713136 | BO35: 120.319642 | BP35: 0.02464065708 | BQ35: True | BR35: 0.75 | BS35: 0.75 | BT35: 1 | BU35: 1 | BV35: 0 | BW35: 1 | BX35: TRUMAN 3-19-18CH | BY35: 35 | BZ35: 35-063-24842-0000 | CA35: 35063248420000 | CB35: 014390 | CC35: 269133 | CD35: 00035 | CE35: 23500113722 | CG35: A61BE2A680924536813900035
A36: THUNDER 1-13-1CH | B36: A61BE2A680924536814400036 | C36: default | D36: TxWells | E36: All Cases | F36: Proved | G36: Producing | H36: PAPOOSE | I36: MISSISSIPPIAN | J36: HUGHES | K36: OK | L36: CALYX ENERGY III LLC | M36: 36 | N36: 35063248170000 | O36: 35.25736 | P36: -96.29875 | Q36: 0 | R36: 15306 | S36: N 9.0/E 10.0/SEC 18.0 SWSWNWNW | T36: 0 | U36: 0 | V36: Standard Case | W36: Gas | X36: 8.841632351 | Y36: 1238.892911 | Z36: 0 | AA36: 0 | AB36: 6.631224263 | AC36: 929.1696832 | AD36: 0 | AE36: Mbbl | AF36: MMcf | AG36: bbl | AH36: 64.435 | AI36: 4.699 | AJ36: 0 | AK36: 427.2859531 | AL36: 4365.848823 | AM36: 0 | AN36: 4793.134776 | AO36: 26.52489705 | AP36: 1393.754525 | AQ36: 0 | AR36: 1420.279422 | AS36: 854.938922 | AT36: 413.2975367 | AU36: 2688.515881 | AV36: 0 | AW36: 340.0729124 | AX36: 0 | AY36: 50 | AZ36: 50 | BA36: 50 | BB36: 0 | BC36: 1714.545983 | BD36: 1251.763986 | BE36: 10 | BF36: M$ | BG36: 16.75838467 | BI36: Seg1 | BJ36: 2022-10-01 | BK36: 2039-07-04 | BN36: 35.29091967 | BO36: 133.8084317 | BP36: 0.0219028063 | BQ36: True | BR36: 0.75 | BS36: 0.75 | BT36: 1 | BU36: 1 | BV36: 0 | BW36: 1 | BX36: THUNDER 1-13-1CH | BY36: 36 | BZ36: 35-063-24817-0000 | CA36: 35063248170000 | CB36: 037776 | CC36: 269133 | CD36: 00036 | CE36: 23500113723 | CG36: A61BE2A680924536814400036
A37: ROOSEVELT 1-5-18WH | B37: A61BE2A680924536814700037 | C37: default | D37: TxWells | E37: All Cases | F37: Proved | G37: Producing | H37: CARSON | I37: WOODFORD | J37: HUGHES | K37: OK | L37: CALYX ENERGY III LLC | M37: 37 | N37: 35063248240000 | O37: 35.19133 | P37: -96.05636 | Q37: 0 | R37: 15378 | S37: N 8.0/E 12.0/SEC 5.0 NENWSESE | T37: 0 | U37: 0 | V37: Standard Case | W37: Gas | X37: 0.3703729564 | Y37: 159.5581356 | Z37: 0 | AA37: 0 | AB37: 0.2777797173 | AC37: 119.6686017 | AD37: 0 | AE37: Mbbl | AF37: MMcf | AG37: bbl | AH37: 76.122 | AI37: 4.811 | AJ37: 0 | AK37: 21.14516233 | AL37: 575.7441947 | AM37: 0 | AN37: 596.889357 | AO37: 1.111118869 | AP37: 179.5029026 | AQ37: 0 | AR37: 180.6140214 | AS37: 127.2494107 | AT37: 61.51535113 | AU37: 369.3787832 | AV37: 0 | AW37: 42.34929988 | AX37: 0 | AY37: 50 | AZ37: 50 | BA37: 50 | BB37: 0 | BC37: 135.1612739 | BD37: 132.1976671 | BE37: 10 | BF37: M$ | BG37: 2.499657769 | BI37: Seg1 | BJ37: 2022-10-01 | BK37: 2025-03-31 | BN37: 3.703225478 | BO37: 4.390348192 | BP37: 0.2436687201 | BQ37: True | BR37: 0.75 | BS37: 0.75 | BT37: 1 | BU37: 1 | BV37: 0 | BW37: 1 | BX37: ROOSEVELT 1-5-18WH | BY37: 37 | BZ37: 35-063-24824-0000 | CA37: 35063248240000 | CB37: 008500 | CC37: 269133 | CD37: 00037 | CE37: 23500113861 | CG37: A61BE2A680924536814700037
A38: ROOSEVELT 2-5-18WH | B38: A61BE2A680924536815000038 | C38: default | D38: TxWells | E38: All Cases | F38: Proved | G38: Producing | H38: CARSON | I38: WOODFORD | J38: HUGHES | K38: OK | L38: CALYX ENERGY III LLC | M38: 38 | N38: 35063248250000 | O38: 35.19133 | P38: -96.05641 | Q38: 0 | R38: 17005 | S38: N 8.0/E 12.0/SEC 5.0 SE | T38: 0 | U38: 0 | V38: Standard Case | W38: Gas | X38: 3.197896073 | Y38: 993.0114203 | Z38: 0 | AA38: 0 | AB38: 2.398422055 | AC38: 744.7585652 | AD38: 0 | AE38: Mbbl | AF38: MMcf | AG38: bbl | AH38: 72.426 | AI38: 4.683 | AJ38: 0 | AK38: 173.7082937 | AL38: 3488.003548 | AM38: 0 | AN38: 3661.711842 | AO38: 9.59368822 | AP38: 1117.137848 | AQ38: 0 | AR38: 1126.731536 | AS38: 756.4339543 | AT38: 365.6779238 | AU38: 2248.843414 | AV38: 0 | AW38: 259.7984552 | AX38: 0 | AY38: 50 | AZ38: 50 | BA38: 50 | BB38: 0 | BC38: 1103.069973 | BD38: 875.6017877 | BE38: 10 | BF38: M$ | BG38: 14.83093771 | BI38: Seg1 | BJ38: 2022-10-01 | BK38: 2037-07-30 | BN38: 23.06139945 | BO38: 77.6741085 | BP38: 0.02737850787 | BQ38: True | BR38: 0.75 | BS38: 0.75 | BT38: 1 | BU38: 1 | BV38: 0 | BW38: 1 | BX38: ROOSEVELT 2-5-18WH | BY38: 38 | BZ38: 35-063-24825-0000 | CA38: 35063248250000 | CB38: 008500 | CC38: 269133 | CD38: 00038 | CE38: 23500113864 | CG38: A61BE2A680924536815000038
A39: ROOSEVELT 3-5-18CH | B39: A61BE2A680924536815200039 | C39: default | D39: TxWells | E39: All Cases | F39: Proved | G39: Producing | H39: CARSON | I39: CANEY | J39: HUGHES | K39: OK | L39: CALYX ENERGY III LLC | M39: 39 | N39: 35063248260000 | O39: 35.19133 | P39: -96.05646 | Q39: 0 | R39: 15992 | S39: N 8.0/E 12.0/SEC 5.0 SE | T39: 0 | U39: 0 | V39: Standard Case | W39: Gas | X39: 0.2191833625 | Y39: 197.2828402 | Z39: 0 | AA39: 0 | AB39: 0.1643875219 | AC39: 147.9621301 | AD39: 0 | AE39: Mbbl | AF39: MMcf | AG39: bbl | AH39: 73.94 | AI39: 4.683 | AJ39: 0 | AK39: 12.15486207 | AL39: 692.9764172 | AM39: 0 | AN39: 705.1312793 | AO39: 0.6575500876 | AP39: 221.9431952 | AQ39: 0 | AR39: 222.6007453 | AS39: 178.2854107 | AT39: 86.18735113 | AU39: 487.0735071 | AV39: 0 | AW39: 50.02906426 | AX39: 0 | AY39: 50 | AZ39: 50 | BA39: 50 | BB39: 0 | BC39: 118.0287079 | BD39: 115.4065415 | BE39: 10 | BF39: M$ | BG39: 3.498973306 | BI39: Seg1 | BJ39: 2022-10-01 | BK39: 2026-03-31 | BN39: 3.360574158 | BO39: 4.269420839 | BP39: 0.3121149897 | BQ39: True | BR39: 0.75 | BS39: 0.75 | BT39: 1 | BU39: 1 | BV39: 0 | BW39: 1 | BX39: ROOSEVELT 3-5-18CH | BY39: 39 | BZ39: 35-063-24826-0000 | CA39: 35063248260000 | CB39: 008500 | CC39: 269133 | CD39: 00039 | CE39: 23500113865 | CG39: A61BE2A680924536815200039
A40: ROOSEVELT 4-5-18CH | B40: A61BE2A680924536815800040 | C40: default | D40: TxWells | E40: All Cases | F40: Proved | G40: Producing | H40: CARSON | I40: CANEY | J40: HUGHES | K40: OK | L40: CALYX ENERGY III LLC | M40: 40 | N40: 35063248480000 | O40: 35.19133 | P40: -96.05651 | Q40: 0 | R40: 15825 | S40: N 8.0/E 12.0/SEC 5.0 SE | T40: 0 | U40: 0 | V40: Standard Case | W40: Gas | X40: 0.00308022474 | Y40: 2497.920382 | Z40: 0 | AA40: 0 | AB40: 0.002310168555 | AC40: 1873.440287 | AD40: 0 | AE40: Mbbl | AF40: MMcf | AG40: bbl | AH40: 85.05 | AI40: 4.724 | AJ40: 0 | AK40: 0.1964798356 | AL40: 8849.698871 | AM40: 0 | AN40: 8849.89535 | AO40: 0.009240674221 | AP40: 2810.16043 | AQ40: 0 | AR40: 2810.169671 | AS40: 1059.76889 | AT40: 512.3171496 | AU40: 4382.25571 | AV40: 0 | AW40: 627.9000751 | AX40: 0 | AY40: 50 | AZ40: 50 | BA40: 50 | BB40: 0 | BC40: 3789.739565 | BD40: 2402.450018 | BE40: 10 | BF40: M$ | BG40: 20.77207392 | BI40: Seg1 | BJ40: 2022-10-01 | BK40: 2043-07-09 | BN40: 76.79479131 | BO40: 381.1435052 | BP40: 0.01095140315 | BQ40: True | BR40: 0.75 | BS40: 0.75 | BT40: 1 | BU40: 1 | BV40: 0 | BW40: 1 | BX40: ROOSEVELT 4-5-18CH | BY40: 40 | BZ40: 35-063-24848-0000 | CA40: 35063248480000 | CB40: 008500 | CC40: 269133 | CD40: 00040 | CE40: 23500113866 | CG40: A61BE2A680924536815800040
A41: SCHRUTE FARMS 1-16-4CH | B41: A61BE2A680924536816100041 | C41: default | D41: TxWells | E41: All Cases | F41: Proved | G41: Producing | H41: VERNON NORTHWEST | I41: MISSISSIPPIAN | J41: MCINTOSH | K41: OK | L41: CALYX ENERGY III LLC | M41: 41 | N41: 35091218110000 | O41: 35.25523 | P41: -95.94487 | Q41: 0 | R41: 16201 | S41: N 9.0/E 13.0/SEC 16.0 NWSWSWNW | T41: 0 | U41: 0 | V41: Standard Case | W41: Gas | X41: 0.05727482238 | Y41: 19.74049583 | Z41: 0 | AA41: 0 | AB41: 0.04295611678 | AC41: 14.80537187 | AD41: 0 | AE41: Mbbl | AF41: MMcf | AG41: bbl | AH41: 83.93 | AI41: 5.29 | AJ41: 0 | AK41: 3.605327727 | AL41: 78.32222286 | AM41: 0 | AN41: 81.92755059 | AO41: 0.1718244671 | AP41: 22.2080578 | AQ41: 0 | AR41: 22.37988227 | AS41: 25.17741068 | AT41: 12.17135113 | AU41: 59.72864408 | AV41: 0 | AW41: 5.812759714 | AX41: 0 | AY41: 50 | AZ41: 50 | BA41: 50 | BB41: 0 | BC41: -33.6138532 | BD41: -31.58835299 | BE41: 10 | BF41: M$ | BG41: 0.4982888433 | BI41: Seg1 | BJ41: 2022-10-01 | BK41: 2023-03-31 | BN41: 0.3277229359 | BO41: 0.3362732727 | BP41: 0 | BQ41: True | BR41: 0.75 | BS41: 0.75 | BT41: 1 | BU41: 1 | BV41: 0 | BW41: 1 | BX41: SCHRUTE FARMS 1-16-4CH | BY41: 41 | BZ41: 35-091-21811-0000 | CA41: 35091218110000 | CB41: 052113 | CC41: 269133 | CD41: 00041 | CE41: 23500113920 | CG41: A61BE2A680924536816100041
A42: SCHRUTE FARMS 1-17-5CH | B42: A61BE2A680924536816700042 | C42: default | D42: TxWells | E42: All Cases | F42: Proved | G42: Producing | H42: VERNON NORTHWEST | I42: MISSISSIPPIAN | J42: MCINTOSH | K42: OK | L42: CALYX ENERGY III LLC | M42: 42 | N42: 35091218120000 | O42: 35.25527 | P42: -95.94487 | Q42: 0 | R42: 16220 | S42: N 9.0/E 13.0/SEC 16.0 NWSWSWNW | T42: 0 | U42: 0 | V42: Standard Case | W42: Gas | X42: 0 | Y42: 882.624967 | Z42: 0 | AA42: 0 | AB42: 0 | AC42: 661.9687252 | AD42: 0 | AE42: Mbbl | AF42: MMcf | AG42: bbl | AH42: 0 | AI42: 4.702 | AJ42: 0 | AK42: 0 | AL42: 3112.453902 | AM42: 0 | AN42: 3112.453902 | AO42: 0 | AP42: 992.9530879 | AQ42: 0 | AR42: 992.9530879 | AS42: 786.4644107 | AT42: 380.1953511 | AU42: 2159.61285 | AV42: 0 | AW42: 220.8286044 | AX42: 0 | AY42: 50 | AZ42: 50 | BA42: 50 | BB42: 0 | BC42: 682.012448 | BD42: 533.7062128 | BE42: 10 | BF42: M$ | BG42: 15.41409993 | BI42: Seg1 | BJ42: 2022-10-01 | BK42: 2038-02-28 | BN42: 14.64024896 | BO42: 50.52971433 | BP42: 0.04654346338 | BQ42: True | BR42: 0.75 | BS42: 0.75 | BT42: 1 | BU42: 1 | BV42: 0 | BW42: 1 | BX42: SCHRUTE FARMS 1-17-5CH | BY42: 42 | BZ42: 35-091-21812-0000 | CA42: 35091218120000 | CB42: 052113 | CC42: 269133 | CD42: 00042 | CE42: 23500113921 | CG42: A61BE2A680924536816700042
A43: SCHRUTE FARMS 1-16-28CH | B43: A61BE2A680924536817000043 | C43: default | D43: TxWells | E43: All Cases | F43: Proved | G43: Producing | H43: VERNON NORTHWEST | I43: MISSISSIPPIAN | J43: MCINTOSH | K43: OK | L43: CALYX ENERGY III LLC | M43: 43 | N43: 35091218100000 | O43: 35.25515 | P43: -95.94487 | Q43: 0 | R43: 16600 | S43: N 9.0/E 13.0/SEC 16.0 NWSWSWNW | T43: 0 | U43: 0 | V43: Standard Case | W43: Gas | X43: 3.152523701 | Y43: 2552.185594 | Z43: 0 | AA43: 0 | AB43: 2.364392776 | AC43: 1914.139195 | AD43: 0 | AE43: Mbbl | AF43: MMcf | AG43: bbl | AH43: 59.926 | AI43: 4.894 | AJ43: 0 | AK43: 141.6895772 | AL43: 9367.117297 | AM43: 0 | AN43: 9508.806874 | AO43: 9.457571104 | AP43: 2871.208793 | AQ43: 0 | AR43: 2880.666364 | AS43: 1838.692726 | AT43: 888.8672102 | AU43: 5608.2263 | AV43: 0 | AW43: 674.6498477 | AX43: 0 | AY43: 50 | AZ43: 50 | BA43: 50 | BB43: 0 | BC43: 3175.930726 | BD43: 1740.54916 | BE43: 10 | BF43: M$ | BG43: 36.03832991 | BI43: Seg1 | BJ43: 2022-10-01 | BK43: 2058-10-14 | BN43: 64.51861453 | BO43: 1260.613517 | BP43: 0.002737850787 | BQ43: True | BR43: 0.75 | BS43: 0.75 | BT43: 1 | BU43: 1 | BV43: 0 | BW43: 1 | BX43: SCHRUTE FARMS 1-16-28CH | BY43: 43 | BZ43: 35-091-21810-0000 | CA43: 35091218100000 | CB43: 052113 | CC43: 269133 | CD43: 00043 | CE43: 23500113922 | CG43: A61BE2A680924536817000043
A44: SCHRUTE FARMS 1-17-29CH | B44: A61BE2A680924536817300044 | C44: default | D44: TxWells | E44: All Cases | F44: Proved | G44: Producing | H44: VERNON NORTHWEST | I44: MISSISSIPPIAN | J44: MCINTOSH | K44: OK | L44: CALYX ENERGY III LLC | M44: 44 | N44: 35091218090000 | O44: 35.25519 | P44: -95.94487 | Q44: 0 | R44: 16600 | S44: N 9.0/E 13.0/SEC 16.0 NWSWSWNW | T44: 0 | U44: 0 | V44: Standard Case | W44: Gas | X44: 1.135830353 | Y44: 521.358299 | Z44: 0 | AA44: 0 | AB44: 0.8518727648 | AC44: 391.0187242 | AD44: 0 | AE44: Mbbl | AF44: MMcf | AG44: bbl | AH44: 67.627 | AI44: 4.571 | AJ44: 0 | AK44: 57.60960987 | AL44: 1787.485893 | AM44: 0 | AN44: 1845.095503 | AO44: 3.407491059 | AP44: 586.5280863 | AQ44: 0 | AR44: 589.9355774 | AS44: 433.4654107 | AT44: 209.5473511 | AU44: 1232.948339 | AV44: 0 | AW44: 130.9095259 | AX44: 0 | AY44: 50 | AZ44: 50 | BA44: 50 | BB44: 0 | BC44: 431.2376378 | BD44: 373.7575256 | BE44: 10 | BF44: M$ | BG44: 8.498288843 | BI44: Seg1 | BJ44: 2022-10-01 | BK44: 2031-03-31 | BN44: 9.624752755 | BO44: 18.42000197 | BP44: 0.1095140315 | BQ44: True | BR44: 0.75 | BS44: 0.75 | BT44: 1 | BU44: 1 | BV44: 0 | BW44: 1 | BX44: SCHRUTE FARMS 1-17-29CH | BY44: 44 | BZ44: 35-091-21809-0000 | CA44: 35091218090000 | CB44: 052113 | CC44: 269133 | CD44: 00044 | CE44: 23500113926 | CG44: A61BE2A680924536817300044
A45: MAVERICK 1-10-3CH | B45: A61BE2A680924536817700045 | C45: default | D45: TxWells | E45: All Cases | F45: Proved | G45: Producing | H45: PAPOOSE | I45: MISSISSIPPIAN | J45: HUGHES | K45: OK | L45: CALYX ENERGY III LLC | M45: 45 | N45: 35063248230000 | O45: 35.26159 | P45: -96.33395 | Q45: 0 | R45: 13617 | S45: N 9.0/E 9.0/SEC 11.0 SWSWSWSW | T45: 0 | U45: 0 | V45: Standard Case | W45: Gas | X45: 0 | Y45: 0 | Z45: 0 | AA45: 0 | AB45: 0 | AC45: 0 | AD45: 0 | AE45: Mbbl | AF45: MMcf | AG45: bbl | AH45: 0 | AI45: 0 | AJ45: 0 | AK45: 0 | AL45: 0 | AM45: 0 | AN45: 0 | AO45: 0 | AP45: 0 | AQ45: 0 | AR45: 0 | AS45: 0 | AT45: 0 | AU45: 0 | AV45: 0 | AW45: 0 | AX45: 0 | AY45: 50 | AZ45: 50 | BA45: 50 | BB45: 0 | BC45: -50 | BD45: -50 | BE45: 10 | BF45: M$ | BG45: 0 | BI45: Seg1 | BJ45: 2022-10-01 | BK45: 2022-10-01 | BN45: 0 | BO45: 0 | BP45: 0 | BQ45: False | BR45: 0.75 | BS45: 0.75 | BT45: 0 | BU45: 0 | BV45: 0 | BW45: 1 | BX45: MAVERICK 1-10-3CH | BY45: 45 | BZ45: 35-063-24823-0000 | CA45: 35063248230000 | CB45: 037776 | CC45: 269133 | CD45: 00045 | CE45: 23500113968 | CG45: A61BE2A680924536817700045
A46: MAVERICK 1-14-23CH | B46: A61BE2A680924536817900046 | C46: default | D46: TxWells | E46: All Cases | F46: Proved | G46: Producing | H46: FUHRMAN | I46: MISSISSIPPIAN | J46: HUGHES | K46: OK | L46: CALYX ENERGY III LLC | M46: 46 | N46: 35063248200000 | O46: 35.26155 | P46: -96.33395 | Q46: 0 | R46: 14150 | S46: N 9.0/E 9.0/SEC 11.0 SWSWSWSW | T46: 0 | U46: 0 | V46: Standard Case | W46: Gas | X46: 0.2021207372 | Y46: 204.5538393 | Z46: 0 | AA46: 0 | AB46: 0.1515905529 | AC46: 153.4153795 | AD46: 0 | AE46: Mbbl | AF46: MMcf | AG46: bbl | AH46: 74.903 | AI46: 4.695 | AJ46: 0 | AK46: 11.35458107 | AL46: 720.2420088 | AM46: 0 | AN46: 731.5965899 | AO46: 0.6063622115 | AP46: 230.1230692 | AQ46: 0 | AR46: 230.7294314 | AS46: 178.2854107 | AT46: 86.18735113 | AU46: 495.2021932 | AV46: 0 | AW46: 51.90677805 | AX46: 0 | AY46: 50 | AZ46: 50 | BA46: 50 | BB46: 0 | BC46: 134.4876186 | BD46: 131.4710907 | BE46: 10 | BF46: M$ | BG46: 3.498973306 | BI46: Seg1 | BJ46: 2022-10-01 | BK46: 2026-03-31 | BN46: 3.689752372 | BO46: 4.724523048 | BP46: 0.2683093771 | BQ46: True | BR46: 0.75 | BS46: 0.75 | BT46: 1 | BU46: 1 | BV46: 0 | BW46: 1 | BX46: MAVERICK 1-14-23CH | BY46: 46 | BZ46: 35-063-24820-0000 | CA46: 35063248200000 | CB46: 018298 | CC46: 269133 | CD46: 00046 | CE46: 23500113969 | CG46: A61BE2A680924536817900046
A47: MAVERICK 1-15-22CH | B47: A61BE2A680924536818100047 | C47: default | D47: TxWells | E47: All Cases | F47: Proved | G47: Producing | H47: FUHRMAN | I47: MISSISSIPPIAN | J47: HUGHES | K47: OK | L47: CALYX ENERGY III LLC | M47: 47 | N47: 35063248220000 | O47: 35.26151 | P47: -96.33395 | Q47: 0 | R47: 14180 | S47: N 9.0/E 9.0/SEC 11.0 SWSWSWSW | T47: 0 | U47: 0 | V47: Standard Case | W47: Gas | X47: 0.0271994562 | Y47: 368.666284 | Z47: 0 | AA47: 0 | AB47: 0.02039959215 | AC47: 276.499713 | AD47: 0 | AE47: Mbbl | AF47: MMcf | AG47: bbl | AH47: 81.031 | AI47: 4.576 | AJ47: 0 | AK47: 1.652991107 | AL47: 1265.339586 | AM47: 0 | AN47: 1266.992577 | AO47: 0.0815983686 | AP47: 414.7495695 | AQ47: 0 | AR47: 414.8311679 | AS47: 281.4752423 | AT47: 136.0717372 | AU47: 832.3781473 | AV47: 0 | AW47: 89.89312334 | AX47: 0 | AY47: 50 | AZ47: 50 | BA47: 50 | BB47: 0 | BC47: 294.7213063 | BD47: 266.4175054 | BE47: 10 | BF47: M$ | BG47: 5.519507187 | BI47: Seg1 | BJ47: 2022-10-01 | BK47: 2028-04-07 | BN47: 6.894426126 | BO47: 10.229756 | BP47: 0.1779603012 | BQ47: True | BR47: 0.75 | BS47: 0.75 | BT47: 1 | BU47: 1 | BV47: 0 | BW47: 1 | BX47: MAVERICK 1-15-22CH | BY47: 47 | BZ47: 35-063-24822-0000 | CA47: 35063248220000 | CB47: 018298 | CC47: 269133 | CD47: 00047 | CE47: 23500113970 | CG47: A61BE2A680924536818100047
A48: MAVERICK 1-11-2CH | B48: A61BE2A680924536818300048 | C48: default | D48: TxWells | E48: All Cases | F48: Proved | G48: Producing | H48: PAPOOSE | I48: MISSISSIPPIAN | J48: HUGHES | K48: OK | L48: CALYX ENERGY III LLC | M48: 48 | N48: 35063248210000 | O48: 35.26163 | P48: -96.33394 | Q48: 0 | R48: 13610 | S48: N 9.0/E 9.0/SEC 11.0 SWSWSWSW | T48: 0 | U48: 0 | V48: Standard Case | W48: Gas | X48: 0.02201363136 | Y48: 31.66430727 | Z48: 0 | AA48: 0 | AB48: 0.01651022352 | AC48: 23.74823046 | AD48: 0 | AE48: Mbbl | AF48: MMcf | AG48: bbl | AH48: 83.283 | AI48: 5.13 | AJ48: 0 | AK48: 1.37501394 | AL48: 121.8319737 | AM48: 0 | AN48: 123.2069877 | AO48: 0.06604089409 | AP48: 35.62234568 | AQ48: 0 | AR48: 35.68838658 | AS48: 32.38753733 | AT48: 15.65689554 | AU48: 83.73281944 | AV48: 0 | AW48: 8.741535775 | AX48: 0 | AY48: 50 | AZ48: 50 | BA48: 50 | BB48: 0 | BC48: -19.26736755 | BD48: -16.90341481 | BE48: 10 | BF48: M$ | BG48: 0.6406570842 | BI48: Seg1 | BJ48: 2022-10-01 | BK48: 2023-05-22 | BN48: 0.614652649 | BO48: 0.6397581808 | BP48: 0 | BQ48: True | BR48: 0.75 | BS48: 0.75 | BT48: 1 | BU48: 1 | BV48: 0 | BW48: 1 | BX48: MAVERICK 1-11-2CH | BY48: 48 | BZ48: 35-063-24821-0000 | CA48: 35063248210000 | CB48: 037776 | CC48: 269133 | CD48: 00048 | CE48: 23500113971 | CG48: A61BE2A680924536818300048
A49: OSCAR LU 1-17-20WH | B49: A61BE2A680924536818600049 | C49: default | D49: TxWells | E49: All Cases | F49: Proved | G49: Producing | H49: SCIPIO NORTHWEST | I49: WOODFORD | J49: MCINTOSH | K49: OK | L49: CALYX ENERGY III LLC | M49: 49 | N49: 35091218010000 | O49: 35.1734 | P49: -95.96435 | Q49: 0 | R49: 14731 | S49: N 8.0/E 13.0/SEC 17.0 NWNWNWNW | T49: 0 | U49: 0 | V49: Standard Case | W49: Gas | X49: 0.1420636799 | Y49: 3514.987379 | Z49: 0 | AA49: 0 | AB49: 0.1065477599 | AC49: 2636.240535 | AD49: 0 | AE49: Mbbl | AF49: MMcf | AG49: bbl | AH49: 74.657 | AI49: 4.757 | AJ49: 0 | AK49: 7.954567049 | AL49: 12539.89446 | AM49: 0 | AN49: 12547.84903 | AO49: 0.4261910396 | AP49: 3954.360802 | AQ49: 0 | AR49: 3954.786993 | AS49: 1261.560316 | AT49: 609.8678604 | AU49: 5826.21517 | AV49: 0 | AW49: 890.2698883 | AX49: 0 | AY49: 50 | AZ49: 50 | BA49: 50 | BB49: 0 | BC49: 5781.363967 | BD49: 3418.615679 | BE49: 10 | BF49: M$ | BG49: 24.72553046 | BI49: Seg1 | BJ49: 2022-10-01 | BK49: 2047-06-22 | BN49: 116.6272793 | BO49: 802.9152598 | BP49: 0.005475701574 | BQ49: True | BR49: 0.75 | BS49: 0.75 | BT49: 1 | BU49: 1 | BV49: 0 | BW49: 1 | BX49: OSCAR LU 1-17-20WH | BY49: 49 | BZ49: 35-091-21801-0000 | CA49: 35091218010000 | CB49: 044414 | CC49: 269133 | CD49: 00049 | CE49: 23500113972 | CG49: A61BE2A680924536818600049
A50: OSCAR LU 1-18-19WH | B50: A61BE2A680924536820200050 | C50: default | D50: TxWells | E50: All Cases | F50: Proved | G50: Producing | H50: SCIPIO NORTHWEST | I50: WOODFORD | J50: MCINTOSH | K50: OK | L50: CALYX ENERGY III LLC | M50: 50 | N50: 35091218020000 | O50: 35.17344 | P50: -95.96435 | Q50: 0 | R50: 14816 | S50: N 8.0/E 13.0/SEC 17.0 NWNWNWNW | T50: 0 | U50: 0 | V50: Standard Case | W50: Gas | X50: 0 | Y50: 5269.94194 | Z50: 0 | AA50: 0 | AB50: 0 | AC50: 3952.456455 | AD50: 0 | AE50: Mbbl | AF50: MMcf | AG50: bbl | AH50: 0 | AI50: 4.817 | AJ50: 0 | AK50: 0 | AL50: 19038.64338 | AM50: 0 | AN50: 19038.64338 | AO50: 0 | AP50: 5928.684682 | AQ50: 0 | AR50: 5928.684682 | AS50: 1645.636613 | AT50: 795.5393548 | AU50: 8369.86065 | AV50: 0 | AW50: 1350.791748 | AX50: 0 | AY50: 50 | AZ50: 50 | BA50: 50 | BB50: 0 | BC50: 9267.990986 | BD50: 4828.074865 | BE50: 10 | BF50: M$ | BG50: 32.24640657 | BI50: Seg1 | BJ50: 2022-10-01 | BK50: 2054-12-29 | BN50: 186.3598197 | BO50: 2396.114383 | BP50: 0.002737850787 | BQ50: True | BR50: 0.75 | BS50: 0.75 | BT50: 1 | BU50: 1 | BV50: 0 | BW50: 1 | BX50: OSCAR LU 1-18-19WH | BY50: 50 | BZ50: 35-091-21802-0000 | CA50: 35091218020000 | CB50: 044414 | CC50: 269133 | CD50: 00050 | CE50: 23500113973 | CG50: A61BE2A680924536820200050
A51: CHEATWOOD 1-16-9CH | B51: A61BE2A680924536821400051 | C51: default | D51: TxWells | E51: All Cases | F51: Proved | G51: Producing | H51: BEARDEN NORTH | I51: MISSISSIPPIAN | J51: OKFUSKEE | K51: OK | L51: CALYX ENERGY III LLC | M51: 51 | N51: 35107236010000 | O51: 35.33651 | P51: -96.35193 | Q51: 0 | R51: 12830 | S51: N 10.0/E 9.0/SEC 15.0 NWNWSWSW | T51: 0 | U51: 0 | V51: Standard Case | W51: Gas | X51: 0 | Y51: 2719.75208 | Z51: 0 | AA51: 0 | AB51: 0 | AC51: 2039.81406 | AD51: 0 | AE51: Mbbl | AF51: MMcf | AG51: bbl | AH51: 0 | AI51: 4.913 | AJ51: 0 | AK51: 0 | AL51: 10021.01403 | AM51: 0 | AN51: 10021.01403 | AO51: 0 | AP51: 3059.72109 | AQ51: 0 | AR51: 3059.72109 | AS51: 1879.363148 | AT51: 908.5282464 | AU51: 5847.612484 | AV51: 0 | AW51: 710.9909451 | AX51: 0 | AY51: 50 | AZ51: 50 | BA51: 50 | BB51: 0 | BC51: 3412.410597 | BD51: 1713.111375 | BE51: 10 | BF51: M$ | BG51: 36.83230664 | BI51: Seg1 | BJ51: 2022-10-01 | BK51: 2059-07-31 | BN51: 69.24821194 | BO51: 1342.762675 | BP51: 0.005475701574 | BQ51: True | BR51: 0.75 | BS51: 0.75 | BT51: 1 | BU51: 1 | BV51: 0 | BW51: 1 | BX51: CHEATWOOD 1-16-9CH | BY51: 51 | BZ51: 35-107-23601-0000 | CA51: 35107236010000 | CB51: 003137 | CC51: 269133 | CD51: 00051 | CE51: 23500113974 | CG51: A61BE2A680924536821400051
A52: CHEATWOOD 1-15-27CH | B52: A61BE2A680924536821600052 | C52: default | D52: TxWells | E52: All Cases | F52: Proved | G52: Producing | H52: PAPOOSE NORTH | I52: MISSISSIPPIAN | J52: OKFUSKEE | K52: OK | L52: CALYX ENERGY III LLC | M52: 52 | N52: 35107236040000 | O52: 35.33643 | P52: -96.35193 | Q52: 0 | R52: 14935 | S52: N 10.0/E 9.0/SEC 15.0 NWNWSWSW | T52: 0 | U52: 0 | V52: Standard Case | W52: Gas | X52: 0 | Y52: 1520.719677 | Z52: 0 | AA52: 0 | AB52: 0 | AC52: 1140.539758 | AD52: 0 | AE52: Mbbl | AF52: MMcf | AG52: bbl | AH52: 0 | AI52: 4.782 | AJ52: 0 | AK52: 0 | AL52: 5453.69429 | AM52: 0 | AN52: 5453.69429 | AO52: 0 | AP52: 1710.809636 | AQ52: 0 | AR52: 1710.809636 | AS52: 1111.904974 | AT52: 537.520956 | AU52: 3360.235566 | AV52: 0 | AW52: 386.9396098 | AX52: 0 | AY52: 50 | AZ52: 50 | BA52: 50 | BB52: 0 | BC52: 1656.519114 | BD52: 1108.263293 | BE52: 10 | BF52: M$ | BG52: 21.79329227 | BI52: Seg1 | BJ52: 2022-10-01 | BK52: 2044-07-16 | BN52: 34.13038228 | BO52: 195.134775 | BP52: 0.01642710472 | BQ52: True | BR52: 0.75 | BS52: 0.75 | BT52: 1 | BU52: 1 | BV52: 0 | BW52: 1 | BX52: CHEATWOOD 1-15-27CH | BY52: 52 | BZ52: 35-107-23604-0000 | CA52: 35107236040000 | CB52: 037779 | CC52: 269133 | CD52: 00052 | CE52: 23500113975 | CG52: A61BE2A680924536821600052
A53: CHEATWOOD 1-16-28CH | B53: A61BE2A680924536821800053 | C53: default | D53: TxWells | E53: All Cases | F53: Proved | G53: Producing | H53: PAPOOSE NORTH | I53: MISSISSIPPIAN | J53: OKFUSKEE | K53: OK | L53: CALYX ENERGY III LLC | M53: 53 | N53: 35107236020000 | O53: 35.33647 | P53: -96.35193 | Q53: 0 | R53: 14871 | S53: N 10.0/E 9.0/SEC 15.0 NWNWSWSW | T53: 0 | U53: 0 | V53: Standard Case | W53: Gas | X53: 1.60193944 | Y53: 743.7138491 | Z53: 0 | AA53: 0 | AB53: 1.20145458 | AC53: 557.7853868 | AD53: 0 | AE53: Mbbl | AF53: MMcf | AG53: bbl | AH53: 62.67 | AI53: 4.672 | AJ53: 0 | AK53: 75.29508905 | AL53: 2605.856561 | AM53: 0 | AN53: 2681.15165 | AO53: 4.80581832 | AP53: 836.6780802 | AQ53: 0 | AR53: 841.4838986 | AS53: 714.6685196 | AT53: 345.4875326 | AU53: 1901.639951 | AV53: 0 | AW53: 190.2277096 | AX53: 0 | AY53: 50 | AZ53: 50 | BA53: 50 | BB53: 0 | BC53: 539.2839895 | BD53: 441.6214304 | BE53: 10 | BF53: M$ | BG53: 14.01232033 | BI53: Seg1 | BJ53: 2022-10-01 | BK53: 2036-10-04 | BN53: 11.78567979 | BO53: 36.64408332 | BP53: 0.06023271732 | BQ53: True | BR53: 0.75 | BS53: 0.75 | BT53: 1 | BU53: 1 | BV53: 0 | BW53: 1 | BX53: CHEATWOOD 1-16-28CH | BY53: 53 | BZ53: 35-107-23602-0000 | CA53: 35107236020000 | CB53: 037779 | CC53: 269133 | CD53: 00053 | CE53: 23500113976 | CG53: A61BE2A680924536821800053
A54: OSCAR LU 2-17-20CH | B54: A61BE2A680924536822000054 | C54: default | D54: TxWells | E54: All Cases | F54: Proved | G54: Producing | H54: SCIPIO NORTHWEST | I54: CANEY | J54: MCINTOSH | K54: OK | L54: CALYX ENERGY III LLC | M54: 54 | N54: 35091218030000 | O54: 35.17348 | P54: -95.96435 | Q54: 0 | R54: 14540 | S54: N 8.0/E 13.0/SEC 17.0 NWNWNWNW | T54: 0 | U54: 0 | V54: Standard Case | W54: Gas | X54: 0.01896813178 | Y54: 23.53560057 | Z54: 0 | AA54: 0 | AB54: 0.01422609883 | AC54: 17.65170043 | AD54: 0 | AE54: Mbbl | AF54: MMcf | AG54: bbl | AH54: 83.581 | AI54: 5.182 | AJ54: 0 | AK54: 1.189034304 | AL54: 91.47637546 | AM54: 0 | AN54: 92.66540977 | AO54: 0.05690439533 | AP54: 26.47755064 | AQ54: 0 | AR54: 26.53445504 | AS54: 29.36927926 | AT54: 14.19779877 | AU54: 70.10153307 | AV54: 0 | AW54: 6.574610823 | AX54: 0 | AY54: 50 | AZ54: 50 | BA54: 50 | BB54: 0 | BC54: -34.01073412 | BD54: -31.61120592 | BE54: 10 | BF54: M$ | BG54: 0.5804243669 | BI54: Seg1 | BJ54: 2022-10-01 | BK54: 2023-04-30 | BN54: 0.3197853175 | BO54: 0.3303379202 | BP54: 0 | BQ54: True | BR54: 0.75 | BS54: 0.75 | BT54: 1 | BU54: 1 | BV54: 0 | BW54: 1 | BX54: OSCAR LU 2-17-20CH | BY54: 54 | BZ54: 35-091-21803-0000 | CA54: 35091218030000 | CB54: 044414 | CC54: 269133 | CD54: 00054 | CE54: 23500113981 | CG54: A61BE2A680924536822000054
A55: SCRANTON 2-19-31MH | B55: A61BE2A680924536822300055 | C55: default | D55: TxWells | E55: All Cases | F55: Proved | G55: Producing | H55: WELEETKA DISTRICT EAST | I55: MISSISSIPPIAN | J55: OKFUSKEE | K55: OK | L55: CALYX ENERGY III LLC | M55: 55 | N55: 35107236100000 | O55: 35.33138 | P55: -96.0865 | Q55: 0 | R55: 13295 | S55: N 10.0/E 12.0/SEC 19.0 NWSWNWNW | T55: 0 | U55: 0 | V55: Standard Case | W55: Gas | X55: 1.380362713 | Y55: 684.0656852 | Z55: 0 | AA55: 0 | AB55: 1.035272035 | AC55: 513.0492639 | AD55: 0 | AE55: Mbbl | AF55: MMcf | AG55: bbl | AH55: 65.074 | AI55: 4.615 | AJ55: 0 | AK55: 67.36894778 | AL55: 2367.535662 | AM55: 0 | AN55: 2434.90461 | AO55: 4.141088139 | AP55: 769.5738959 | AQ55: 0 | AR55: 773.714984 | AS55: 588.2501581 | AT55: 284.3739302 | AU55: 1646.339072 | AV55: 0 | AW55: 172.7564821 | AX55: 0 | AY55: 50 | AZ55: 50 | BA55: 50 | BB55: 0 | BC55: 565.8090558 | BD55: 472.8056257 | BE55: 10 | BF55: M$ | BG55: 11.53182752 | BI55: Seg1 | BJ55: 2022-10-01 | BK55: 2034-04-12 | BN55: 12.31618112 | BO55: 30.80848428 | BP55: 0.06844626968 | BQ55: True | BR55: 0.75 | BS55: 0.75 | BT55: 1 | BU55: 1 | BV55: 0 | BW55: 1 | BX55: SCRANTON 2-19-31MH | BY55: 55 | BZ55: 35-107-23610-0000 | CA55: 35107236100000 | CB55: 056474 | CC55: 269133 | CD55: 00055 | CE55: 23500114048 | CG55: A61BE2A680924536822300055
A56: SCRANTON 1-19-31WH | B56: A61BE2A680924536822600056 | C56: default | D56: TxWells | E56: All Cases | F56: Proved | G56: Producing | H56: GREGORY | I56: MISSISSIPPIAN | J56: OKFUSKEE | K56: OK | L56: CALYX ENERGY III LLC | M56: 56 | N56: 35107236090000 | O56: 35.33142 | P56: -96.0865 | Q56: 0 | R56: 15345 | S56: N 10.0/E 12.0/SEC 19.0 NW | T56: 0 | U56: 0 | V56: Standard Case | W56: Gas | X56: 0.1267321812 | Y56: 2536.244497 | Z56: 0 | AA56: 0 | AB56: 0.09504913592 | AC56: 1902.183373 | AD56: 0 | AE56: Mbbl | AF56: MMcf | AG56: bbl | AH56: 76.994 | AI56: 5.729 | AJ56: 0 | AK56: 7.318224179 | AL56: 10897.48374 | AM56: 0 | AN56: 10904.80197 | AO56: 0.3801965437 | AP56: 2853.275059 | AQ56: 0 | AR56: 2853.655255 | AS56: 1887.808016 | AT56: 912.610694 | AU56: 5654.073966 | AV56: 0 | AW56: 773.6956995 | AX56: 0 | AY56: 50 | AZ56: 50 | BA56: 50 | BB56: 0 | BC56: 4427.032301 | BD56: 2285.282351 | BE56: 10 | BF56: M$ | BG56: 36.99931554 | BI56: Seg1 | BJ56: 2022-10-01 | BK56: 2059-09-30 | BN56: 89.54064602 | BO56: 1820.923041 | BP56: 0.002737850787 | BQ56: True | BR56: 0.75 | BS56: 0.75 | BT56: 1 | BU56: 1 | BV56: 0 | BW56: 1 | BX56: SCRANTON 1-19-31WH | BY56: 56 | BZ56: 35-107-23609-0000 | CA56: 35107236090000 | CB56: 020597 | CC56: 269133 | CD56: 00056 | CE56: 23500114050 | CG56: A61BE2A680924536822600056
A57: SCRANTON 1-19-7CH | B57: A61BE2A680924536822900057 | C57: default | D57: TxWells | E57: All Cases | F57: Proved | G57: Producing | H57: WELEETKA DISTRICT EAST | I57: MISSISSIPPIAN | J57: OKFUSKEE | K57: OK | L57: CALYX ENERGY III LLC | M57: 57 | N57: 35107236080000 | O57: 35.33146 | P57: -96.0865 | Q57: 0 | R57: 14255 | S57: N 10.0/E 12.0/SEC 19.0 NW | T57: 0 | U57: 0 | V57: Standard Case | W57: Gas | X57: 0.01901100693 | Y57: 207.0748752 | Z57: 0 | AA57: 0 | AB57: 0.0142582552 | AC57: 155.3061564 | AD57: 0 | AE57: Mbbl | AF57: MMcf | AG57: bbl | AH57: 82.209 | AI57: 4.687 | AJ57: 0 | AK57: 1.172155743 | AL57: 727.8565731 | AM57: 0 | AN57: 729.0287289 | AO57: 0.0570330208 | AP57: 232.9592347 | AQ57: 0 | AR57: 233.0162677 | AS57: 178.2854107 | AT57: 86.18735113 | AU57: 497.4890295 | AV57: 0 | AW57: 51.72458831 | AX57: 0 | AY57: 50 | AZ57: 50 | BA57: 50 | BB57: 0 | BC57: 129.8151111 | BD57: 126.2550016 | BE57: 10 | BF57: M$ | BG57: 3.498973306 | BI57: Seg1 | BJ57: 2022-10-01 | BK57: 2026-03-31 | BN57: 3.596302222 | BO57: 4.576753347 | BP57: 0.2902121834 | BQ57: True | BR57: 0.75 | BS57: 0.75 | BT57: 1 | BU57: 1 | BV57: 0 | BW57: 1 | BX57: SCRANTON 1-19-7CH | BY57: 57 | BZ57: 35-107-23608-0000 | CA57: 35107236080000 | CB57: 056474 | CC57: 269133 | CD57: 00057 | CE57: 23500114058 | CG57: A61BE2A680924536822900057
A58: DUNDER 1-18-6CH | B58: A61BE2A680924536823200058 | C58: default | D58: TxWells | E58: All Cases | F58: Proved | G58: Producing | H58: VERNON NORTHWEST | I58: MISSISSIPPIAN | J58: MCINTOSH | K58: OK | L58: CALYX ENERGY III LLC | M58: 58 | N58: 35091218130000 | O58: 35.25562 | P58: -95.97443 | Q58: 0 | R58: 14710 | S58: N 9.0/E 13.0/SEC 18.0 SWNESENW | T58: 0 | U58: 0 | V58: Standard Case | W58: Gas | X58: 0.07674833045 | Y58: 144.1377374 | Z58: 0 | AA58: 0 | AB58: 0.05756124784 | AC58: 108.1033031 | AD58: 0 | AE58: Mbbl | AF58: MMcf | AG58: bbl | AH58: 78.852 | AI58: 4.788 | AJ58: 0 | AK58: 4.538801221 | AL58: 517.6482174 | AM58: 0 | AN58: 522.1870186 | AO58: 0.2302449913 | AP58: 162.1549546 | AQ58: 0 | AR58: 162.3851996 | AS58: 127.3891396 | AT58: 61.58289938 | AU58: 351.3572386 | AV58: 0 | AW58: 37.04916897 | AX58: 0 | AY58: 50 | AZ58: 50 | BA58: 50 | BB58: 0 | BC58: 83.78061099 | BD58: 83.9148365 | BE58: 10 | BF58: M$ | BG58: 2.502395619 | BI58: Seg1 | BJ58: 2022-10-01 | BK58: 2025-04-01 | BN58: 2.67561222 | BO58: 3.152671074 | BP58: 0.3559206023 | BQ58: True | BR58: 0.75 | BS58: 0.75 | BT58: 1 | BU58: 1 | BV58: 0 | BW58: 1 | BX58: DUNDER 1-18-6CH | BY58: 58 | BZ58: 35-091-21813-0000 | CA58: 35091218130000 | CB58: 052113 | CC58: 269133 | CD58: 00058 | CE58: 23500114068 | CG58: A61BE2A680924536823200058
A59: DUNDER 1-18-30CH | B59: A61BE2A680924536823500059 | C59: default | D59: TxWells | E59: All Cases | F59: Proved | G59: Producing | H59: VERNON NORTHWEST | I59: MISSISSIPPIAN | J59: MCINTOSH | K59: OK | L59: CALYX ENERGY III LLC | M59: 59 | N59: 35091218140000 | O59: 35.25554 | P59: -95.97443 | Q59: 0 | R59: 15135 | S59: N 9.0/E 13.0/SEC 18.0 SWNESENW | T59: 0 | U59: 0 | V59: Standard Case | W59: Gas | X59: 0.103519623 | Y59: 203.4448025 | Z59: 0 | AA59: 0 | AB59: 0.07763971726 | AC59: 152.5836019 | AD59: 0 | AE59: Mbbl | AF59: MMcf | AG59: bbl | AH59: 78.444 | AI59: 4.69 | AJ59: 0 | AK59: 6.090356067 | AL59: 715.6538583 | AM59: 0 | AN59: 721.7442143 | AO59: 0.310558869 | AP59: 228.8754028 | AQ59: 0 | AR59: 229.1859617 | AS59: 178.2854107 | AT59: 86.18735113 | AU59: 493.6587235 | AV59: 0 | AW59: 51.20775201 | AX59: 0 | AY59: 50 | AZ59: 50 | BA59: 50 | BB59: 0 | BC59: 126.8777388 | BD59: 124.4504058 | BE59: 10 | BF59: M$ | BG59: 3.498973306 | BI59: Seg1 | BJ59: 2022-10-01 | BK59: 2026-03-31 | BN59: 3.537554777 | BO59: 4.525629875 | BP59: 0.2819986311 | BQ59: True | BR59: 0.75 | BS59: 0.75 | BT59: 1 | BU59: 1 | BV59: 0 | BW59: 1 | BX59: DUNDER 1-18-30CH | BY59: 59 | BZ59: 35-091-21814-0000 | CA59: 35091218140000 | CB59: 052113 | CC59: 269133 | CD59: 00059 | CE59: 23500114110 | CG59: A61BE2A680924536823500059
A60: TWAIN 1-9-4WH | B60: A61BE2A680924536823900060 | C60: default | D60: TxWells | E60: All Cases | F60: Proved | G60: Producing | H60: SCIPIO NORTHWEST | I60: WOODFORD | J60: MCINTOSH | K60: OK | L60: CALYX ENERGY III LLC | M60: 60 | N60: 35091218050000 | O60: 35.17514 | P60: -95.93097 | Q60: 0 | R60: 14183 | S60: N 8.0/E 13.0/SEC 9.0 NESESESE | T60: 0 | U60: 0 | V60: Standard Case | W60: Gas | X60: 0 | Y60: 0 | Z60: 0 | AA60: 0 | AB60: 0 | AC60: 0 | AD60: 0 | AE60: Mbbl | AF60: MMcf | AG60: bbl | AH60: 0 | AI60: 0 | AJ60: 0 | AK60: 0 | AL60: 0 | AM60: 0 | AN60: 0 | AO60: 0 | AP60: 0 | AQ60: 0 | AR60: 0 | AS60: 0 | AT60: 0 | AU60: 0 | AV60: 0 | AW60: 0 | AX60: 0 | AY60: 50 | AZ60: 50 | BA60: 50 | BB60: 0 | BC60: -50 | BD60: -50 | BE60: 10 | BF60: M$ | BG60: 0 | BI60: Seg1 | BJ60: 2022-10-01 | BK60: 2022-10-01 | BN60: 0 | BO60: 0 | BP60: 0 | BQ60: False | BR60: 0.75 | BS60: 0.75 | BT60: 0 | BU60: 0 | BV60: 0 | BW60: 1 | BX60: TWAIN 1-9-4WH | BY60: 60 | BZ60: 35-091-21805-0000 | CA60: 35091218050000 | CB60: 044414 | CC60: 269133 | CD60: 00060 | CE60: 23500114151 | CG60: A61BE2A680924536823900060
A61: TWAIN 2-9-4CH | B61: A61BE2A680924536824100061 | C61: default | D61: TxWells | E61: All Cases | F61: Proved | G61: Producing | H61: SCIPIO NORTHWEST | I61: CANEY | J61: MCINTOSH | K61: OK | L61: CALYX ENERGY III LLC | M61: 61 | N61: 35091218230000 | O61: 35.17518 | P61: -95.93097 | Q61: 0 | R61: 13912 | S61: N 8.0/E 13.0/SEC 9.0 NESESESE | T61: 0 | U61: 0 | V61: Standard Case | W61: Gas | X61: 0.378271326 | Y61: 799.9137353 | Z61: 0 | AA61: 0 | AB61: 0.2837034945 | AC61: 599.9353015 | AD61: 0 | AE61: Mbbl | AF61: MMcf | AG61: bbl | AH61: 65.777 | AI61: 4.602 | AJ61: 0 | AK61: 18.66115901 | AL61: 2761.118356 | AM61: 0 | AN61: 2779.779515 | AO61: 1.134813978 | AP61: 899.9029523 | AQ61: 0 | AR61: 901.0377662 | AS61: 535.5374107 | AT61: 258.8913511 | AU61: 1695.466528 | AV61: 0 | AW61: 197.2253566 | AX61: 0 | AY61: 50 | AZ61: 50 | BA61: 50 | BB61: 0 | BC61: 837.0876306 | BD61: 698.3619086 | BE61: 10 | BF61: M$ | BG61: 10.49965777 | BI61: Seg1 | BJ61: 2022-10-01 | BK61: 2033-03-31 | BN61: 17.74175261 | BO61: 40.72802585 | BP61: 0.04928131417 | BQ61: True | BR61: 0.75 | BS61: 0.75 | BT61: 1 | BU61: 1 | BV61: 0 | BW61: 1 | BX61: TWAIN 2-9-4CH | BY61: 61 | BZ61: 35-091-21823-0000 | CA61: 35091218230000 | CB61: 044414 | CC61: 269133 | CD61: 00061 | CE61: 23500114152 | CG61: A61BE2A680924536824100061
A62: TWAIN 1-10-3WH | B62: A61BE2A680924536824300062 | C62: default | D62: TxWells | E62: All Cases | F62: Proved | G62: Producing | H62: SCIPIO NORTHWEST | I62: WOODFORD | J62: MCINTOSH | K62: OK | L62: CALYX ENERGY III LLC | M62: 62 | N62: 35091218040000 | O62: 35.17506 | P62: -95.93097 | Q62: 0 | R62: 13817 | S62: N 8.0/E 13.0/SEC 9.0 SESESESE | T62: 0 | U62: 0 | V62: Standard Case | W62: Gas | X62: 0.01262968906 | Y62: 18.76506638 | Z62: 0 | AA62: 0 | AB62: 0.009472266791 | AC62: 14.07379978 | AD62: 0 | AE62: Mbbl | AF62: MMcf | AG62: bbl | AH62: 84.096 | AI62: 5.286 | AJ62: 0 | AK62: 0.796581048 | AL62: 74.39888855 | AM62: 0 | AN62: 75.19546959 | AO62: 0.03788906717 | AP62: 21.11069967 | AQ62: 0 | AR62: 21.14858874 | AS62: 23.256701 | AT62: 11.242835 | AU62: 55.64812474 | AV62: 0 | AW62: 5.335118568 | AX62: 0 | AY62: 50 | AZ62: 50 | BA62: 50 | BB62: 0 | BC62: -35.78777371 | BD62: -33.82653912 | BE62: 10 | BF62: M$ | BG62: 0.4599589322 | BI62: Seg1 | BJ62: 2022-10-01 | BK62: 2023-03-17 | BN62: 0.2842445257 | BO62: 0.2919529119 | BP62: 0 | BQ62: True | BR62: 0.75 | BS62: 0.75 | BT62: 1 | BU62: 1 | BV62: 0 | BW62: 1 | BX62: TWAIN 1-10-3WH | BY62: 62 | BZ62: 35-091-21804-0000 | CA62: 35091218040000 | CB62: 044414 | CC62: 269133 | CD62: 00062 | CE62: 23500114153 | CG62: A61BE2A680924536824300062
A63: MOSE 1-6-7WH | B63: A61BE2A680924536824500063 | C63: default | D63: TxWells | E63: All Cases | F63: Proved | G63: Producing | H63: SCIPIO NORTHWEST | I63: WOODFORD / MAYES | J63: MCINTOSH | K63: OK | L63: CALYX ENERGY III LLC | M63: 63 | N63: 35091218150000 | O63: 35.20485 | P63: -95.96428 | Q63: 0 | R63: 14546 | S63: N 9.0/E 13.0/SEC 31.0 SENESESE | T63: 0 | U63: 0 | V63: Standard Case | W63: Gas | X63: 0 | Y63: 278.5366505 | Z63: 0 | AA63: 0 | AB63: 0 | AC63: 208.9024879 | AD63: 0 | AE63: Mbbl | AF63: MMcf | AG63: bbl | AH63: 0 | AI63: 4.627 | AJ63: 0 | AK63: 0 | AL63: 966.642673 | AM63: 0 | AN63: 966.642673 | AO63: 0 | AP63: 313.3537318 | AQ63: 0 | AR63: 313.3537318 | AS63: 229.3214107 | AT63: 110.8593511 | AU63: 653.5344936 | AV63: 0 | AW63: 68.58329765 | AX63: 0 | AY63: 50 | AZ63: 50 | BA63: 50 | BB63: 0 | BC63: 194.5248817 | BD63: 184.3341864 | BE63: 10 | BF63: M$ | BG63: 4.498288843 | BI63: Seg1 | BJ63: 2022-10-01 | BK63: 2027-03-31 | BN63: 4.890497634 | BO63: 6.768543543 | BP63: 0.219028063 | BQ63: True | BR63: 0.75 | BS63: 0.75 | BT63: 1 | BU63: 1 | BV63: 0 | BW63: 1 | BX63: MOSE 1-6-7WH | BY63: 63 | BZ63: 35-091-21815-0000 | CA63: 35091218150000 | CB63: 044414 | CC63: 269133 | CD63: 00063 | CE63: 23500114191 | CG63: A61BE2A680924536824500063
A64: MOSE 1-5-8WH | B64: A61BE2A680924536824800064 | C64: default | D64: TxWells | E64: All Cases | F64: Proved | G64: Producing | H64: SCIPIO NORTHWEST | I64: WOODFORD / MAYES | J64: MCINTOSH | K64: OK | L64: CALYX ENERGY III LLC | M64: 64 | N64: 35091218170000 | O64: 35.20483 | P64: -95.96431 | Q64: 0 | R64: 15155 | S64: N 9.0/E 13.0/SEC 31.0 SENESESE | T64: 0 | U64: 0 | V64: Standard Case | W64: Gas | X64: 0.0076002428 | Y64: 2451.817982 | Z64: 0 | AA64: 0 | AB64: 0.0057001821 | AC64: 1838.863486 | AD64: 0 | AE64: Mbbl | AF64: MMcf | AG64: bbl | AH64: 84.488 | AI64: 4.875 | AJ64: 0 | AK64: 0.4815948275 | AL64: 8964.715902 | AM64: 0 | AN64: 8965.197497 | AO64: 0.0228007284 | AP64: 2758.295229 | AQ64: 0 | AR64: 2758.31803 | AS64: 1706.624075 | AT64: 825.0221252 | AU64: 5289.96423 | AV64: 0 | AW64: 636.0807624 | AX64: 0 | AY64: 50 | AZ64: 50 | BA64: 50 | BB64: 0 | BC64: 2989.152504 | BD64: 1712.244417 | BE64: 10 | BF64: M$ | BG64: 33.44284736 | BI64: Seg1 | BJ64: 2022-10-01 | BK64: 2056-03-10 | BN64: 60.78305007 | BO64: 957.8932202 | BP64: 0.005475701574 | BQ64: True | BR64: 0.75 | BS64: 0.75 | BT64: 1 | BU64: 1 | BV64: 0 | BW64: 1 | BX64: MOSE 1-5-8WH | BY64: 64 | BZ64: 35-091-21817-0000 | CA64: 35091218170000 | CB64: 044414 | CC64: 269133 | CD64: 00064 | CE64: 23500114192 | CG64: A61BE2A680924536824800064
A65: MIFFLIN 1-14-26CH | B65: A61BE2A680924536825100065 | C65: default | D65: TxWells | E65: All Cases | F65: Proved | G65: Producing | H65: HANNA NORTHWEST | I65: MISSISSIPPIAN | J65: MCINTOSH | K65: OK | L65: CALYX ENERGY III LLC | M65: 65 | N65: 35091218190000 | O65: 35.25586 | P65: -95.9095 | Q65: 0 | R65: 16042 | S65: N 9.0/E 13.0/SEC 14.0 SWNWSWNW | T65: 0 | U65: 0 | V65: Standard Case | W65: Gas | X65: 0.1431955566 | Y65: 1071.031623 | Z65: 0 | AA65: 0 | AB65: 0.1073966674 | AC65: 803.2737174 | AD65: 0 | AE65: Mbbl | AF65: MMcf | AG65: bbl | AH65: 75.271 | AI65: 4.726 | AJ65: 0 | AK65: 8.083840351 | AL65: 3796.328537 | AM65: 0 | AN65: 3804.412377 | AO65: 0.4295866697 | AP65: 1204.910576 | AQ65: 0 | AR65: 1205.340163 | AS65: 865.27154 | AT65: 418.2925667 | AU65: 2488.904269 | AV65: 0 | AW65: 269.9230582 | AX65: 0 | AY65: 50 | AZ65: 50 | BA65: 50 | BB65: 0 | BC65: 995.5850495 | BD65: 752.3958527 | BE65: 10 | BF65: M$ | BG65: 16.96372348 | BI65: Seg1 | BJ65: 2022-10-01 | BK65: 2039-09-17 | BN65: 20.91170099 | BO65: 82.47612911 | BP65: 0.03011635866 | BQ65: True | BR65: 0.75 | BS65: 0.75 | BT65: 1 | BU65: 1 | BV65: 0 | BW65: 1 | BX65: MIFFLIN 1-14-26CH | BY65: 65 | BZ65: 35-091-21819-0000 | CA65: 35091218190000 | CB65: 058583 | CC65: 269133 | CD65: 00065 | CE65: 23500114240 | CG65: A61BE2A680924536825100065
A66: MIFFLIN 1-15-27CH | B66: A61BE2A680924536825300066 | C66: default | D66: TxWells | E66: All Cases | F66: Proved | G66: Producing | H66: HANNA NORTHWEST | I66: MISSISSIPPIAN | J66: MCINTOSH | K66: OK | L66: CALYX ENERGY III LLC | M66: 66 | N66: 35091218210000 | O66: 35.25582 | P66: -95.9095 | Q66: 0 | R66: 16104 | S66: N 9.0/E 13.0/SEC 14.0 SWNWSWNW | T66: 0 | U66: 0 | V66: Standard Case | W66: Gas | X66: 0.1190868819 | Y66: 377.3336653 | Z66: 0 | AA66: 0 | AB66: 0.08931516141 | AC66: 283.000249 | AD66: 0 | AE66: Mbbl | AF66: MMcf | AG66: bbl | AH66: 76.31 | AI66: 4.59 | AJ66: 0 | AK66: 6.815619589 | AL66: 1299.032854 | AM66: 0 | AN66: 1305.848473 | AO66: 0.3572606456 | AP66: 424.5003734 | AQ66: 0 | AR66: 424.8576341 | AS66: 280.4971396 | AT66: 135.5988994 | AU66: 840.9536731 | AV66: 0 | AW66: 92.64994917 | AX66: 0 | AY66: 50 | AZ66: 50 | BA66: 50 | BB66: 0 | BC66: 322.2448509 | BD66: 293.4533079 | BE66: 10 | BF66: M$ | BG66: 5.500342231 | BI66: Seg1 | BJ66: 2022-10-01 | BK66: 2028-03-31 | BN66: 7.444897018 | BO66: 11.14699853 | BP66: 0.1533196441 | BQ66: True | BR66: 0.75 | BS66: 0.75 | BT66: 1 | BU66: 1 | BV66: 0 | BW66: 1 | BX66: MIFFLIN 1-15-27CH | BY66: 66 | BZ66: 35-091-21821-0000 | CA66: 35091218210000 | CB66: 058583 | CC66: 269133 | CD66: 00066 | CE66: 23500114241 | CG66: A61BE2A680924536825300066
A67: MIFFLIN 1-15-3CH | B67: A61BE2A680924536825700067 | C67: default | D67: TxWells | E67: All Cases | F67: Proved | G67: Producing | H67: HANNA NORTHWEST | I67: MISSISSIPPIAN | J67: MCINTOSH | K67: OK | L67: CALYX ENERGY III LLC | M67: 67 | N67: 35091218220000 | O67: 35.25591 | P67: -95.9095 | Q67: 0 | R67: 15732 | S67: N 9.0/E 13.0/SEC 14.0 SWNWSWNW | T67: 0 | U67: 0 | V67: Standard Case | W67: Gas | X67: 0 | Y67: 327.7421143 | Z67: 0 | AA67: 0 | AB67: 0 | AC67: 245.8065857 | AD67: 0 | AE67: Mbbl | AF67: MMcf | AG67: bbl | AH67: 0 | AI67: 4.658 | AJ67: 0 | AK67: 0 | AL67: 1144.969198 | AM67: 0 | AN67: 1144.969198 | AO67: 0 | AP67: 368.7098785 | AQ67: 0 | AR67: 368.7098785 | AS67: 229.3214107 | AT67: 110.8593511 | AU67: 708.8906403 | AV67: 0 | AW67: 81.23556462 | AX67: 0 | AY67: 50 | AZ67: 50 | BA67: 50 | BB67: 0 | BC67: 304.8429933 | BD67: 285.6794003 | BE67: 10 | BF67: M$ | BG67: 4.498288843 | BI67: Seg1 | BJ67: 2022-10-01 | BK67: 2027-03-31 | BN67: 7.096859867 | BO67: 9.940034905 | BP67: 0.1423682409 | BQ67: True | BR67: 0.75 | BS67: 0.75 | BT67: 1 | BU67: 1 | BV67: 0 | BW67: 1 | BX67: MIFFLIN 1-15-3CH | BY67: 67 | BZ67: 35-091-21822-0000 | CA67: 35091218220000 | CB67: 058583 | CC67: 269133 | CD67: 00067 | CE67: 23500114242 | CG67: A61BE2A680924536825700067
A68: EDISON 2-18-19WH | B68: A61BE2A680924536826100068 | C68: default | D68: TxWells | E68: All Cases | F68: Proved | G68: Producing | H68: SCIPIO NORTHWEST | I68: WOODFORD | J68: MCINTOSH | K68: OK | L68: CALYX ENERGY III LLC | M68: 68 | N68: 35091218240000 | O68: 35.1761 | P68: -95.97664 | Q68: 0 | R68: 15200 | S68: N 8.0/E 13.0/SEC 7.0 SW | T68: 0 | U68: 0 | V68: Standard Case | W68: Gas | X68: 0 | Y68: 1723.025531 | Z68: 0 | AA68: 0 | AB68: 0 | AC68: 1292.269148 | AD68: 0 | AE68: Mbbl | AF68: MMcf | AG68: bbl | AH68: 0 | AI68: 4.8 | AJ68: 0 | AK68: 0 | AL68: 6203.205193 | AM68: 0 | AN68: 6203.205193 | AO68: 0 | AP68: 1938.403722 | AQ68: 0 | AR68: 1938.403722 | AS68: 1211.083232 | AT68: 585.4660534 | AU68: 3734.953008 | AV68: 0 | AW68: 440.1174085 | AX68: 0 | AY68: 50 | AZ68: 50 | BA68: 50 | BB68: 0 | BC68: 1978.134777 | BD68: 1328.88539 | BE68: 10 | BF68: M$ | BG68: 23.73716632 | BI68: Seg1 | BJ68: 2022-10-01 | BK68: 2046-06-26 | BN68: 40.56269555 | BO68: 283.5006676 | BP68: 0.01095140315 | BQ68: True | BR68: 0.75 | BS68: 0.75 | BT68: 1 | BU68: 1 | BV68: 0 | BW68: 1 | BX68: EDISON 2-18-19WH | BY68: 68 | BZ68: 35-091-21824-0000 | CA68: 35091218240000 | CB68: 044414 | CC68: 269133 | CD68: 00068 | CE68: 23500114344 | CG68: A61BE2A680924536826100068
A69: EDISON 3-18-19WH | B69: A61BE2A680924536826500069 | C69: default | D69: TxWells | E69: All Cases | F69: Proved | G69: Producing | H69: SCIPIO NORTHWEST | I69: WOODFORD | J69: MCINTOSH | K69: OK | L69: CALYX ENERGY III LLC | M69: 69 | N69: 35091218250000 | O69: 35.1761 | P69: -95.97669 | Q69: 0 | R69: 15749 | S69: N 8.0/E 13.0/SEC 7.0 SW | T69: 0 | U69: 0 | V69: Standard Case | W69: Gas | X69: 0.3081495936 | Y69: 2148.410576 | Z69: 0 | AA69: 0 | AB69: 0.2311121952 | AC69: 1611.307932 | AD69: 0 | AE69: Mbbl | AF69: MMcf | AG69: bbl | AH69: 66.432 | AI69: 4.623 | AJ69: 0 | AK69: 15.35331064 | AL69: 7449.819712 | AM69: 0 | AN69: 7465.173022 | AO69: 0.9244487809 | AP69: 2416.961898 | AQ69: 0 | AR69: 2417.886347 | AS69: 703.3425865 | AT69: 340.0123108 | AU69: 3461.241244 | AV69: 0 | AW69: 529.6540259 | AX69: 0 | AY69: 50 | AZ69: 50 | BA69: 50 | BB69: 0 | BC69: 3424.277752 | BD69: 2591.355146 | BE69: 10 | BF69: M$ | BG69: 13.78781656 | BI69: Seg1 | BJ69: 2022-10-01 | BK69: 2036-07-14 | BN69: 69.48555504 | BO69: 205.5288487 | BP69: 0.01368925394 | BQ69: True | BR69: 0.75 | BS69: 0.75 | BT69: 1 | BU69: 1 | BV69: 0 | BW69: 1 | BX69: EDISON 3-18-19WH | BY69: 69 | BZ69: 35-091-21825-0000 | CA69: 35091218250000 | CB69: 044414 | CC69: 269133 | CD69: 00069 | CE69: 23500114345 | CG69: A61BE2A680924536826500069
A70: EDISON 4-18-19WH | B70: A61BE2A680924536826800070 | C70: default | D70: TxWells | E70: All Cases | F70: Proved | G70: Producing | H70: SCIPIO NORTHWEST | I70: WOODFORD / MAYES | J70: MCINTOSH | K70: OK | L70: CALYX ENERGY III LLC | M70: 70 | N70: 35091218260000 | O70: 35.1761 | P70: -95.97674 | Q70: 0 | R70: 0 | S70: N 8.0/E 13.0/SEC 7.0 SW | T70: 0 | U70: 0 | V70: Standard Case | W70: Gas | X70: 0.4663166519 | Y70: 938.7703116 | Z70: 0 | AA70: 0 | AB70: 0.349737489 | AC70: 704.0777337 | AD70: 0 | AE70: Mbbl | AF70: MMcf | AG70: bbl | AH70: 67.383 | AI70: 4.627 | AJ70: 0 | AK70: 23.56652773 | AL70: 3257.894435 | AM70: 0 | AN70: 3281.460963 | AO70: 1.398949956 | AP70: 1056.116601 | AQ70: 0 | AR70: 1057.51555 | AS70: 590.7652793 | AT70: 285.5897988 | AU70: 1933.870628 | AV70: 0 | AW70: 232.8196553 | AX70: 0 | AY70: 50 | AZ70: 50 | BA70: 50 | BB70: 0 | BC70: 1064.770679 | BD70: 881.1561407 | BE70: 10 | BF70: M$ | BG70: 11.58110883 | BI70: Seg1 | BJ70: 2022-10-01 | BK70: 2034-04-30 | BN70: 22.29541358 | BO70: 56.82664409 | BP70: 0.03285420945 | BQ70: True | BR70: 0.75 | BS70: 0.75 | BT70: 1 | BU70: 1 | BV70: 0 | BW70: 1 | BX70: EDISON 4-18-19WH | BY70: 70 | BZ70: 35-091-21826-0000 | CA70: 35091218260000 | CB70: 044414 | CC70: 269133 | CD70: 00070 | CE70: 23500114346 | CG70: A61BE2A680924536826800070
A71: TIMBERWOLF 1-19-18CH | B71: A61BE2A680924536827000071 | C71: default | D71: TxWells | E71: All Cases | F71: Proved | G71: Producing | H71: OKEMAH | I71: MISSISSIPPIAN | J71: OKFUSKEE | K71: OK | L71: CALYX ENERGY III LLC | M71: 71 | N71: 35107235980000 | O71: 35.31953 | P71: -96.30109 | Q71: 0 | R71: 14100 | S71: N 10.0/E 9.0/SEC 24.0 SWSESESE | T71: 0 | U71: 0 | V71: Standard Case | W71: Gas | X71: 0.02021501601 | Y71: 1479.280039 | Z71: 0 | AA71: 0 | AB71: 0.01516126201 | AC71: 1109.460029 | AD71: 0 | AE71: Mbbl | AF71: MMcf | AG71: bbl | AH71: 82.751 | AI71: 4.761 | AJ71: 0 | AK71: 1.254613227 | AL71: 5281.950991 | AM71: 0 | AN71: 5283.205604 | AO71: 0.06064504804 | AP71: 1664.190044 | AQ71: 0 | AR71: 1664.250689 | AS71: 1036.771645 | AT71: 501.1997419 | AU71: 3202.222076 | AV71: 0 | AW71: 374.8434376 | AX71: 0 | AY71: 50 | AZ71: 50 | BA71: 50 | BB71: 0 | BC71: 1656.14009 | BD71: 1164.437354 | BE71: 10 | BF71: M$ | BG71: 20.31759069 | BI71: Seg1 | BJ71: 2022-10-01 | BK71: 2043-01-24 | BN71: 34.1228018 | BO71: 177.0974934 | BP71: 0.01642710472 | BQ71: True | BR71: 0.75 | BS71: 0.75 | BT71: 1 | BU71: 1 | BV71: 0 | BW71: 1 | BX71: TIMBERWOLF 1-19-18CH | BY71: 71 | BZ71: 35-107-23598-0000 | CA71: 35107235980000 | CB71: 036718 | CC71: 269133 | CD71: 00071 | CE71: 23500114347 | CG71: A61BE2A680924536827000071
A72: TIMBERWOLF 1-24-13CH | B72: A61BE2A680924536827300072 | C72: default | D72: TxWells | E72: All Cases | F72: Proved | G72: Producing | H72: OKEMAH | I72: MISSISSIPPIAN | J72: OKFUSKEE | K72: OK | L72: CALYX ENERGY III LLC | M72: 72 | N72: 35107235970000 | O72: 35.31961 | P72: -96.30109 | Q72: 0 | R72: 13897 | S72: N 10.0/E 9.0/SEC 24.0 SWSESESE | T72: 0 | U72: 0 | V72: Standard Case | W72: Gas | X72: 1.053540508 | Y72: 728.9676943 | Z72: 0 | AA72: 0 | AB72: 0.7901553811 | AC72: 546.7257707 | AD72: 0 | AE72: Mbbl | AF72: MMcf | AG72: bbl | AH72: 71.397 | AI72: 4.607 | AJ72: 0 | AK72: 56.41449662 | AL72: 2518.82232 | AM72: 0 | AN72: 2575.236817 | AO72: 3.160621524 | AP72: 820.0886561 | AQ72: 0 | AR72: 823.2492776 | AS72: 382.4294107 | AT72: 184.8753511 | AU72: 1390.554039 | AV72: 0 | AW72: 182.7130521 | AX72: 0 | AY72: 50 | AZ72: 50 | BA72: 50 | BB72: 0 | BC72: 951.9697252 | BD72: 828.1525214 | BE72: 10 | BF72: M$ | BG72: 7.498973306 | BI72: Seg1 | BJ72: 2022-10-01 | BK72: 2030-03-31 | BN72: 20.0393945 | BO72: 35.94207517 | BP72: 0.04928131417 | BQ72: True | BR72: 0.75 | BS72: 0.75 | BT72: 1 | BU72: 1 | BV72: 0 | BW72: 1 | BX72: TIMBERWOLF 1-24-13CH | BY72: 72 | BZ72: 35-107-23597-0000 | CA72: 35107235970000 | CB72: 036718 | CC72: 269133 | CD72: 00072 | CE72: 23500114348 | CG72: A61BE2A680924536827300072
A73: EISENHOWER 3-26-25WH | B73: A61BE2A680924536827500073 | C73: default | D73: TxWells | E73: All Cases | F73: Proved | G73: Producing | H73: CARSON | I73: WOODFORD | J73: HUGHES | K73: OK | L73: CALYX ENERGY III LLC | M73: 73 | N73: 35063249010000 | O73: 35.20172 | P73: -96.09492 | Q73: 0 | R73: 15512 | S73: N 8.0/E 11.0/SEC 1.0 NE | T73: 0 | U73: 0 | V73: Standard Case | W73: Gas | X73: 0 | Y73: 973.8922166 | Z73: 0 | AA73: 0 | AB73: 0 | AC73: 730.4191625 | AD73: 0 | AE73: Mbbl | AF73: MMcf | AG73: bbl | AH73: 0 | AI73: 4.74 | AJ73: 0 | AK73: 0 | AL73: 3462.339948 | AM73: 0 | AN73: 3462.339948 | AO73: 0 | AP73: 1095.628744 | AQ73: 0 | AR73: 1095.628744 | AS73: 231.8365318 | AT73: 112.0752197 | AU73: 1439.540495 | AV73: 0 | AW73: 245.6530193 | AX73: 0 | AY73: 50 | AZ73: 50 | BA73: 50 | BB73: 0 | BC73: 1727.146434 | BD73: 1564.656585 | BE73: 10 | BF73: M$ | BG73: 4.547570157 | BI73: Seg1 | BJ73: 2022-10-01 | BK73: 2027-04-18 | BN73: 35.54292867 | BO73: 50.2051673 | BP73: 0.02737850787 | BQ73: True | BR73: 0.75 | BS73: 0.75 | BT73: 1 | BU73: 1 | BV73: 0 | BW73: 1 | BX73: EISENHOWER 3-26-25WH | BY73: 73 | BZ73: 35-063-24901-0000 | CA73: 35063249010000 | CB73: 008500 | CC73: 269133 | CD73: 00073 | CE73: 23500114368 | CG73: A61BE2A680924536827500073
A74: EISENHOWER 4-36-25WH | B74: A61BE2A680924536827800074 | C74: default | D74: TxWells | E74: All Cases | F74: Proved | G74: Producing | H74: CARSON | I74: WOODFORD | J74: HUGHES | K74: OK | L74: CALYX ENERGY III LLC | M74: 74 | N74: 35063249020000 | O74: 35.20172 | P74: -96.09487 | Q74: 0 | R74: 15417 | S74: N 8.0/E 11.0/SEC 1.0 SWNENWNE | T74: 0 | U74: 0 | V74: Standard Case | W74: Gas | X74: 0.0659459756 | Y74: 2894.520402 | Z74: 0 | AA74: 0 | AB74: 0.0494594817 | AC74: 2170.890302 | AD74: 0 | AE74: Mbbl | AF74: MMcf | AG74: bbl | AH74: 78.085 | AI74: 4.618 | AJ74: 0 | AK74: 3.862043679 | AL74: 10025.91826 | AM74: 0 | AN74: 10029.78031 | AO74: 0.1978379268 | AP74: 3256.335453 | AQ74: 0 | AR74: 3256.533291 | AS74: 641.2423634 | AT74: 309.9916057 | AU74: 4207.76726 | AV74: 0 | AW74: 711.6129128 | AX74: 0 | AY74: 50 | AZ74: 50 | BA74: 50 | BB74: 0 | BC74: 5060.400135 | BD74: 3991.591793 | BE74: 10 | BF74: M$ | BG74: 12.56947296 | BI74: Seg1 | BJ74: 2022-10-01 | BK74: 2035-04-26 | BN74: 102.2080027 | BO74: 280.0493509 | BP74: 0.008213552361 | BQ74: True | BR74: 0.75 | BS74: 0.75 | BT74: 1 | BU74: 1 | BV74: 0 | BW74: 1 | BX74: EISENHOWER 4-36-25WH | BY74: 74 | BZ74: 35-063-24902-0000 | CA74: 35063249020000 | CB74: 008500 | CC74: 269133 | CD74: 00074 | CE74: 23500114369 | CG74: A61BE2A680924536827800074
A75: EISENHOWER 5-36-25WH | B75: A61BE2A680924536828200075 | C75: default | D75: TxWells | E75: All Cases | F75: Proved | G75: Producing | H75: CARSON | I75: WOODFORD | J75: HUGHES | K75: OK | L75: CALYX ENERGY III LLC | M75: 75 | N75: 35063249030000 | O75: 35.20172 | P75: -96.09482 | Q75: 0 | R75: 15716 | S75: N 8.0/E 11.0/SEC 1.0 NE | T75: 0 | U75: 0 | V75: Standard Case | W75: Gas | X75: 0.02758412594 | Y75: 4604.207392 | Z75: 0 | AA75: 0 | AB75: 0.02068809446 | AC75: 3453.155544 | AD75: 0 | AE75: Mbbl | AF75: MMcf | AG75: bbl | AH75: 82.642 | AI75: 4.666 | AJ75: 0 | AK75: 1.709715736 | AL75: 16112.76891 | AM75: 0 | AN75: 16114.47862 | AO75: 0.08275237782 | AP75: 5179.733316 | AQ75: 0 | AR75: 5179.816068 | AS75: 987.6741027 | AT75: 477.4648378 | AU75: 6644.955008 | AV75: 0 | AW75: 1143.322258 | AX75: 0 | AY75: 50 | AZ75: 50 | BA75: 50 | BB75: 0 | BC75: 8276.201358 | BD75: 5681.016867 | BE75: 10 | BF75: M$ | BG75: 19.35660507 | BI75: Seg1 | BJ75: 2022-10-01 | BK75: 2042-02-07 | BN75: 166.5240272 | BO75: 781.7302103 | BP75: 0.005475701574 | BQ75: True | BR75: 0.75 | BS75: 0.75 | BT75: 1 | BU75: 1 | BV75: 0 | BW75: 1 | BX75: EISENHOWER 5-36-25WH | BY75: 75 | BZ75: 35-063-24903-0000 | CA75: 35063249030000 | CB75: 008500 | CC75: 269133 | CD75: 00075 | CE75: 23500114370 | CG75: A61BE2A680924536828200075
A76: HAMILTON 4-14-2WH | B76: A61BE2A680924536829500076 | C76: default | D76: TxWells | E76: All Cases | F76: Proved | G76: Producing | H76: CARSON | I76: SYLVAN | J76: HUGHES | K76: OK | L76: CALYX ENERGY III LLC | M76: 76 | N76: 35063249050000 | O76: 35.16178 | P76: -96.01248 | Q76: 0 | R76: 0 | S76: N 8.0/E 12.0/SEC 14.0 SENWSESW | T76: 0 | U76: 0 | V76: Standard Case | W76: Gas | X76: 2.531351125 | Y76: 931.6301926 | Z76: 0 | AA76: 0 | AB76: 1.898513343 | AC76: 698.7226445 | AD76: 0 | AE76: Mbbl | AF76: MMcf | AG76: bbl | AH76: 67.813 | AI76: 4.682 | AJ76: 0 | AK76: 128.7434096 | AL76: 3271.713213 | AM76: 0 | AN76: 3400.456623 | AO76: 7.594053374 | AP76: 1048.083967 | AQ76: 0 | AR76: 1055.67802 | AS76: 737.4863139 | AT76: 356.5181898 | AU76: 2149.682524 | AV76: 0 | AW76: 241.2623974 | AX76: 0 | AY76: 50 | AZ76: 50 | BA76: 50 | BB76: 0 | BC76: 959.5117018 | BD76: 772.0944851 | BE76: 10 | BF76: M$ | BG76: 14.45585216 | BI76: Seg1 | BJ76: 2022-10-01 | BK76: 2037-03-15 | BN76: 20.19023404 | BO76: 66.13138095 | BP76: 0.03011635866 | BQ76: True | BR76: 0.75 | BS76: 0.75 | BT76: 1 | BU76: 1 | BV76: 0 | BW76: 1 | BX76: HAMILTON 4-14-2WH | BY76: 76 | BZ76: 35-063-24905-0000 | CA76: 35063249050000 | CB76: 008500 | CC76: 269133 | CD76: 00076 | CE76: 23500114388 | CG76: A61BE2A680924536829500076
A77: HAMILTON 3-14-2WH | B77: A61BE2A680924536829800077 | C77: default | D77: TxWells | E77: All Cases | F77: Proved | G77: Producing | H77: CARSON | I77: WOODFORD / MAYES | J77: HUGHES | K77: OK | L77: CALYX ENERGY III LLC | M77: 77 | N77: 35063249060000 | O77: 35.16177 | P77: -96.01243 | Q77: 0 | R77: 15538 | S77: N 8.0/E 12.0/SEC 14.0 SW | T77: 0 | U77: 0 | V77: Standard Case | W77: Gas | X77: 0.02369405756 | Y77: 1174.161819 | Z77: 0 | AA77: 0 | AB77: 0.01777054317 | AC77: 880.6213642 | AD77: 0 | AE77: Mbbl | AF77: MMcf | AG77: bbl | AH77: 82.867 | AI77: 4.726 | AJ77: 0 | AK77: 1.472590095 | AL77: 4162.15622 | AM77: 0 | AN77: 4163.628811 | AO77: 0.07108217267 | AP77: 1320.932046 | AQ77: 0 | AR77: 1321.003129 | AS77: 874.799308 | AT77: 422.8985133 | AU77: 2618.70095 | AV77: 0 | AW77: 295.4094641 | AX77: 0 | AY77: 50 | AZ77: 50 | BA77: 50 | BB77: 0 | BC77: 1199.518397 | BD77: 912.9365506 | BE77: 10 | BF77: M$ | BG77: 17.14168378 | BI77: Seg1 | BJ77: 2022-10-01 | BK77: 2039-11-21 | BN77: 24.99036793 | BO77: 101.6285656 | BP77: 0.0219028063 | BQ77: True | BR77: 0.75 | BS77: 0.75 | BT77: 1 | BU77: 1 | BV77: 0 | BW77: 1 | BX77: HAMILTON 3-14-2WH | BY77: 77 | BZ77: 35-063-24906-0000 | CA77: 35063249060000 | CB77: 008500 | CC77: 269133 | CD77: 00077 | CE77: 23500114389 | CG77: A61BE2A680924536829800077
A78: HAMILTON 2-14-2WH | B78: A61BE2A680924536830000078 | C78: default | D78: TxWells | E78: All Cases | F78: Proved | G78: Producing | H78: CARSON | I78: WOODFORD | J78: HUGHES | K78: OK | L78: CALYX ENERGY III LLC | M78: 78 | N78: 35063249040000 | O78: 35.16175 | P78: -96.01238 | Q78: 0 | R78: 15251 | S78: N 8.0/E 12.0/SEC 14.0 SENWSESW | T78: 0 | U78: 0 | V78: Standard Case | W78: Gas | X78: 0.002929241246 | Y78: 470.4924503 | Z78: 0 | AA78: 0 | AB78: 0.002196930934 | AC78: 352.8693377 | AD78: 0 | AE78: Mbbl | AF78: MMcf | AG78: bbl | AH78: 85.05 | AI78: 4.81 | AJ78: 0 | AK78: 0.1868489759 | AL78: 1697.404196 | AM78: 0 | AN78: 1697.591045 | AO78: 0.008787723737 | AP78: 529.3040065 | AQ78: 0 | AR78: 529.3127943 | AS78: 174.0324107 | AT78: 84.13135113 | AU78: 787.4765561 | AV78: 0 | AW78: 120.4440846 | AX78: 0 | AY78: 50 | AZ78: 50 | BA78: 50 | BB78: 0 | BC78: 739.6704041 | BD78: 695.4671866 | BE78: 10 | BF78: M$ | BG78: 3.414099932 | BI78: Seg1 | BJ78: 2022-10-01 | BK78: 2026-02-28 | BN78: 15.79340808 | BO78: 20.53647986 | BP78: 0.04928131417 | BQ78: True | BR78: 0.75 | BS78: 0.75 | BT78: 1 | BU78: 1 | BV78: 0 | BW78: 1 | BX78: HAMILTON 2-14-2WH | BY78: 78 | BZ78: 35-063-24904-0000 | CA78: 35063249040000 | CB78: 008500 | CC78: 269133 | CD78: 00078 | CE78: 23500114390 | CG78: A61BE2A680924536830000078
A79: TRUMAN 3-24-13WH | B79: A61BE2A680924536830300079 | C79: default | D79: TxWells | E79: All Cases | F79: Proved | G79: Producing | H79: DUSTIN | I79: WOODFORD | J79: HUGHES | K79: OK | L79: CALYX ENERGY III LLC | M79: 79 | N79: 35063249080000 | O79: 35.23092 | P79: -96.08304 | Q79: 0 | R79: 15157 | S79: N 9.0/E 12.0/SEC 30.0 SENENWNW | T79: 0 | U79: 0 | V79: Standard Case | W79: Gas | X79: 0.002943580791 | Y79: 2213.576691 | Z79: 0 | AA79: 0 | AB79: 0.002207685593 | AC79: 1660.182518 | AD79: 0 | AE79: Mbbl | AF79: MMcf | AG79: bbl | AH79: 85.05 | AI79: 4.83 | AJ79: 0 | AK79: 0.1877636597 | AL79: 8019.279558 | AM79: 0 | AN79: 8019.467321 | AO79: 0.008830742372 | AP79: 2490.273777 | AQ79: 0 | AR79: 2490.282608 | AS79: 1443.962097 | AT79: 698.0451613 | AU79: 4632.289866 | AV79: 0 | AW79: 568.9812064 | AX79: 0 | AY79: 50 | AZ79: 50 | BA79: 50 | BB79: 0 | BC79: 2768.196249 | BD79: 1762.861317 | BE79: 10 | BF79: M$ | BG79: 28.29568789 | BI79: Seg1 | BJ79: 2022-10-01 | BK79: 2051-01-16 | BN79: 56.36392498 | BO79: 591.0704114 | BP79: 0.005475701574 | BQ79: True | BR79: 0.75 | BS79: 0.75 | BT79: 1 | BU79: 1 | BV79: 0 | BW79: 1 | BX79: TRUMAN 3-24-13WH | BY79: 79 | BZ79: 35-063-24908-0000 | CA79: 35063249080000 | CB79: 014390 | CC79: 269133 | CD79: 00079 | CE79: 23500114400 | CG79: A61BE2A680924536830300079
A80: TRUMAN 5-19-18WH | B80: A61BE2A680924536830600080 | C80: default | D80: TxWells | E80: All Cases | F80: Proved | G80: Producing | H80: DUSTIN | I80: WOODFORD | J80: HUGHES | K80: OK | L80: CALYX ENERGY III LLC | M80: 80 | N80: 35063249090000 | O80: 35.23092 | P80: -96.08294 | Q80: 0 | R80: 15019 | S80: N 9.0/E 12.0/SEC 30.0 SWNWNENW | T80: 0 | U80: 0 | V80: Standard Case | W80: Gas | X80: 0.2533148297 | Y80: 1026.707262 | Z80: 0 | AA80: 0 | AB80: 0.1899861223 | AC80: 770.0304468 | AD80: 0 | AE80: Mbbl | AF80: MMcf | AG80: bbl | AH80: 77.89 | AI80: 4.623 | AJ80: 0 | AK80: 14.79805554 | AL80: 3559.628349 | AM80: 0 | AN80: 3574.426405 | AO80: 0.7599444891 | AP80: 1155.04567 | AQ80: 0 | AR80: 1155.805615 | AS80: 535.5374107 | AT80: 258.8913511 | AU80: 1950.234377 | AV80: 0 | AW80: 253.6055534 | AX80: 0 | AY80: 50 | AZ80: 50 | BA80: 50 | BB80: 0 | BC80: 1320.586475 | BD80: 1109.097425 | BE80: 10 | BF80: M$ | BG80: 10.49965777 | BI80: Seg1 | BJ80: 2022-10-01 | BK80: 2033-03-31 | BN80: 27.41172949 | BO80: 64.09372065 | BP80: 0.02737850787 | BQ80: True | BR80: 0.75 | BS80: 0.75 | BT80: 1 | BU80: 1 | BV80: 0 | BW80: 1 | BX80: TRUMAN 5-19-18WH | BY80: 80 | BZ80: 35-063-24909-0000 | CA80: 35063249090000 | CB80: 014390 | CC80: 269133 | CD80: 00080 | CE80: 23500114401 | CG80: A61BE2A680924536830600080
A81: TRUMAN 6-18-19WH | B81: A61BE2A680924536830700081 | C81: default | D81: TxWells | E81: All Cases | F81: Proved | G81: Producing | H81: DUSTIN | I81: WOODFORD | J81: HUGHES | K81: OK | L81: CALYX ENERGY III LLC | M81: 81 | N81: 35063249100000 | O81: 35.23092 | P81: -96.08299 | Q81: 0 | R81: 15015 | S81: N 9.0/E 12.0/SEC 30.0 SWNWNENW | T81: 0 | U81: 0 | V81: Standard Case | W81: Gas | X81: 2.344214075 | Y81: 711.5925588 | Z81: 0 | AA81: 0 | AB81: 1.758160556 | AC81: 533.6944191 | AD81: 0 | AE81: Mbbl | AF81: MMcf | AG81: bbl | AH81: 67.484 | AI81: 4.611 | AJ81: 0 | AK81: 118.6484709 | AL81: 2460.842949 | AM81: 0 | AN81: 2579.49142 | AO81: 7.032642224 | AP81: 800.5416286 | AQ81: 0 | AR81: 807.5742708 | AS81: 433.4654107 | AT81: 209.5473511 | AU81: 1450.587033 | AV81: 0 | AW81: 183.0149163 | AX81: 0 | AY81: 50 | AZ81: 50 | BA81: 50 | BB81: 0 | BC81: 895.8894712 | BD81: 772.0398806 | BE81: 10 | BF81: M$ | BG81: 8.498288843 | BI81: Seg1 | BJ81: 2022-10-01 | BK81: 2031-03-31 | BN81: 18.91778942 | BO81: 36.98305136 | BP81: 0.04654346338 | BQ81: True | BR81: 0.75 | BS81: 0.75 | BT81: 1 | BU81: 1 | BV81: 0 | BW81: 1 | BX81: TRUMAN 6-18-19WH | BY81: 81 | BZ81: 35-063-24910-0000 | CA81: 35063249100000 | CB81: 014390 | CC81: 269133 | CD81: 00081 | CE81: 23500114418 | CG81: A61BE2A680924536830700081
A82: TESLA 5-17-20WH | B82: A61BE2A680924536831000082 | C82: default | D82: TxWells | E82: All Cases | F82: Proved | G82: Producing | H82: SCIPIO NORTHWEST | I82: WOODFORD | J82: MCINTOSH | K82: OK | L82: CALYX ENERGY III LLC | M82: 82 | N82: 35091218270000 | O82: 35.17641 | P82: -95.95562 | Q82: 0 | R82: 15715 | S82: N 8.0/E 13.0/SEC 8.0 SWNWSWSE | T82: 0 | U82: 0 | V82: Standard Case | W82: Gas | X82: 0.002755322044 | Y82: 907.7943141 | Z82: 0 | AA82: 0 | AB82: 0.002066491533 | AC82: 680.8457356 | AD82: 0 | AE82: Mbbl | AF82: MMcf | AG82: bbl | AH82: 85.05 | AI82: 4.671 | AJ82: 0 | AK82: 0.1757551049 | AL82: 3180.50197 | AM82: 0 | AN82: 3180.677725 | AO82: 0.008265966131 | AP82: 1021.268603 | AQ82: 0 | AR82: 1021.276869 | AS82: 707.1840058 | AT82: 341.869343 | AU82: 2070.330218 | AV82: 0 | AW82: 225.6690846 | AX82: 0 | AY82: 50 | AZ82: 50 | BA82: 50 | BB82: 0 | BC82: 834.678422 | BD82: 686.9659826 | BE82: 10 | BF82: M$ | BG82: 13.86447639 | BI82: Seg1 | BJ82: 2022-10-01 | BK82: 2036-08-11 | BN82: 17.69356844 | BO82: 55.63593339 | BP82: 0.03559206023 | BQ82: True | BR82: 0.75 | BS82: 0.75 | BT82: 1 | BU82: 1 | BV82: 0 | BW82: 1 | BX82: TESLA 5-17-20WH | BY82: 82 | BZ82: 35-091-21827-0000 | CA82: 35091218270000 | CB82: 044414 | CC82: 269133 | CD82: 00082 | CE82: 23500114419 | CG82: A61BE2A680924536831000082
A83: TESLA 4-17-20WH | B83: A61BE2A680924536831200083 | C83: default | D83: TxWells | E83: All Cases | F83: Proved | G83: Producing | H83: SCIPIO NORTHWEST | I83: WOODFORD | J83: MCINTOSH | K83: OK | L83: CALYX ENERGY III LLC | M83: 83 | N83: 35091218280000 | O83: 35.17637 | P83: -95.95564 | Q83: 0 | R83: 15445 | S83: N 8.0/E 13.0/SEC 8.0 SWNWSWSE | T83: 0 | U83: 0 | V83: Standard Case | W83: Gas | X83: 0.1219472986 | Y83: 1074.331938 | Z83: 0 | AA83: 0 | AB83: 0.09146047396 | AC83: 805.7489536 | AD83: 0 | AE83: Mbbl | AF83: MMcf | AG83: bbl | AH83: 76.107 | AI83: 4.706 | AJ83: 0 | AK83: 6.960823003 | AL83: 3791.538907 | AM83: 0 | AN83: 3798.49973 | AO83: 0.3658418958 | AP83: 1208.62343 | AQ83: 0 | AR83: 1208.989272 | AS83: 804.3145027 | AT83: 388.8245045 | AU83: 2402.128279 | AV83: 0 | AW83: 269.5035558 | AX83: 0 | AY83: 50 | AZ83: 50 | BA83: 50 | BB83: 0 | BC83: 1076.867894 | BD83: 846.6806674 | BE83: 10 | BF83: M$ | BG83: 15.76728268 | BI83: Seg1 | BJ83: 2022-10-01 | BK83: 2038-07-07 | BN83: 22.53735789 | BO83: 82.38758886 | BP83: 0.02464065708 | BQ83: True | BR83: 0.75 | BS83: 0.75 | BT83: 1 | BU83: 1 | BV83: 0 | BW83: 1 | BX83: TESLA 4-17-20WH | BY83: 83 | BZ83: 35-091-21828-0000 | CA83: 35091218280000 | CB83: 044414 | CC83: 269133 | CD83: 00083 | CE83: 23500114420 | CG83: A61BE2A680924536831200083
A84: TESLA 3-17-20WH | B84: A61BE2A680924536831300084 | C84: default | D84: TxWells | E84: All Cases | F84: Proved | G84: Producing | H84: SCIPIO NORTHWEST | I84: WOODFORD | J84: MCINTOSH | K84: OK | L84: CALYX ENERGY III LLC | M84: 84 | N84: 35091218290000 | O84: 35.17637 | P84: -95.95569 | Q84: 0 | R84: 15632 | S84: N 8.0/E 13.0/SEC 8.0 SWNWSWSE | T84: 0 | U84: 0 | V84: Standard Case | W84: Gas | X84: 0.007440043467 | Y84: 1498.78076 | Z84: 0 | AA84: 0 | AB84: 0.0055800326 | AC84: 1124.08557 | AD84: 0 | AE84: Mbbl | AF84: MMcf | AG84: bbl | AH84: 84.503 | AI84: 4.767 | AJ84: 0 | AK84: 0.4715301833 | AL84: 5358.775157 | AM84: 0 | AN84: 5359.246687 | AO84: 0.0223201304 | AP84: 1686.128355 | AQ84: 0 | AR84: 1686.150675 | AS84: 1048.831719 | AT84: 507.0298645 | AU84: 3242.012258 | AV84: 0 | AW84: 380.2385524 | AX84: 0 | AY84: 50 | AZ84: 50 | BA84: 50 | BB84: 0 | BC84: 1686.995876 | BD84: 1206.961804 | BE84: 10 | BF84: M$ | BG84: 20.55578371 | BI84: Seg1 | BJ84: 2022-10-01 | BK84: 2043-04-21 | BN84: 34.73991753 | BO84: 187.9098973 | BP84: 0.01368925394 | BQ84: True | BR84: 0.75 | BS84: 0.75 | BT84: 1 | BU84: 1 | BV84: 0 | BW84: 1 | BX84: TESLA 3-17-20WH | BY84: 84 | BZ84: 35-091-21829-0000 | CA84: 35091218290000 | CB84: 044414 | CC84: 269133 | CD84: 00084 | CE84: 23500114421 | CG84: A61BE2A680924536831300084
A85: HAMILTON 4-14-26WH | B85: A61BE2A680924536831700085 | C85: default | D85: TxWells | E85: All Cases | F85: Proved | G85: Producing | H85: CARSON | I85: WOODFORD / MAYES | J85: HUGHES | K85: OK | L85: CALYX ENERGY III LLC | M85: 85 | N85: 35063249110000 | O85: 35.16144 | P85: -96.01261 | Q85: 0 | R85: 15850 | S85: N 8.0/E 12.0/SEC 14.0 SW | T85: 0 | U85: 0 | V85: Standard Case | W85: Gas | X85: 1.053898871 | Y85: 1102.914587 | Z85: 0 | AA85: 0 | AB85: 0.7904241535 | AC85: 827.18594 | AD85: 0 | AE85: Mbbl | AF85: MMcf | AG85: bbl | AH85: 72.688 | AI85: 4.65 | AJ85: 0 | AK85: 57.45411548 | AL85: 3846.2998 | AM85: 0 | AN85: 3903.753915 | AO85: 3.161696614 | AP85: 1240.77891 | AQ85: 0 | AR85: 1243.940607 | AS85: 331.3934107 | AT85: 160.2033511 | AU85: 1735.537368 | AV85: 0 | AW85: 276.9713403 | AX85: 0 | AY85: 50 | AZ85: 50 | BA85: 50 | BB85: 0 | BC85: 1841.245206 | BD85: 1610.136579 | BE85: 10 | BF85: M$ | BG85: 6.499657769 | BI85: Seg1 | BJ85: 2022-10-01 | BK85: 2029-03-31 | BN85: 37.82490413 | BO85: 62.5008606 | BP85: 0.02737850787 | BQ85: True | BR85: 0.75 | BS85: 0.75 | BT85: 1 | BU85: 1 | BV85: 0 | BW85: 1 | BX85: HAMILTON 4-14-26WH | BY85: 85 | BZ85: 35-063-24911-0000 | CA85: 35063249110000 | CB85: 008500 | CC85: 269133 | CD85: 00085 | CE85: 23500114424 | CG85: A61BE2A680924536831700085
A86: HAMILTON 3-14-26WH | B86: A61BE2A680924536832100086 | C86: default | D86: TxWells | E86: All Cases | F86: Proved | G86: Producing | H86: CARSON | I86: WOODFORD / MAYES | J86: HUGHES | K86: OK | L86: CALYX ENERGY III LLC | M86: 86 | N86: 35063249120000 | O86: 35.16137 | P86: -96.01258 | Q86: 0 | R86: 15863 | S86: N 8.0/E 12.0/SEC 14.0 SW | T86: 0 | U86: 0 | V86: Standard Case | W86: Gas | X86: 0 | Y86: 485.2790184 | Z86: 0 | AA86: 0 | AB86: 0 | AC86: 363.9592638 | AD86: 0 | AE86: Mbbl | AF86: MMcf | AG86: bbl | AH86: 0 | AI86: 4.589 | AJ86: 0 | AK86: 0 | AL86: 1670.310896 | AM86: 0 | AN86: 1670.310896 | AO86: 0 | AP86: 545.9388957 | AQ86: 0 | AR86: 545.9388957 | AS86: 331.3934107 | AT86: 160.2033511 | AU86: 1037.535657 | AV86: 0 | AW86: 118.5085581 | AX86: 0 | AY86: 50 | AZ86: 50 | BA86: 50 | BB86: 0 | BC86: 464.2666802 | BD86: 416.0822072 | BE86: 10 | BF86: M$ | BG86: 6.499657769 | BI86: Seg1 | BJ86: 2022-10-01 | BK86: 2029-03-31 | BN86: 10.2853336 | BO86: 16.89269765 | BP86: 0.09582477755 | BQ86: True | BR86: 0.75 | BS86: 0.75 | BT86: 1 | BU86: 1 | BV86: 0 | BW86: 1 | BX86: HAMILTON 3-14-26WH | BY86: 86 | BZ86: 35-063-24912-0000 | CA86: 35063249120000 | CB86: 008500 | CC86: 269133 | CD86: 00086 | CE86: 23500114425 | CG86: A61BE2A680924536832100086
A87: HAMILTON 2-14-26WH | B87: A61BE2A680924536832300087 | C87: default | D87: TxWells | E87: All Cases | F87: Proved | G87: Producing | H87: CARSON | I87: WOODFORD | J87: HUGHES | K87: OK | L87: CALYX ENERGY III LLC | M87: 87 | N87: 35063249130000 | O87: 35.16136 | P87: -96.01253 | Q87: 0 | R87: 15852 | S87: N 8.0/E 12.0/SEC 14.0 SW | T87: 0 | U87: 0 | V87: Standard Case | W87: Gas | X87: 0 | Y87: 1761.161389 | Z87: 0 | AA87: 0 | AB87: 0 | AC87: 1320.871042 | AD87: 0 | AE87: Mbbl | AF87: MMcf | AG87: bbl | AH87: 0 | AI87: 4.791 | AJ87: 0 | AK87: 0 | AL87: 6328.267713 | AM87: 0 | AN87: 6328.267713 | AO87: 0 | AP87: 1981.306563 | AQ87: 0 | AR87: 1981.306563 | AS87: 1182.13314 | AT87: 571.4708994 | AU87: 3734.910602 | AV87: 0 | AW87: 448.9905942 | AX87: 0 | AY87: 50 | AZ87: 50 | BA87: 50 | BB87: 0 | BC87: 2094.366517 | BD87: 1441.495867 | BE87: 10 | BF87: M$ | BG87: 23.16495551 | BI87: Seg1 | BJ87: 2022-10-01 | BK87: 2045-11-29 | BN87: 42.88733033 | BO87: 290.4659778 | BP87: 0.008213552361 | BQ87: True | BR87: 0.75 | BS87: 0.75 | BT87: 1 | BU87: 1 | BV87: 0 | BW87: 1 | BX87: HAMILTON 2-14-26WH | BY87: 87 | BZ87: 35-063-24913-0000 | CA87: 35063249130000 | CB87: 008500 | CC87: 269133 | CD87: 00087 | CE87: 23500114426 | CG87: A61BE2A680924536832300087
A88: FRANKLIN 2-12-24WH | B88: A61BE2A680924536832400088 | C88: default | D88: TxWells | E88: All Cases | F88: Proved | G88: Producing | H88: CARSON EAST | I88: WOODFORD | J88: HUGHES | K88: OK | L88: CALYX ENERGY III LLC | M88: 88 | N88: 35063249170000 | O88: 35.17952 | P88: -95.98952 | Q88: 0 | R88: 15500 | S88: N 8.0/E 12.0/SEC 12.0 NESWNWSE | T88: 0 | U88: 0 | V88: Standard Case | W88: Gas | X88: 0 | Y88: 271.523269 | Z88: 0 | AA88: 0 | AB88: 0 | AC88: 203.6424517 | AD88: 0 | AE88: Mbbl | AF88: MMcf | AG88: bbl | AH88: 0 | AI88: 4.909 | AJ88: 0 | AK88: 0 | AL88: 999.5944805 | AM88: 0 | AN88: 999.5944805 | AO88: 0 | AP88: 305.4636776 | AQ88: 0 | AR88: 305.4636776 | AS88: 105.2547776 | AT88: 50.8826294 | AU88: 461.6010846 | AV88: 0 | AW88: 70.92122839 | AX88: 0 | AY88: 50 | AZ88: 50 | BA88: 50 | BB88: 0 | BC88: 417.0721675 | BD88: 401.9332252 | BE88: 10 | BF88: M$ | BG88: 2.072553046 | BI88: Seg1 | BJ88: 2022-10-01 | BK88: 2024-10-26 | BN88: 9.34144335 | BO88: 10.87875825 | BP88: 0.06844626968 | BQ88: True | BR88: 0.75 | BS88: 0.75 | BT88: 1 | BU88: 1 | BV88: 0 | BW88: 1 | BX88: FRANKLIN 2-12-24WH | BY88: 88 | BZ88: 35-063-24917-0000 | CA88: 35063249170000 | CB88: 008505 | CC88: 269133 | CD88: 00088 | CE88: 23500114445 | CG88: A61BE2A680924536832400088
A89: FRANKLIN 3-12-24WH | B89: A61BE2A680924536832600089 | C89: default | D89: TxWells | E89: All Cases | F89: Proved | G89: Producing | H89: CARSON EAST | I89: WOODFORD | J89: HUGHES | K89: OK | L89: CALYX ENERGY III LLC | M89: 89 | N89: 35063249160000 | O89: 35.17952 | P89: -95.98957 | Q89: 0 | R89: 16322 | S89: N 8.0/E 12.0/SEC 12.0 NESWNWSE | T89: 0 | U89: 0 | V89: Standard Case | W89: Gas | X89: 5.463797225 | Y89: 1772.081507 | Z89: 0 | AA89: 0 | AB89: 4.097847919 | AC89: 1329.06113 | AD89: 0 | AE89: Mbbl | AF89: MMcf | AG89: bbl | AH89: 63.568 | AI89: 4.788 | AJ89: 0 | AK89: 260.4904523 | AL89: 6363.429086 | AM89: 0 | AN89: 6623.919538 | AO89: 16.39139167 | AP89: 1993.591695 | AQ89: 0 | AR89: 2009.983087 | AS89: 1177.282629 | AT89: 569.1260489 | AU89: 3756.391765 | AV89: 0 | AW89: 469.9670912 | AX89: 0 | AY89: 50 | AZ89: 50 | BA89: 50 | BB89: 0 | BC89: 2347.560682 | BD89: 1626.322091 | BE89: 10 | BF89: M$ | BG89: 23.08008214 | BI89: Seg1 | BJ89: 2022-10-01 | BK89: 2045-10-29 | BN89: 47.95121364 | BO89: 324.8321447 | BP89: 0.008213552361 | BQ89: True | BR89: 0.75 | BS89: 0.75 | BT89: 1 | BU89: 1 | BV89: 0 | BW89: 1 | BX89: FRANKLIN 3-12-24WH | BY89: 89 | BZ89: 35-063-24916-0000 | CA89: 35063249160000 | CB89: 008505 | CC89: 269133 | CD89: 00089 | CE89: 23500114446 | CG89: A61BE2A680924536832600089
A90: FRANKLIN 4-12-24WH | B90: A61BE2A680924536832900090 | C90: default | D90: TxWells | E90: All Cases | F90: Proved | G90: Producing | H90: CARSON EAST | I90: WOODFORD | J90: HUGHES | K90: OK | L90: CALYX ENERGY III LLC | M90: 90 | N90: 35063249150000 | O90: 35.17939 | P90: -95.98961 | Q90: 0 | R90: 16714 | S90: N 8.0/E 12.0/SEC 12.0 NESWNWSE | T90: 0 | U90: 0 | V90: Standard Case | W90: Gas | X90: 0.05049284949 | Y90: 1060.963499 | Z90: 0 | AA90: 0 | AB90: 0.03786963712 | AC90: 795.722624 | AD90: 0 | AE90: Mbbl | AF90: MMcf | AG90: bbl | AH90: 80.185 | AI90: 4.598 | AJ90: 0 | AK90: 3.036563603 | AL90: 3658.417213 | AM90: 0 | AN90: 3661.453777 | AO90: 0.1514785485 | AP90: 1193.583936 | AQ90: 0 | AR90: 1193.735415 | AS90: 433.4654107 | AT90: 209.5473511 | AU90: 1836.748176 | AV90: 0 | AW90: 259.7801454 | AX90: 0 | AY90: 50 | AZ90: 50 | BA90: 50 | BB90: 0 | BC90: 1514.925455 | BD90: 1272.613174 | BE90: 10 | BF90: M$ | BG90: 8.498288843 | BI90: Seg1 | BJ90: 2022-10-01 | BK90: 2031-03-31 | BN90: 31.2985091 | BO90: 60.31365251 | BP90: 0.03559206023 | BQ90: True | BR90: 0.75 | BS90: 0.75 | BT90: 1 | BU90: 1 | BV90: 0 | BW90: 1 | BX90: FRANKLIN 4-12-24WH | BY90: 90 | BZ90: 35-063-24915-0000 | CA90: 35063249150000 | CB90: 008505 | CC90: 269133 | CD90: 00090 | CE90: 23500114447 | CG90: A61BE2A680924536832900090
A91: KENNEDY 1-31-30WH | B91: A61BE2A680924536833100091 | C91: default | D91: TxWells | E91: All Cases | F91: Proved | G91: Producing | H91: DUSTIN | I91: WOODFORD | J91: HUGHES | K91: OK | L91: CALYX ENERGY III LLC | M91: 91 | N91: 35063249200000 | O91: 35.20217 | P91: -96.07986 | Q91: 0 | R91: 15182 | S91: N 8.0/E 12.0/SEC 6.0 NWNWNWNE | T91: 0 | U91: 0 | V91: Standard Case | W91: Gas | X91: 0.1796456568 | Y91: 1388.705275 | Z91: 0 | AA91: 0 | AB91: 0.1347342426 | AC91: 1041.528956 | AD91: 0 | AE91: Mbbl | AF91: MMcf | AG91: bbl | AH91: 79.441 | AI91: 4.67 | AJ91: 0 | AK91: 10.70346641 | AL91: 4864.282641 | AM91: 0 | AN91: 4874.986107 | AO91: 0.5389369705 | AP91: 1562.293434 | AQ91: 0 | AR91: 1562.832371 | AS91: 700.5835031 | AT91: 338.6785051 | AU91: 2602.094379 | AV91: 0 | AW91: 345.8802643 | AX91: 0 | AY91: 50 | AZ91: 50 | BA91: 50 | BB91: 0 | BC91: 1877.011464 | BD91: 1533.255893 | BE91: 10 | BF91: M$ | BG91: 13.73305955 | BI91: Seg1 | BJ91: 2022-10-01 | BK91: 2036-06-24 | BN91: 38.54022928 | BO91: 121.3577516 | BP91: 0.01642710472 | BQ91: True | BR91: 0.75 | BS91: 0.75 | BT91: 1 | BU91: 1 | BV91: 0 | BW91: 1 | BX91: KENNEDY 1-31-30WH | BY91: 91 | BZ91: 35-063-24920-0000 | CA91: 35063249200000 | CB91: 014390 | CC91: 269133 | CD91: 00091 | CE91: 23500114449 | CG91: A61BE2A680924536833100091
A92: KENNEDY 2-31-30WH | B92: A61BE2A680924536833200092 | C92: default | D92: TxWells | E92: All Cases | F92: Proved | G92: Producing | H92: DUSTIN | I92: WOODFORD | J92: HUGHES | K92: OK | L92: CALYX ENERGY III LLC | M92: 92 | N92: 35063249190000 | O92: 35.20217 | P92: -96.07981 | Q92: 0 | R92: 15328 | S92: N 8.0/E 12.0/SEC 6.0 NWNWNWNE | T92: 0 | U92: 0 | V92: Standard Case | W92: Gas | X92: 0.16439136 | Y92: 822.145785 | Z92: 0 | AA92: 0 | AB92: 0.12329352 | AC92: 616.6093387 | AD92: 0 | AE92: Mbbl | AF92: MMcf | AG92: bbl | AH92: 79.537 | AI92: 4.631 | AJ92: 0 | AK92: 9.80642537 | AL92: 2855.574737 | AM92: 0 | AN92: 2865.381163 | AO92: 0.4931740799 | AP92: 924.9140081 | AQ92: 0 | AR92: 925.4071822 | AS92: 382.4294107 | AT92: 184.8753511 | AU92: 1492.711944 | AV92: 0 | AW92: 203.2987935 | AX92: 0 | AY92: 50 | AZ92: 50 | BA92: 50 | BB92: 0 | BC92: 1119.370425 | BD92: 981.895651 | BE92: 10 | BF92: M$ | BG92: 7.498973306 | BI92: Seg1 | BJ92: 2022-10-01 | BK92: 2030-03-31 | BN92: 23.3874085 | BO92: 42.42892856 | BP92: 0.03559206023 | BQ92: True | BR92: 0.75 | BS92: 0.75 | BT92: 1 | BU92: 1 | BV92: 0 | BW92: 1 | BX92: KENNEDY 2-31-30WH | BY92: 92 | BZ92: 35-063-24919-0000 | CA92: 35063249190000 | CB92: 014390 | CC92: 269133 | CD92: 00092 | CE92: 23500114450 | CG92: A61BE2A680924536833200092
A93: KENNEDY 3-31-30WH | B93: A61BE2A680924536833400093 | C93: default | D93: TxWells | E93: All Cases | F93: Proved | G93: Producing | H93: DUSTIN | I93: WOODFORD | J93: HUGHES | K93: OK | L93: CALYX ENERGY III LLC | M93: 93 | N93: 35063249180000 | O93: 35.20217 | P93: -96.07976 | Q93: 0 | R93: 15342 | S93: N 8.0/E 12.0/SEC 6.0 NWNWNWNE | T93: 0 | U93: 0 | V93: Standard Case | W93: Gas | X93: 0.09873353969 | Y93: 60.29304003 | Z93: 0 | AA93: 0 | AB93: 0.07405015477 | AC93: 45.21978003 | AD93: 0 | AE93: Mbbl | AF93: MMcf | AG93: bbl | AH93: 82.422 | AI93: 5.043 | AJ93: 0 | AK93: 6.103342897 | AL93: 228.0542215 | AM93: 0 | AN93: 234.1575644 | AO93: 0.2962006191 | AP93: 67.82967004 | AQ93: 0 | AR93: 68.12587066 | AS93: 44.39943817 | AT93: 21.46373028 | AU93: 133.9890391 | AV93: 0 | AW93: 16.61347919 | AX93: 0 | AY93: 50 | AZ93: 50 | BA93: 50 | BB93: 0 | BC93: 33.55504606 | BD93: 35.623301 | BE93: 10 | BF93: M$ | BG93: 0.8788501027 | BI93: Seg1 | BJ93: 2022-10-01 | BK93: 2023-08-17 | BN93: 1.671100921 | BO93: 1.777419743 | BP93: 0.2628336756 | BQ93: True | BR93: 0.75 | BS93: 0.75 | BT93: 1 | BU93: 1 | BV93: 0 | BW93: 1 | BX93: KENNEDY 3-31-30WH | BY93: 93 | BZ93: 35-063-24918-0000 | CA93: 35063249180000 | CB93: 014390 | CC93: 269133 | CD93: 00093 | CE93: 23500114451 | CG93: A61BE2A680924536833400093
A94: RAPUNZEL 1-15-22WH | B94: A61BE2A680924536833500094 | C94: default | D94: TxWells | E94: All Cases | F94: Proved | G94: Producing | H94: CARSON EAST | I94: WOODFORD / MAYES | J94: HUGHES | K94: OK | L94: CALYX ENERGY III LLC | M94: 94 | N94: 35063249210000 | O94: 35.1748 | P94: -96.02574 | Q94: 0 | R94: 15510 | S94: N 8.0/E 12.0/SEC 10.0 SESWSWSE | T94: 0 | U94: 0 | V94: Standard Case | W94: Gas | X94: 0.1292903374 | Y94: 504.3148368 | Z94: 0 | AA94: 0 | AB94: 0.09696775308 | AC94: 378.2361276 | AD94: 0 | AE94: Mbbl | AF94: MMcf | AG94: bbl | AH94: 80.504 | AI94: 4.867 | AJ94: 0 | AK94: 7.806294161 | AL94: 1841.04235 | AM94: 0 | AN94: 1848.848644 | AO94: 0.3878710123 | AP94: 567.3541914 | AQ94: 0 | AR94: 567.7420624 | AS94: 139.7464189 | AT94: 67.55669815 | AU94: 775.0451795 | AV94: 0 | AW94: 131.1758113 | AX94: 0 | AY94: 50 | AZ94: 50 | BA94: 50 | BB94: 0 | BC94: 892.6276533 | BD94: 842.8085493 | BE94: 10 | BF94: M$ | BG94: 2.746064339 | BI94: Seg1 | BJ94: 2022-10-01 | BK94: 2025-06-29 | BN94: 18.85255307 | BO94: 23.15166643 | BP94: 0.03832991102 | BQ94: True | BR94: 0.75 | BS94: 0.75 | BT94: 1 | BU94: 1 | BV94: 0 | BW94: 1 | BX94: RAPUNZEL 1-15-22WH | BY94: 94 | BZ94: 35-063-24921-0000 | CA94: 35063249210000 | CB94: 008505 | CC94: 269133 | CD94: 00094 | CE94: 23500114462 | CG94: A61BE2A680924536833500094
A95: RAPUNZEL 2-15-22WH | B95: A61BE2A680924536833700095 | C95: default | D95: TxWells | E95: All Cases | F95: Proved | G95: Producing | H95: CARSON EAST | I95: WOODFORD / MAYES | J95: HUGHES | K95: OK | L95: CALYX ENERGY III LLC | M95: 95 | N95: 35063249220000 | O95: 35.1748 | P95: -96.02579 | Q95: 0 | R95: 15362 | S95: N 8.0/E 12.0/SEC 10.0 SESWSWSE | T95: 0 | U95: 0 | V95: Standard Case | W95: Gas | X95: 0.1823498828 | Y95: 730.9463782 | Z95: 0 | AA95: 0 | AB95: 0.1367624121 | AC95: 548.2097837 | AD95: 0 | AE95: Mbbl | AF95: MMcf | AG95: bbl | AH95: 80.055 | AI95: 4.825 | AJ95: 0 | AK95: 10.94856681 | AL95: 2644.838167 | AM95: 0 | AN95: 2655.786734 | AO95: 0.5470496483 | AP95: 822.3146755 | AQ95: 0 | AR95: 822.8617252 | AS95: 178.2854107 | AT95: 86.18735113 | AU95: 1087.334487 | AV95: 0 | AW95: 188.4280688 | AX95: 0 | AY95: 50 | AZ95: 50 | BA95: 50 | BB95: 0 | BC95: 1330.024179 | BD95: 1238.117024 | BE95: 10 | BF95: M$ | BG95: 3.498973306 | BI95: Seg1 | BJ95: 2022-10-01 | BK95: 2026-03-31 | BN95: 27.60048357 | BO95: 36.07535663 | BP95: 0.02737850787 | BQ95: True | BR95: 0.75 | BS95: 0.75 | BT95: 1 | BU95: 1 | BV95: 0 | BW95: 1 | BX95: RAPUNZEL 2-15-22WH | BY95: 95 | BZ95: 35-063-24922-0000 | CA95: 35063249220000 | CB95: 008505 | CC95: 269133 | CD95: 00095 | CE95: 23500114463 | CG95: A61BE2A680924536833700095
A96: RAPUNZEL 3-15-22WH | B96: A61BE2A680924536833900096 | C96: default | D96: TxWells | E96: All Cases | F96: Proved | G96: Producing | H96: CARSON EAST | I96: WOODFORD | J96: HUGHES | K96: OK | L96: CALYX ENERGY III LLC | M96: 96 | N96: 35063249230000 | O96: 35.1748 | P96: -96.02584 | Q96: 0 | R96: 15476 | S96: N 8.0/E 12.0/SEC 10.0 SESWSWSE | T96: 0 | U96: 0 | V96: Standard Case | W96: Gas | X96: 0.632111376 | Y96: 1053.51896 | Z96: 0 | AA96: 0 | AB96: 0.474083532 | AC96: 790.13922 | AD96: 0 | AE96: Mbbl | AF96: MMcf | AG96: bbl | AH96: 75.937 | AI96: 4.748 | AJ96: 0 | AK96: 36.00048976 | AL96: 3751.440653 | AM96: 0 | AN96: 3787.441143 | AO96: 1.896334128 | AP96: 1185.20883 | AQ96: 0 | AR96: 1187.105164 | AS96: 232.6749055 | AT96: 112.4805092 | AU96: 1532.260579 | AV96: 0 | AW96: 268.7189491 | AX96: 0 | AY96: 50 | AZ96: 50 | BA96: 50 | BB96: 0 | BC96: 1936.461615 | BD96: 1755.851002 | BE96: 10 | BF96: M$ | BG96: 4.563997262 | BI96: Seg1 | BJ96: 2022-10-01 | BK96: 2027-04-24 | BN96: 39.7292323 | BO96: 56.30823562 | BP96: 0.0219028063 | BQ96: True | BR96: 0.75 | BS96: 0.75 | BT96: 1 | BU96: 1 | BV96: 0 | BW96: 1 | BX96: RAPUNZEL 3-15-22WH | BY96: 96 | BZ96: 35-063-24923-0000 | CA96: 35063249230000 | CB96: 008505 | CC96: 269133 | CD96: 00096 | CE96: 23500114464 | CG96: A61BE2A680924536833900096

Sheet InvOneLiner
A1: PHDWinID | B1: CaseName | C1: GrossTan | D1: GrossInTan | E1: NetTan | F1: NetInTan | G1: RskInfGrossTan | H1: RskInfGrossInTan | I1: RskInfNetTan | J1: RskInfNetInTan | K1: RskNetTan | L1: RskNetInTan
A2: 50001 | B2: Grand Total
A3: 1 | B3: CHITWOOD NORTHWEST UNIT
A4: 2 | B4: SANDRA FIU 03041H-9X
A5: 3 | B5: SANDRA 03043H-9X
A6: 4 | B6: SANDRA FIU 03042H-9X
A7: 5 | B7: THOMAS ESTATE
A8: 6 | B8: HARWELL 1-33
A9: 7 | B9: HOLINSWORTH 3H-9X
A10: 8 | B10: HOLINSWORTH 7H-9X
A11: 9 | B11: HOLINSWORTH 5H-9X
A12: 10 | B12: HOLINSWORTH 2H-9X
A13: 11 | B13: SHIRLEY 1-32H
A14: 12 | B14: STEPHANIE 1-6H
A15: 13 | B15: RAUH 1-22H
A16: 14 | B16: FLOYD 1-8
A17: 15 | B17: CHARLOTTE 1-16
A18: 16 | B18: ATCHISON 1-31H
A19: 17 | B19: KENNY 1-24HA
A20: 18 | B20: RAUH 2-22H
A21: 19 | B21: JONES 1-4
A22: 20 | B22: HOLINSWORTH 8H-9X
A23: 21 | B23: COTTON 1-17-16XH
A24: 22 | B24: NANCY 1-4
A25: 23 | B25: JONES 2-4
A26: 24 | B26: ERIN 1
A27: 25 | B27: HOLINSWORTH 1H-16
A28: 26 | B28: SPARKS
A29: 27 | B29: MARY GRACE
A30: 28 | B30: HOLINSWORTH 4H-9X
A31: 29 | B31: HOLINSWORTH 6H-9X
A32: 30 | B32: WILLIAMS 3H-7X
A33: 31 | B33: EVANS 1-21
A34: 32 | B34: WILLIAMS 4H-7X
A35: 33 | B35: WILLIAMS 6H-7X
A36: 34 | B36: WILLIAMS 2H-7X
A37: 35 | B37: WILLIAMS 1H-7X
A38: 36 | B38: WILEY BROTHERS 1-20
A39: 37 | B39: JANET 1-16
A40: 38 | B40: WILLIAMS 5H-7X
A41: 39 | B41: HAYS N 3H-5X
A42: 40 | B42: HAYS N 6H-5X
A43: 41 | B43: COTTRELL 1-18
A44: 42 | B44: HURLEY 1-13
A45: 43 | B45: HAYS N 5H-5X
A46: 44 | B46: HAYS N 4H-5X
A47: 45 | B47: HAYS N 2H-5X
A48: 46 | B48: THE STERLING YULE SAND UNIT
A49: 47 | B49: GLADYS 1-12
A50: 48 | B50: FLOOD 1-11
A51: 49 | B51: HAYS N 7H-5XR
A52: 50 | B52: HAYS 1H-5XX
A53: 51 | B53: JACK 1-5H
A54: 52 | B54: JANE 1-22H
A55: 53 | B55: HAYS N 8H-5X
A56: 54 | B56: SISKO 1-8-5XH
A57: 55 | B57: LLOYD 1-11
A58: 56 | B58: WILLIAM 1-11
A59: 57 | B59: BOBBY 1-27
A60: 58 | B60: ACTION JACKSON 0404 1-34-27MX
A61: 59 | B61: WHITNEY 1-27-22MX
A62: 60 | B62: HILDENBRANDT 1-31
A63: 61 | B63: PARR 1-22
A64: 62 | B64: HILDERBRANDT 2-31
A65: 63 | B65: BRENT 6 31 MD 1H
A66: 64 | B66: JOHNSON 1
A67: 65 | B67: JOHN 1-20
A68: 66 | B68: BLOOMFIELD A 2
A69: 67 | B69: TADLOCK 1-33
A70: 68 | B70: GRAY LEONARD 1-19
A71: 69 | B71: KNIGHT 1-26
A72: 70 | B72: MANN 1-17
A73: 71 | B73: O W J
A74: 72 | B74: FRANKENBERG E 2-A
A75: 73 | B75: DOWNING 1
A76: 74 | B76: GRAY 1
A77: 75 | B77: WILKINS 1-27
A78: 76 | B78: SPEYSIDE 1-20-19XH
A79: 77 | B79: CORONA 1-31-30MX
A80: 78 | B80: ELIANA 5 32 NC 1H
A81: 79 | B81: JAMES TRUST 1-24-23XH

Sheet PriceQC
A1: CaseName | B1: Field | C1: AsofOilPrice | D1: OilPriceUnits | E1: AsofGasPrice | F1: GasPriceUnits | G1: OilDiffPercent | H1: OilDiffValue | I1: GasDiffPercent | J1: GasDiffValue | K1: GasPriceModel | L1: OilPriceModel | M1: BTU
A2: CHITWOOD NORTHWEST UNIT | B2: CHITWOOD NORTHWEST | C2: 71.02 | D2: $/bbl | E2: 6.245 | F2: $/Mcf | G2: 0 | H2: 0 | I2: 0 | J2: 0 | K2: NYMEX 12 09 2022[6.245] | L2: NYMEX 12 09 2022[71.02] | M2: 0
A3: SANDRA FIU 03041H-9X | B3: GOLDEN TREND | C3: 71.02 | D3: $/bbl | E3: 6.245 | F3: $/Mcf | G3: 0 | H3: 0 | I3: 0 | J3: 0 | K3: NYMEX 12 09 2022[6.245] | L3: NYMEX 12 09 2022[71.02] | M3: 0
A4: SANDRA 03043H-9X | B4: GOLDEN TREND | C4: 71.02 | D4: $/bbl | E4: 6.245 | F4: $/Mcf | G4: 0 | H4: 0 | I4: 0 | J4: 0 | K4: NYMEX 12 09 2022[6.245] | L4: NYMEX 12 09 2022[71.02] | M4: 0
A5: SANDRA FIU 03042H-9X | B5: GOLDEN TREND | C5: 71.02 | D5: $/bbl | E5: 6.245 | F5: $/Mcf | G5: 0 | H5: 0 | I5: 0 | J5: 0 | K5: NYMEX 12 09 2022[6.245] | L5: NYMEX 12 09 2022[71.02] | M5: 0
A6: THOMAS ESTATE | B6: GOLDEN TREND | C6: 71.02 | D6: $/bbl | E6: 6.245 | F6: $/Mcf | G6: 0 | H6: 0 | I6: 0 | J6: 0 | K6: NYMEX 12 09 2022[6.245] | L6: NYMEX 12 09 2022[71.02] | M6: 0
A7: HARWELL 1-33 | B7: GOLDEN TREND | C7: 71.02 | D7: $/bbl | E7: 6.245 | F7: $/Mcf | G7: 0 | H7: 0 | I7: 0 | J7: 0 | K7: NYMEX 12 09 2022[6.245] | L7: NYMEX 12 09 2022[71.02] | M7: 0
A8: HOLINSWORTH 3H-9X | B8: GOLDEN TREND | C8: 71.02 | D8: $/bbl | E8: 8.1185 | F8: $/Mcf | G8: 0 | H8: 0 | I8: 0 | J8: 0 | K8: NYMEX 12 09 2022[8.1185] | L8: NYMEX 12 09 2022[71.02] | M8: 1300
A9: HOLINSWORTH 7H-9X | B9: GOLDEN TREND | C9: 71.02 | D9: $/bbl | E9: 8.1185 | F9: $/Mcf | G9: 0 | H9: 0 | I9: 0 | J9: 0 | K9: NYMEX 12 09 2022[8.1185] | L9: NYMEX 12 09 2022[71.02] | M9: 1300
A10: HOLINSWORTH 5H-9X | B10: GOLDEN TREND | C10: 71.02 | D10: $/bbl | E10: 8.1185 | F10: $/Mcf | G10: 0 | H10: 0 | I10: 0 | J10: 0 | K10: NYMEX 12 09 2022[8.1185] | L10: NYMEX 12 09 2022[71.02] | M10: 1300
A11: HOLINSWORTH 2H-9X | B11: GOLDEN TREND | C11: 71.02 | D11: $/bbl | E11: 8.1185 | F11: $/Mcf | G11: 0 | H11: 0 | I11: 0 | J11: 0 | K11: NYMEX 12 09 2022[8.1185] | L11: NYMEX 12 09 2022[71.02] | M11: 1300
A12: SHIRLEY 1-32H | B12: AMORITA | C12: 71.02 | D12: $/bbl | E12: 6.245 | F12: $/Mcf | G12: 0 | H12: 0 | I12: 0 | J12: 0 | K12: NYMEX 12 09 2022[6.245] | L12: NYMEX 12 09 2022[71.02] | M12: 0
A13: STEPHANIE 1-6H | B13: AMORITA | C13: 71.02 | D13: $/bbl | E13: 6.245 | F13: $/Mcf | G13: 0 | H13: 0 | I13: 0 | J13: 0 | K13: NYMEX 12 09 2022[6.245] | L13: NYMEX 12 09 2022[71.02] | M13: 0
A14: RAUH 1-22H | B14: CHEROKEE WEST | C14: 71.02 | D14: $/bbl | E14: 6.245 | F14: $/Mcf | G14: 0 | H14: 0 | I14: 0 | J14: 0 | K14: NYMEX 12 09 2022[6.245] | L14: NYMEX 12 09 2022[71.02] | M14: 0
A15: FLOYD 1-8 | B15: GOLDEN TREND | C15: 71.02 | D15: $/bbl | E15: 6.245 | F15: $/Mcf | G15: 0 | H15: 0 | I15: 0 | J15: 0 | K15: NYMEX 12 09 2022[6.245] | L15: NYMEX 12 09 2022[71.02] | M15: 0
A16: CHARLOTTE 1-16 | B16: GOLDEN TREND | C16: 71.02 | D16: $/bbl | E16: 6.245 | F16: $/Mcf | G16: 0 | H16: 0 | I16: 0 | J16: 0 | K16: NYMEX 12 09 2022[6.245] | L16: NYMEX 12 09 2022[71.02] | M16: 0
A17: ATCHISON 1-31H | B17: AMORITA | C17: 71.02 | D17: $/bbl | E17: 6.245 | F17: $/Mcf | G17: 0 | H17: 0 | I17: 0 | J17: 0 | K17: NYMEX 12 09 2022[6.245] | L17: NYMEX 12 09 2022[71.02] | M17: 0
A18: KENNY 1-24HA | B18: ARNETT SOUTHWEST | C18: 71.02 | D18: $/bbl | E18: 6.245 | F18: $/Mcf | G18: 0 | H18: 0 | I18: 0 | J18: 0 | K18: NYMEX 12 09 2022[6.245] | L18: NYMEX 12 09 2022[71.02] | M18: 0
A19: RAUH 2-22H | B19: CHEROKEE WEST | C19: 71.02 | D19: $/bbl | E19: 6.245 | F19: $/Mcf | G19: 0 | H19: 0 | I19: 0 | J19: 0 | K19: NYMEX 12 09 2022[6.245] | L19: NYMEX 12 09 2022[71.02] | M19: 0
A20: JONES 1-4 | B20: GOLDEN TREND | C20: 71.02 | D20: $/bbl | E20: 6.245 | F20: $/Mcf | G20: 0 | H20: 0 | I20: 0 | J20: 0 | K20: NYMEX 12 09 2022[6.245] | L20: NYMEX 12 09 2022[71.02] | M20: 0
A21: HOLINSWORTH 8H-9X | B21: GOLDEN TREND | C21: 71.02 | D21: $/bbl | E21: 8.1185 | F21: $/Mcf | G21: 0 | H21: 0 | I21: 0 | J21: 0 | K21: NYMEX 12 09 2022[8.1185] | L21: NYMEX 12 09 2022[71.02] | M21: 1300
A22: COTTON 1-17-16XH | B22: KATIE SOUTH | C22: 71.02 | D22: $/bbl | E22: 8.1185 | F22: $/Mcf | G22: 0 | H22: 0 | I22: 0 | J22: 0 | K22: NYMEX 12 09 2022[8.1185] | L22: NYMEX 12 09 2022[71.02] | M22: 1300
A23: NANCY 1-4 | B23: GOLDEN TREND | C23: 71.02 | D23: $/bbl | E23: 6.245 | F23: $/Mcf | G23: 0 | H23: 0 | I23: 0 | J23: 0 | K23: NYMEX 12 09 2022[6.245] | L23: NYMEX 12 09 2022[71.02] | M23: 0
A24: JONES 2-4 | B24: GOLDEN TREND | C24: 71.02 | D24: $/bbl | E24: 6.245 | F24: $/Mcf | G24: 0 | H24: 0 | I24: 0 | J24: 0 | K24: NYMEX 12 09 2022[6.245] | L24: NYMEX 12 09 2022[71.02] | M24: 0
A25: ERIN 1 | B25: FORT SILL | C25: 71.02 | D25: $/bbl | E25: 6.245 | F25: $/Mcf | G25: 0 | H25: 0 | I25: 0 | J25: 0 | K25: NYMEX 12 09 2022[6.245] | L25: NYMEX 12 09 2022[71.02] | M25: 0
A26: HOLINSWORTH 1H-16 | B26: GOLDEN TREND | C26: 71.02 | D26: $/bbl | E26: 8.1185 | F26: $/Mcf | G26: 0 | H26: 0 | I26: 0 | J26: 0 | K26: NYMEX 12 09 2022[8.1185] | L26: NYMEX 12 09 2022[71.02] | M26: 1300
A27: SPARKS | B27: GOLDEN TREND | C27: 71.02 | D27: $/bbl | E27: 7.80625 | F27: $/Mcf | G27: 0 | H27: 0 | I27: 0 | J27: 0 | K27: NYMEX 12 09 2022[7.80625] | L27: NYMEX 12 09 2022[71.02] | M27: 1250
A28: MARY GRACE | B28: GOLDEN TREND | C28: 71.02 | D28: $/bbl | E28: 8.1185 | F28: $/Mcf | G28: 0 | H28: 0 | I28: 0 | J28: 0 | K28: NYMEX 12 09 2022[8.1185] | L28: NYMEX 12 09 2022[71.02] | M28: 1300
A29: HOLINSWORTH 4H-9X | B29: GOLDEN TREND | C29: 71.02 | D29: $/bbl | E29: 8.1185 | F29: $/Mcf | G29: 0 | H29: 0 | I29: 0 | J29: 0 | K29: NYMEX 12 09 2022[8.1185] | L29: NYMEX 12 09 2022[71.02] | M29: 1300
A30: HOLINSWORTH 6H-9X | B30: GOLDEN TREND | C30: 71.02 | D30: $/bbl | E30: 8.1185 | F30: $/Mcf | G30: 0 | H30: 0 | I30: 0 | J30: 0 | K30: NYMEX 12 09 2022[8.1185] | L30: NYMEX 12 09 2022[71.02] | M30: 1300
A31: WILLIAMS 3H-7X | B31: FOSTER | C31: 71.02 | D31: $/bbl | E31: 8.1185 | F31: $/Mcf | G31: 0 | H31: 0 | I31: 0 | J31: 0 | K31: NYMEX 12 09 2022[8.1185] | L31: NYMEX 12 09 2022[71.02] | M31: 1300
A32: EVANS 1-21 | B32: GOLDEN TREND | C32: 71.02 | D32: $/bbl | E32: 8.1185 | F32: $/Mcf | G32: 0 | H32: 0 | I32: 0 | J32: 0 | K32: NYMEX 12 09 2022[8.1185] | L32: NYMEX 12 09 2022[71.02] | M32: 1300
A33: WILLIAMS 4H-7X | B33: FOSTER | C33: 71.02 | D33: $/bbl | E33: 8.1185 | F33: $/Mcf | G33: 0 | H33: 0 | I33: 0 | J33: 0 | K33: NYMEX 12 09 2022[8.1185] | L33: NYMEX 12 09 2022[71.02] | M33: 1300
A34: WILLIAMS 6H-7X | B34: GOLDEN TREND | C34: 71.02 | D34: $/bbl | E34: 6.245 | F34: $/Mcf | G34: 0 | H34: 0 | I34: 0 | J34: 0 | K34: NYMEX 12 09 2022[6.245] | L34: NYMEX 12 09 2022[71.02] | M34: 0
A35: WILLIAMS 2H-7X | B35: FOSTER | C35: 71.02 | D35: $/bbl | E35: 8.1185 | F35: $/Mcf | G35: 0 | H35: 0 | I35: 0 | J35: 0 | K35: NYMEX 12 09 2022[8.1185] | L35: NYMEX 12 09 2022[71.02] | M35: 1300
A36: WILLIAMS 1H-7X | B36: FOSTER | C36: 71.02 | D36: $/bbl | E36: 8.1185 | F36: $/Mcf | G36: 0 | H36: 0 | I36: 0 | J36: 0 | K36: NYMEX 12 09 2022[8.1185] | L36: NYMEX 12 09 2022[71.02] | M36: 1300
A37: WILEY BROTHERS 1-20 | B37: WILDCAT | C37: 71.02 | D37: $/bbl | E37: 6.245 | F37: $/Mcf | G37: 0 | H37: 0 | I37: 0 | J37: 0 | K37: NYMEX 12 09 2022[6.245] | L37: NYMEX 12 09 2022[71.02] | M37: 0
A38: JANET 1-16 | B38: KATIE SOUTH | C38: 71.02 | D38: $/bbl | E38: 8.1185 | F38: $/Mcf | G38: 0 | H38: 0 | I38: 0 | J38: 0 | K38: NYMEX 12 09 2022[8.1185] | L38: NYMEX 12 09 2022[71.02] | M38: 1300
A39: WILLIAMS 5H-7X | B39: GOLDEN TREND | C39: 71.02 | D39: $/bbl | E39: 6.245 | F39: $/Mcf | G39: 0 | H39: 0 | I39: 0 | J39: 0 | K39: NYMEX 12 09 2022[6.245] | L39: NYMEX 12 09 2022[71.02] | M39: 0
A40: HAYS N 3H-5X | B40: GOLDEN TREND | C40: 71.02 | D40: $/bbl | E40: 8.1185 | F40: $/Mcf | G40: 0 | H40: 0 | I40: 0 | J40: 0 | K40: NYMEX 12 09 2022[8.1185] | L40: NYMEX 12 09 2022[71.02] | M40: 1300
A41: HAYS N 6H-5X | B41: GOLDEN TREND | C41: 71.02 | D41: $/bbl | E41: 8.1185 | F41: $/Mcf | G41: 0 | H41: 0 | I41: 0 | J41: 0 | K41: NYMEX 12 09 2022[8.1185] | L41: NYMEX 12 09 2022[71.02] | M41: 1300
A42: COTTRELL 1-18 | B42: KATIE SOUTH | C42: 71.02 | D42: $/bbl | E42: 6.245 | F42: $/Mcf | G42: 0 | H42: 0 | I42: 0 | J42: 0 | K42: NYMEX 12 09 2022[6.245] | L42: NYMEX 12 09 2022[71.02] | M42: 0
A43: HURLEY 1-13 | B43: KATIE SOUTH | C43: 71.02 | D43: $/bbl | E43: 6.245 | F43: $/Mcf | G43: 0 | H43: 0 | I43: 0 | J43: 0 | K43: NYMEX 12 09 2022[6.245] | L43: NYMEX 12 09 2022[71.02] | M43: 0
A44: HAYS N 5H-5X | B44: GOLDEN TREND | C44: 71.02 | D44: $/bbl | E44: 8.1185 | F44: $/Mcf | G44: 0 | H44: 0 | I44: 0 | J44: 0 | K44: NYMEX 12 09 2022[8.1185] | L44: NYMEX 12 09 2022[71.02] | M44: 1300
A45: HAYS N 4H-5X | B45: GOLDEN TREND | C45: 71.02 | D45: $/bbl | E45: 8.1185 | F45: $/Mcf | G45: 0 | H45: 0 | I45: 0 | J45: 0 | K45: NYMEX 12 09 2022[8.1185] | L45: NYMEX 12 09 2022[71.02] | M45: 1300
A46: HAYS N 2H-5X | B46: GOLDEN TREND | C46: 71.02 | D46: $/bbl | E46: 8.1185 | F46: $/Mcf | G46: 0 | H46: 0 | I46: 0 | J46: 0 | K46: NYMEX 12 09 2022[8.1185] | L46: NYMEX 12 09 2022[71.02] | M46: 1300
A47: THE STERLING YULE SAND UNIT | B47: STERLING | C47: 71.02 | D47: $/bbl | E47: 6.245 | F47: $/Mcf | G47: 0 | H47: 0 | I47: 0 | J47: 0 | K47: NYMEX 12 09 2022[6.245] | L47: NYMEX 12 09 2022[71.02] | M47: 0
A48: GLADYS 1-12 | B48: STERLING | C48: 71.02 | D48: $/bbl | E48: 6.245 | F48: $/Mcf | G48: 0 | H48: 0 | I48: 0 | J48: 0 | K48: NYMEX 12 09 2022[6.245] | L48: NYMEX 12 09 2022[71.02] | M48: 1000
A49: FLOOD 1-11 | B49: STERLING WEST | C49: 71.02 | D49: $/bbl | E49: 6.245 | F49: $/Mcf | G49: 0 | H49: 0 | I49: 0 | J49: 0 | K49: NYMEX 12 09 2022[6.245] | L49: NYMEX 12 09 2022[71.02] | M49: 0
A50: HAYS N 7H-5XR | B50: PURDY SOUTHEAST | C50: 71.02 | D50: $/bbl | E50: 8.1185 | F50: $/Mcf | G50: 0 | H50: 0 | I50: 0 | J50: 0 | K50: NYMEX 12 09 2022[8.1185] | L50: NYMEX 12 09 2022[71.02] | M50: 1300
A51: HAYS 1H-5XX | B51: FOSTER | C51: 71.02 | D51: $/bbl | E51: 8.1185 | F51: $/Mcf | G51: 0 | H51: 0 | I51: 0 | J51: 0 | K51: NYMEX 12 09 2022[8.1185] | L51: NYMEX 12 09 2022[71.02] | M51: 1300
A52: JACK 1-5H | B52: AMORITA | C52: 71.02 | D52: $/bbl | E52: 6.245 | F52: $/Mcf | G52: 0 | H52: 0 | I52: 0 | J52: 0 | K52: NYMEX 12 09 2022[6.245] | L52: NYMEX 12 09 2022[71.02] | M52: 0
A53: JANE 1-22H | B53: CHEROKEE WEST | C53: 71.02 | D53: $/bbl | E53: 6.245 | F53: $/Mcf | G53: 0 | H53: 0 | I53: 0 | J53: 0 | K53: NYMEX 12 09 2022[6.245] | L53: NYMEX 12 09 2022[71.02] | M53: 0
A54: HAYS N 8H-5X | B54: GOLDEN TREND | C54: 71.02 | D54: $/bbl | E54: 8.1185 | F54: $/Mcf | G54: 0 | H54: 0 | I54: 0 | J54: 0 | K54: NYMEX 12 09 2022[8.1185] | L54: NYMEX 12 09 2022[71.02] | M54: 1300
A55: SISKO 1-8-5XH | B55: GOLDEN TREND | C55: 71.02 | D55: $/bbl | E55: 8.1185 | F55: $/Mcf | G55: 0 | H55: 0 | I55: 0 | J55: 0 | K55: NYMEX 12 09 2022[8.1185] | L55: NYMEX 12 09 2022[71.02] | M55: 1300
A56: LLOYD 1-11 | B56: HILLSDALE NORTH | C56: 71.02 | D56: $/bbl | E56: 6.245 | F56: $/Mcf | G56: 0 | H56: 0 | I56: 0 | J56: 0 | K56: NYMEX 12 09 2022[6.245] | L56: NYMEX 12 09 2022[71.02] | M56: 0
A57: WILLIAM 1-11 | B57: STERLING | C57: 71.02 | D57: $/bbl | E57: 6.245 | F57: $/Mcf | G57: 0 | H57: 0 | I57: 0 | J57: 0 | K57: NYMEX 12 09 2022[6.245] | L57: NYMEX 12 09 2022[71.02] | M57: 0
A58: BOBBY 1-27 | B58: GOLDEN TREND | C58: 71.02 | D58: $/bbl | E58: 8.1185 | F58: $/Mcf | G58: 0 | H58: 0 | I58: 0 | J58: 0 | K58: NYMEX 12 09 2022[8.1185] | L58: NYMEX 12 09 2022[71.02] | M58: 1300
A59: ACTION JACKSON 0404 1-34-27MX | B59: GOLDEN TREND | C59: 71.02 | D59: $/bbl | E59: 8.1185 | F59: $/Mcf | G59: 0 | H59: 0 | I59: 0 | J59: 0 | K59: NYMEX 12 09 2022[8.1185] | L59: NYMEX 12 09 2022[71.02] | M59: 1300
A60: WHITNEY 1-27-22MX | B60: GOLDEN TREND | C60: 71.02 | D60: $/bbl | E60: 8.1185 | F60: $/Mcf | G60: 0 | H60: 0 | I60: 0 | J60: 0 | K60: NYMEX 12 09 2022[8.1185] | L60: NYMEX 12 09 2022[71.02] | M60: 1300
A61: HILDENBRANDT 1-31 | B61: GOLDEN TREND | C61: 71.02 | D61: $/bbl | E61: 8.1185 | F61: $/Mcf | G61: 0 | H61: 0 | I61: 0 | J61: 0 | K61: NYMEX 12 09 2022[8.1185] | L61: NYMEX 12 09 2022[71.02] | M61: 1300
A62: PARR 1-22 | B62: GOLDEN TREND | C62: 71.02 | D62: $/bbl | E62: 8.1185 | F62: $/Mcf | G62: 0 | H62: 0 | I62: 0 | J62: 0 | K62: NYMEX 12 09 2022[8.1185] | L62: NYMEX 12 09 2022[71.02] | M62: 1300
A63: HILDERBRANDT 2-31 | B63: GOLDEN TREND | C63: 71.02 | D63: $/bbl | E63: 8.1185 | F63: $/Mcf | G63: 0 | H63: 0 | I63: 0 | J63: 0 | K63: NYMEX 12 09 2022[8.1185] | L63: NYMEX 12 09 2022[71.02] | M63: 1300
A64: BRENT 6 31 MD 1H | B64: GOODWIN WEST | C64: 71.02 | D64: $/bbl | E64: 6.245 | F64: $/Mcf | G64: 0 | H64: 0 | I64: 0 | J64: 0 | K64: NYMEX 12 09 2022[6.245] | L64: NYMEX 12 09 2022[71.02] | M64: 0
A65: JOHNSON 1 | B65: STERLING | C65: 71.02 | D65: $/bbl | E65: 6.245 | F65: $/Mcf | G65: 0 | H65: 0 | I65: 0 | J65: 0 | K65: NYMEX 12 09 2022[6.245] | L65: NYMEX 12 09 2022[71.02] | M65: 0
A66: JOHN 1-20 | B66: STERLING | C66: 71.02 | D66: $/bbl | E66: 6.245 | F66: $/Mcf | G66: 0 | H66: 0 | I66: 0 | J66: 0 | K66: NYMEX 12 09 2022[6.245] | L66: NYMEX 12 09 2022[71.02] | M66: 0
A67: BLOOMFIELD A 2 | B67: GOLDEN TREND | C67: 71.02 | D67: $/bbl | E67: 6.245 | F67: $/Mcf | G67: 0 | H67: 0 | I67: 0 | J67: 0 | K67: NYMEX 12 09 2022[6.245] | L67: NYMEX 12 09 2022[71.02] | M67: 0
A68: TADLOCK 1-33 | B68: GOLDEN TREND | C68: 71.02 | D68: $/bbl | E68: 6.245 | F68: $/Mcf | G68: 0 | H68: 0 | I68: 0 | J68: 0 | K68: NYMEX 12 09 2022[6.245] | L68: NYMEX 12 09 2022[71.02] | M68: 0
A69: GRAY LEONARD 1-19 | B69: CHITWOOD | C69: 71.02 | D69: $/bbl | E69: 6.245 | F69: $/Mcf | G69: 0 | H69: 0 | I69: 0 | J69: 0 | K69: NYMEX 12 09 2022[6.245] | L69: NYMEX 12 09 2022[71.02] | M69: 0
A70: KNIGHT 1-26 | B70: EDMOND WEST | C70: 71.02 | D70: $/bbl | E70: 6.245 | F70: $/Mcf | G70: 0 | H70: 0 | I70: 0 | J70: 0 | K70: NYMEX 12 09 2022[6.245] | L70: NYMEX 12 09 2022[71.02] | M70: 0
A71: MANN 1-17 | B71: KATIE SOUTH | C71: 71.02 | D71: $/bbl | E71: 8.1185 | F71: $/Mcf | G71: 0 | H71: 0 | I71: 0 | J71: 0 | K71: NYMEX 12 09 2022[8.1185] | L71: NYMEX 12 09 2022[71.02] | M71: 1300
A72: O W J | B72: GOLDEN TREND | C72: 71.02 | D72: $/bbl | E72: 8.1185 | F72: $/Mcf | G72: 0 | H72: 0 | I72: 0 | J72: 0 | K72: NYMEX 12 09 2022[8.1185] | L72: NYMEX 12 09 2022[71.02] | M72: 1300
A73: FRANKENBERG E 2-A | B73: GOLDEN TREND | C73: 71.02 | D73: $/bbl | E73: 6.245 | F73: $/Mcf | G73: 0 | H73: 0 | I73: 0 | J73: 0 | K73: NYMEX 12 09 2022[6.245] | L73: NYMEX 12 09 2022[71.02] | M73: 0
A74: DOWNING 1 | B74: NUMA | C74: 71.02 | D74: $/bbl | E74: 6.245 | F74: $/Mcf | G74: 0 | H74: 0 | I74: 0 | J74: 0 | K74: NYMEX 12 09 2022[6.245] | L74: NYMEX 12 09 2022[71.02] | M74: 0
A75: GRAY 1 | B75: CHITWOOD NORTHWEST | C75: 71.02 | D75: $/bbl | E75: 6.245 | F75: $/Mcf | G75: 0 | H75: 0 | I75: 0 | J75: 0 | K75: NYMEX 12 09 2022[6.245] | L75: NYMEX 12 09 2022[71.02] | M75: 0
A76: WILKINS 1-27 | B76: GOLDEN TREND | C76: 71.02 | D76: $/bbl | E76: 6.245 | F76: $/Mcf | G76: 0 | H76: 0 | I76: 0 | J76: 0 | K76: NYMEX 12 09 2022[6.245] | L76: NYMEX 12 09 2022[71.02] | M76: 0
A77: SPEYSIDE 1-20-19XH | B77: KATIE SOUTH | C77: 71.02 | D77: $/bbl | E77: 7.80625 | F77: $/Mcf | G77: 0 | H77: 0 | I77: 0 | J77: 0 | K77: NYMEX 12 09 2022[7.80625] | L77: NYMEX 12 09 2022[71.02] | M77: 1250
A78: CORONA 1-31-30MX | B78: GOLDEN TREND | C78: 71.02 | D78: $/bbl | E78: 8.1185 | F78: $/Mcf | G78: 0 | H78: 0 | I78: 0 | J78: 0 | K78: NYMEX 12 09 2022[8.1185] | L78: NYMEX 12 09 2022[71.02] | M78: 1300
A79: ELIANA 5 32 NC 1H | B79: GOODWIN SOUTH | C79: 71.02 | D79: $/bbl | E79: 6.245 | F79: $/Mcf | G79: 0 | H79: 0 | I79: 0 | J79: 0 | K79: NYMEX 12 09 2022[6.245] | L79: NYMEX 12 09 2022[71.02] | M79: 0
A80: JAMES TRUST 1-24-23XH | B80: KATIE SOUTH | C80: 71.02 | D80: $/bbl | E80: 6.245 | F80: $/Mcf | G80: 0 | H80: 0 | I80: 0 | J80: 0 | K80: NYMEX 12 09 2022[6.245] | L80: NYMEX 12 09 2022[71.02] | M80: 0

Sheet Projections
A1: UniqueId | B1: Field | C1: Case | D1: Well | E1: Reservoir | F1: Product | G1: Units | H1: ProjType | I1: Segment | J1: StartDate | K1: BegCum | L1: Qi | M1: NFactor | N1: Decl | O1: DeclMin | P1: EndDate | Q1: Qf | R1: Volume | S1: EndCum | T1: SolveFor
A2: A61BE2A680924536797500002 | B2: TIGER FLATS SOUTHEAST | C2: KLIMEK 10-2H | D2: 10-2H | E2: MISSISSIPPIAN | F2: Gas | G2: Mcf | H2: Arps | I2: 1 | J2: 8/1/2020 | K2: 0 | L2: 8193.583695 | M2: 0.001 | N2: 53.14277067 | O2: 0 | P2: 5/31/2032 | Q2: 1.041780904 | R2: 126742.1072 | S2: 0 | T2: Vol;EDate
A3: A61BE2A680924536797800003 | B3: BEARDEN EAST | C3: CHEATWOOD 15-1HX | D3: 15-1HX | E3: MISSISSIPPIAN | F3: Gas | G3: Mcf | H3: Arps | I3: 1 | J3: 8/1/2019 | K3: 0 | L3: 16069.31863 | M3: 0.001 | N3: 16.89228544 | O3: 0 | P3: 7/31/2059 | Q3: 9.809594185 | R3: 1037242.449 | S3: 0 | T3: Vol;EDate
A4: A61BE2A680924536797800003 | B4: BEARDEN EAST | C4: CHEATWOOD 15-1HX | D4: 15-1HX | E4: MISSISSIPPIAN | F4: Oil | G4: bbl | H4: Arps | I4: 1 | J4: 11/1/2020 | K4: 0 | L4: 17.42795758 | M4: 0.001 | N4: 80.04699578 | O4: 0 | P4: 6/30/2022 | Q4: 1.196595814 | R4: 106.9887151 | S4: 0 | T4: Vol;EDate
A5: A61BE2A680924536798100004 | B5: GREASY CREEK | C5: FIELDS 19-1HX | D5: 19-1HX | E5: MISSISSIPPIAN | F5: Gas | G5: Mcf | H5: Arps | I5: 1 | J5: 2/1/2021 | K5: 0 | L5: 17301.25584 | M5: 1 | N5: 29.24413862 | O5: 0 | P5: 1/31/2061 | Q5: 1168.115552 | R5: 1608442.18 | S5: 0 | T5: Vol;EDate
A6: A61BE2A680924536798100004 | B6: GREASY CREEK | C6: FIELDS 19-1HX | D6: 19-1HX | E6: MISSISSIPPIAN | F6: Oil | G6: bbl | H6: Arps | I6: 1 | J6: 3/1/2021 | K6: 0 | L6: 2.634094947 | M6: 1 | N6: 10.04123994 | O6: 0 | P6: 6/30/2036 | Q6: 1.004691468 | R6: 453.0973749 | S6: 0 | T6: Vol;EDate
A7: A61BE2A680924536798300005 | B7: GREASY CREEK | C7: MEADORS 25-1H | D7: 25-1H | E7: MISSISSIPPIAN | F7: Gas | G7: Mcf | H7: Arps | I7: 1 | J7: 2/1/2021 | K7: 0 | L7: 6721.151327 | M7: 0.001 | N7: 35.25510117 | O7: 0 | P7: 3/31/2041 | Q7: 1.049683175 | R7: 182595.3116 | S7: 0 | T7: Vol;EDate
A8: A61BE2A680924536798300005 | B8: GREASY CREEK | C8: MEADORS 25-1H | D8: 25-1H | E8: MISSISSIPPIAN | F8: Oil | G8: bbl | H8: Arps | I8: 1 | J8: 2/1/2021 | K8: 0 | L8: 3.106934766 | M8: 1 | N8: 10.04123994 | O8: 0 | P8: 11/30/2040 | Q8: 1.003204661 | R8: 575.5051786 | S8: 0 | T8: Vol;EDate
A9: A61BE2A680924536798600006 | B9: GREASY CREEK | C9: MEADORS 25-2H | D9: 25-2H | E9: MISSISSIPPIAN | F9: Gas | G9: Mcf | H9: Arps | I9: 1 | J9: 7/1/2018 | K9: 0 | L9: 9149.228836 | M9: 0.001 | N9: 9.94751571 | O9: 0 | P9: 6/30/2058 | Q9: 138.4243269 | R9: 1027664.461 | S9: 0 | T9: Vol;EDate
A10: A61BE2A680924536798600006 | B10: GREASY CREEK | C10: MEADORS 25-2H | D10: 25-2H | E10: MISSISSIPPIAN | F10: Oil | G10: bbl | H10: Arps | I10: 1 | J10: 10/1/2020 | K10: 0 | L10: 5.847282203 | M10: 0.001 | N10: 15.01875178 | O10: 0 | P10: 7/31/2031 | Q10: 1.003360536 | R10: 344.5601205 | S10: 0 | T10: Vol;EDate
A11: A61BE2A680924536799100007 | B11: GREASY CREEK | C11: MEADORS 36-1HX | D11: 36-1HX | E11: MISSISSIPPIAN | F11: Gas | G11: Mcf | H11: Arps | I11: 1 | J11: 2/1/2021 | K11: 0 | L11: 19560.50416 | M11: 0.001 | N11: 59.01064026 | O11: 0 | P11: 1/31/2032 | Q11: 1.075369863 | R11: 256997.9924 | S11: 0 | T11: Vol;EDate
A12: A61BE2A680924536799100007 | B12: GREASY CREEK | C12: MEADORS 36-1HX | D12: 36-1HX | E12: MISSISSIPPIAN | F12: Oil | G12: bbl | H12: Arps | I12: 1 | J12: 12/1/2020 | K12: 0 | L12: 10.93496405 | M12: 0.001 | N12: 13.87441881 | O12: 0 | P12: 11/30/2036 | Q12: 1.002148335 | R12: 778.9076753 | S12: 0 | T12: Vol;EDate
A13: A61BE2A680924536799500008 | B13: DUSTIN SOUTH | C13: WASHINGTON 2-19-18CH | D13: 2-19-18CH | E13: MISSISSIPPIAN | F13: Gas | G13: Mcf | H13: Arps | I13: 1 | J13: 2/1/2020 | K13: 0 | L13: 13619.27756 | M13: 0.001 | N13: 19.980011 | O13: 0 | P13: 1/31/2060 | Q13: 1.828494107 | R13: 742296.9039 | S13: 0 | T13: Vol;EDate
A14: A61BE2A680924536799500008 | B14: DUSTIN SOUTH | C14: WASHINGTON 2-19-18CH | D14: 2-19-18CH | E14: MISSISSIPPIAN | F14: Oil | G14: bbl | H14: Arps | I14: 1 | J14: 9/1/2020 | K14: 0 | L14: 10.85925078 | M14: 0.001 | N14: 18.36132896 | O14: 0 | P14: 4/30/2032 | Q14: 1.019108735 | R14: 555.3023411 | S14: 0 | T14: Vol;EDate
A15: A61BE2A680924536799900009 | B15: DUSTIN SOUTH | C15: WASHINGTON 1-19-18WH | D15: 1-19-18WH | E15: WOODFORD | F15: Gas | G15: Mcf | H15: Arps | I15: 1 | J15: 2/1/2021 | K15: 0 | L15: 34363.74015 | M15: 0.001 | N15: 50.2307938 | O15: 0 | P15: 11/30/2035 | Q15: 1.102994448 | R15: 587561.2035 | S15: 0 | T15: Vol;EDate
A16: A61BE2A680924536799900009 | B16: DUSTIN SOUTH | C16: WASHINGTON 1-19-18WH | D16: 1-19-18WH | E16: WOODFORD | F16: Oil | G16: bbl | H16: Arps | I16: 1 | J16: 9/1/2020 | K16: 0 | L16: 14.78070824 | M16: 0.001 | N16: 44.36225169 | O16: 0 | P16: 2/28/2025 | Q16: 1.059231902 | R16: 251.2930874 | S16: 0 | T16: Vol;EDate
A17: A61BE2A680924536800400010 | B17: CARSON | C17: ADAMS 2-36-25CH | D17: 2-36-25CH | E17: MISSISSIPPIAN | F17: Gas | G17: Mcf | H17: Arps | I17: 1 | J17: 1/1/2021 | K17: 0 | L17: 26063.54473 | M17: 0.001 | N17: 10 | O17: 0 | P17: 12/31/2060 | Q17: 385.2422036 | R17: 2948709.848 | S17: 0 | T17: Vol;EDate
A18: A61BE2A680924536800400010 | B18: CARSON | C18: ADAMS 2-36-25CH | D18: 2-36-25CH | E18: MISSISSIPPIAN | F18: Oil | G18: bbl | H18: Arps | I18: 1 | J18: 2/1/2021 | K18: 0 | L18: 21.7741614 | M18: 0.001 | N18: 67.24640141 | O18: 0 | P18: 9/30/2023 | Q18: 1.116742713 | R18: 203.6365852 | S18: 0 | T18: Vol;EDate
A19: A61BE2A680924536802100011 | B19: CARSON | C19: ADAMS 1-36-25WH | D19: 1-36-25WH | E19: WOODFORD | F19: Gas | G19: Mcf | H19: Arps | I19: 1 | J19: 2/1/2021 | K19: 0 | L19: 32741.56639 | M19: 0.001 | N19: 16.89228544 | O19: 0 | P19: 1/31/2061 | Q19: 19.98724941 | R19: 2114675.695 | S19: 0 | T19: Vol;EDate
A20: A61BE2A680924536802100011 | B20: CARSON | C20: ADAMS 1-36-25WH | D20: 1-36-25WH | E20: WOODFORD | F20: Oil | G20: bbl | H20: Arps | I20: 1 | J20: 11/1/2020 | K20: 0 | L20: 24.29352979 | M20: 0.001 | N20: 45.10149906 | O20: 0 | P20: 12/31/2025 | Q20: 1.096416582 | R20: 437.7927617 | S20: 0 | T20: Vol;EDate
A21: A61BE2A680924536802700012 | B21: CARSON | C21: ADAMS 1-35-26WH | D21: 1-35-26WH | E21: WOODFORD | F21: Gas | G21: Mcf | H21: Arps | I21: 1 | J21: 2/1/2021 | K21: 0 | L21: 30225.2012 | M21: 0.001 | N21: 10 | O21: 0 | P21: 1/31/2061 | Q21: 446.7551609 | R21: 3400087.992 | S21: 0 | T21: Vol;EDate
A22: A61BE2A680924536802700012 | B22: CARSON | C22: ADAMS 1-35-26WH | D22: 1-35-26WH | E22: WOODFORD | F22: Oil | G22: bbl | H22: Arps | I22: 1 | J22: 10/1/2020 | K22: 0 | L22: 21.14373859 | M22: 0.001 | N22: 4.573654819 | O22: 0 | P22: 9/30/2060 | Q22: 3.250224871 | R22: 4535.446725 | S22: 0 | T22: Vol;EDate
A23: A61BE2A680924536803400013 | B23: DUSTIN | C23: JEFFERSON 1-29-32WH | D23: 1-29-32WH | E23: WOODFORD | F23: Gas | G23: Mcf | H23: Arps | I23: 1 | J23: 7/1/2018 | K23: 0 | L23: 37249.61401 | M23: 1 | N23: 49.84524907 | O23: 0 | P23: 6/30/2058 | Q23: 1305.442099 | R23: 2234562.317 | S23: 0 | T23: Vol;EDate
A24: A61BE2A680924536803400013 | B24: DUSTIN | C24: JEFFERSON 1-29-32WH | D24: 1-29-32WH | E24: WOODFORD | F24: Oil | G24: bbl | H24: Arps | I24: 1 | J24: 12/1/2020 | K24: 0 | L24: 12.9148458 | M24: 0.001 | N24: 72.99036065 | O24: 0 | P24: 9/30/2022 | Q24: 1.174482162 | R24: 99.79275446 | S24: 0 | T24: Vol;EDate
A25: A61BE2A680924536803700014 | B25: DUSTIN | C25: JEFFERSON 1-20-17WH | D25: 1-20-17WH | E25: WOODFORD | F25: Gas | G25: Mcf | H25: Arps | I25: 1 | J25: 7/1/2018 | K25: 0 | L25: 77158.01488 | M25: 1 | N25: 45.67334767 | O25: 0 | P25: 6/30/2058 | Q25: 3043.884145 | R25: 5033556.169 | S25: 0 | T25: Vol;EDate
A26: A61BE2A680924536803700014 | B26: DUSTIN | C26: JEFFERSON 1-20-17WH | D26: 1-20-17WH | E26: WOODFORD | F26: Oil | G26: bbl | H26: Arps | I26: 1 | J26: 11/1/2020 | K26: 0 | L26: 30.11520801 | M26: 0.001 | N26: 61.91275865 | O26: 0 | P26: 4/30/2024 | Q26: 1.03060526 | R26: 323.1453924 | S26: 0 | T26: Vol;EDate
A27: A61BE2A680924536804000015 | B27: DUSTIN | C27: JEFFERSON 2-20-17CH | D27: 2-20-17CH | E27: MISSISSIPPIAN | F27: Gas | G27: Mcf | H27: Arps | I27: 1 | J27: 1/1/2018 | K27: 0 | L27: 63792.69966 | M27: 0.84463125 | N27: 56.91750751 | O27: 0 | P27: 12/31/2057 | Q27: 1162.698617 | R27: 2713897.306 | S27: 0 | T27: Vol;EDate
A28: A61BE2A680924536804000015 | B28: DUSTIN | C28: JEFFERSON 2-20-17CH | D28: 2-20-17CH | E28: MISSISSIPPIAN | F28: Oil | G28: bbl | H28: Arps | I28: 1 | J28: 12/1/2020 | K28: 0 | L28: 25.68497785 | M28: 0.001 | N28: 88.72480031 | O28: 0 | P28: 3/31/2022 | Q28: 1.407472746 | R28: 130.3193311 | S28: 0 | T28: Vol;EDate
A29: A61BE2A680924536804400016 | B29: CARSON | C29: GRANT 2-2-35WH | D29: 2-2-35WH | E29: WOODFORD | F29: Gas | G29: Mcf | H29: Arps | I29: 1 | J29: 9/1/2018 | K29: 0 | L29: 47419.83347 | M29: 0.79150625 | N29: 46.99646673 | O29: 0 | P29: 8/31/2058 | Q29: 1006.67091 | R29: 2408261.994 | S29: 0 | T29: Vol;EDate
A30: A61BE2A680924536804700017 | B30: CARSON | C30: GRANT 1-2-35WH | D30: 1-2-35WH | E30: WOODFORD | F30: Gas | G30: Mcf | H30: Arps | I30: 1 | J30: 12/1/2019 | K30: 0 | L30: 39144.27376 | M30: 1 | N30: 99.26841024 | O30: 0 | P30: 11/30/2059 | Q30: 198.8409315 | R30: 766848.0141 | S30: 0 | T30: Vol;EDate
A31: A61BE2A680924536804700017 | B31: CARSON | C31: GRANT 1-2-35WH | D31: 1-2-35WH | E31: WOODFORD | F31: Yield | G31: bbl/Mcf | H31: Arps | I31: 1 | J31: 7/1/5664 | K31: 0 | M31: 0.001 | N31: 10 | O31: 0 | P31: 7/31/5704 | R31: 0 | S31: 0 | T31: EDate
A32: A61BE2A680924536805100018 | B32: DUSTIN | C32: CARVER 1-8-5WH | D32: 1-8-5WH | E32: MISSISSIPPIAN | F32: Gas | G32: Mcf | H32: Arps | I32: 1 | J32: 2/1/2021 | K32: 0 | L32: 11001.06792 | M32: 0.31806875 | N32: 66.9080305 | O32: 0 | P32: 1/31/2061 | Q32: 2.175166276 | R32: 171567.005 | S32: 0 | T32: Vol;EDate
A33: A61BE2A680924536805100018 | B33: DUSTIN | C33: CARVER 1-8-5WH | D33: 1-8-5WH | E33: MISSISSIPPIAN | F33: Oil | G33: bbl | H33: Arps | I33: 1 | J33: 2/1/2021 | K33: 0 | L33: 7.879163521 | M33: 0.001 | N33: 10 | O33: 0 | P33: 7/31/2040 | Q33: 1.010139384 | R33: 768.6929887 | S33: 0 | T33: Vol;EDate
A34: A61BE2A680924536805400019 | B34: DUSTIN | C34: CARVER 1-9-4WH | D34: 1-9-4WH | E34: WOODFORD | F34: Gas | G34: Mcf | H34: Arps | I34: 1 | J34: 3/1/2021 | K34: 0 | L34: 13588.94472 | M34: 0.001 | N34: 7.092628979 | O34: 0 | P34: 2/28/2061 | Q34: 716.4610362 | R34: 2092454.571 | S34: 0 | T34: Vol;EDate
A35: A61BE2A680924536805400019 | B35: DUSTIN | C35: CARVER 1-9-4WH | D35: 1-9-4WH | E35: WOODFORD | F35: Oil | G35: bbl | H35: Arps | I35: 1 | J35: 2/1/2021 | K35: 0 | L35: 8.033148154 | M35: 0.80713125 | N35: 10.03322635 | O35: 0 | P35: 1/31/2061 | Q35: 1.276516637 | R35: 1401.309009 | S35: 0 | T35: Vol;EDate
A36: A61BE2A680924536805700020 | B36: DUSTIN | C36: CARVER 1-16-21WH | D36: 1-16-21WH | E36: WOODFORD | F36: Gas | G36: Mcf | H36: Arps | I36: 1 | J36: 10/1/2018 | K36: 0 | L36: 42241.48464 | M36: 0.56806875 | N36: 31.9299285 | O36: 0 | P36: 9/30/2058 | Q36: 768.3095517 | R36: 2540078.507 | S36: 0 | T36: Vol;EDate
A37: A61BE2A680924536805700020 | B37: DUSTIN | C37: CARVER 1-16-21WH | D37: 1-16-21WH | E37: WOODFORD | F37: Oil | G37: bbl | H37: Arps | I37: 1 | J37: 1/1/2021 | K37: 0 | L37: 7.19773807 | M37: 0.001 | N37: 10 | O37: 0 | P37: 8/31/2039 | Q37: 1.007352554 | R37: 717.42107 | S37: 0 | T37: Vol;EDate
A38: A61BE2A680924536806000021 | B38: GREASY CREEK | C38: BARGER 1-26-23CH | D38: 1-26-23CH | E38: MISSISSIPPIAN | F38: Gas | G38: Mcf | H38: Arps | I38: 1 | J38: 5/1/2018 | K38: 0 | L38: 56694.07257 | M38: 1 | N38: 66.46236515 | O38: 0 | P38: 4/30/2058 | Q38: 1271.903279 | R38: 2503653.753 | S38: 0 | T38: Vol;EDate
A39: A61BE2A680924536806000021 | B39: GREASY CREEK | C39: BARGER 1-26-23CH | D39: 1-26-23CH | E39: MISSISSIPPIAN | F39: Oil | G39: bbl | H39: Arps | I39: 1 | J39: 11/1/2020 | K39: 0 | L39: 20.95080431 | M39: 0.001 | N39: 58.54563853 | O39: 0 | P39: 2/29/2024 | Q39: 1.116877017 | R39: 239.6136718 | S39: 0 | T39: Vol;EDate
A40: A61BE2A680924536806500022 | B40: GREASY CREEK | C40: BARGER EAST 1-35-2CH | D40: 1-35-2CH | E40: MISSISSIPPIAN | F40: Gas | G40: Mcf | H40: Arps | I40: 1 | J40: 5/1/2018 | K40: 0 | L40: 44131.31921 | M40: 0.83056875 | N40: 37.71502231 | O40: 0 | P40: 4/30/2058 | Q40: 1484.863226 | R40: 2885011.14 | S40: 0 | T40: Vol;EDate
A41: A61BE2A680924536806500022 | B41: GREASY CREEK | C41: BARGER EAST 1-35-2CH | D41: 1-35-2CH | E41: MISSISSIPPIAN | F41: Oil | G41: bbl | H41: Arps | I41: 1 | J41: 1/1/2021 | K41: 0 | L41: 15.8693454 | M41: 0.001 | N41: 99.98668354 | O41: 0 | P41: 2/28/2021 | Q41: 3.754215254 | R41: 37 | S41: 0 | T41: Vol;EDate
A42: A61BE2A680924536806800023 | B42: DUSTIN WEST | C42: MADISON 1-23-14WH | D42: 1-23-14WH | E42: WOODFORD | F42: Gas | G42: Mcf | H42: Arps | I42: 1 | J42: 1/1/2019 | K42: 0 | L42: 85842.52108 | M42: 1 | N42: 69.28535351 | O42: 0 | P42: 12/31/2058 | Q42: 1785.488843 | R42: 3612502.127 | S42: 0 | T42: Vol;EDate
A43: A61BE2A680924536806800023 | B43: DUSTIN WEST | C43: MADISON 1-23-14WH | D43: 1-23-14WH | E43: WOODFORD | F43: Oil | G43: bbl | H43: Arps | I43: 1 | J43: 1/1/2021 | K43: 0 | L43: 90.23228593 | M43: 0.001 | N43: 89.63989005 | O43: 0 | P43: 10/31/2022 | Q43: 1.418670356 | R43: 393.5900986 | S43: 0 | T43: Vol;EDate
A44: A61BE2A680924536807100024 | B44: DUSTIN WEST | C44: MADISON 1-24-13WH | D44: 1-24-13WH | E44: WOODFORD | F44: Gas | G44: Mcf | H44: Arps | I44: 1 | J44: 2/1/2021 | K44: 0 | L44: 17009.76172 | M44: 0.001 | N44: 36.11535338 | O44: 0 | P44: 9/30/2042 | Q44: 1.035669975 | R44: 446052.0338 | S44: 0 | T44: Vol;EDate
A45: A61BE2A680924536807100024 | B45: DUSTIN WEST | C45: MADISON 1-24-13WH | D45: 1-24-13WH | E45: WOODFORD | F45: Oil | G45: bbl | H45: Arps | I45: 1 | J45: 3/1/2021 | K45: 0 | L45: 1.967386886 | M45: 1 | N45: 10.04123994 | O45: 0 | P45: 2/28/2030 | Q45: 1.007911799 | R45: 340.5912497 | S45: 0 | T45: Vol;EDate
A46: A61BE2A680924536807300025 | B46: DUSTIN WEST | C46: MADISON 2-23-14CH | D46: 2-23-14CH | E46: MISSISSIPPIAN | F46: Gas | G46: Mcf | H46: Arps | I46: 1 | J46: 1/1/2019 | K46: 0 | L46: 40922.54849 | M46: 0.001 | N46: 11.93285206 | O46: 0 | P46: 12/31/2058 | Q46: 253.8165573 | R46: 3852238.529 | S46: 0 | T46: Vol;EDate
A47: A61BE2A680924536807300025 | B47: DUSTIN WEST | C47: MADISON 2-23-14CH | D47: 2-23-14CH | E47: MISSISSIPPIAN | F47: Oil | G47: bbl | H47: Arps | I47: 1 | J47: 2/1/2021 | K47: 0 | L47: 53.52378444 | M47: 0.001 | N47: 99.987545 | O47: 0 | P47: 5/31/2021 | Q47: 2.790633699 | R47: 81 | S47: 0 | T47: Vol;EDate
A48: A61BE2A680924536807600026 | B48: DUSTIN WEST | C48: MADISON 2-24-13CH | D48: 2-24-13CH | E48: MISSISSIPPIAN | F48: Gas | G48: Mcf | H48: Arps | I48: 1 | J48: 1/1/2019 | K48: 0 | L48: 39396.22125 | M48: 0.09306875 | N48: 24.68033727 | O48: 0 | P48: 12/31/2058 | Q48: 17.14211127 | R48: 1860104.453 | S48: 0 | T48: Vol;EDate
A49: A61BE2A680924536807600026 | B49: DUSTIN WEST | C49: MADISON 2-24-13CH | D49: 2-24-13CH | E49: MISSISSIPPIAN | F49: Oil | G49: bbl | H49: Arps | I49: 1 | J49: 2/1/2021 | K49: 0 | L49: 28.28651259 | M49: 0.001 | N49: 99.93695034 | O49: 0 | P49: 5/31/2021 | Q49: 2.512699076 | R49: 58 | S49: 0 | T49: Vol;EDate
A50: A61BE2A680924536807800027 | B50: CARSON | C50: LINCOLN 1-13-12WH | D50: 1-13-12WH | E50: WOODFORD | F50: Gas | G50: Mcf | H50: Arps | I50: 1 | J50: 10/1/2020 | K50: 0 | L50: 37517.9653 | M50: 0.001 | N50: 10 | O50: 0 | P50: 9/30/2060 | Q50: 554.5486532 | R50: 4208359.31 | S50: 0 | T50: Vol;EDate
A51: A61BE2A680924536807800027 | B51: CARSON | C51: LINCOLN 1-13-12WH | D51: 1-13-12WH | E51: WOODFORD | F51: Oil | G51: bbl | H51: Arps | I51: 1 | J51: 2/1/2021 | K51: 0 | L51: 31.71920272 | M51: 0.001 | N51: 97.91565348 | O51: 0 | P51: 11/30/2021 | Q51: 1.27876923 | R51: 98.47918161 | S51: 0 | T51: Vol;EDate
A52: A61BE2A680924536809600028 | B52: CARSON | C52: LINCOLN 1-14-11WH | D52: 1-14-11WH | E52: WOODFORD | F52: Gas | G52: Mcf | H52: Arps | I52: 1 | J52: 3/1/2019 | K52: 0 | L52: 51518.40651 | M52: 1 | N52: 74.79233819 | O52: 0 | P52: 2/28/2059 | Q52: 920.7873509 | R52: 1905569.77 | S52: 0 | T52: Vol;EDate
A53: A61BE2A680924536809600028 | B53: CARSON | C53: LINCOLN 1-14-11WH | D53: 1-14-11WH | E53: WOODFORD | F53: Oil | G53: bbl | H53: Arps | I53: 1 | J53: 2/1/2021 | K53: 0 | L53: 13.84805801 | M53: 0.001 | N53: 85.32337496 | O53: 0 | P53: 5/31/2022 | Q53: 1.083395712 | R53: 69.68567209 | S53: 0 | T53: Vol;EDate
A54: A61BE2A680924536809900029 | B54: PAPOOSE | C54: THUNDER 1-18-6MH | D54: 1-18-6MH | E54: MISSISSIPPIAN | F54: Gas | G54: Mcf | H54: Arps | I54: 1 | J54: 4/1/2020 | K54: 0 | L54: 20419.86247 | M54: 0.001 | N54: 97.89090144 | O54: 0 | P54: 9/30/2022 | Q54: 1.320895769 | R54: 27331.78461 | S54: 0 | T54: Vol;EDate
A55: A61BE2A680924536809900029 | B55: PAPOOSE | C55: THUNDER 1-18-6MH | D55: 1-18-6MH | E55: MISSISSIPPIAN | F55: Oil | G55: bbl | H55: Arps | I55: 1 | J55: 1/1/2021 | K55: 0 | L55: 86.85758418 | M55: 0.001 | N55: 10 | O55: 0 | P55: 12/31/2060 | Q55: 1.283831784 | R55: 9845.743817 | S55: 0 | T55: Vol;EDate
A56: A61BE2A680924536810200030 | B56: CARSON | C56: LINCOLN 1-23-26WH | D56: 1-23-26WH | E56: WOODFORD | F56: Gas | G56: Mcf | H56: Arps | I56: 1 | J56: 9/1/2020 | K56: 0 | L56: 24646.09549 | M56: 0.001 | N56: 7.438387626 | O56: 0 | P56: 8/31/2060 | Q56: 1119.398123 | R56: 3635976.216 | S56: 0 | T56: Vol;EDate
A57: A61BE2A680924536810200030 | B57: CARSON | C57: LINCOLN 1-23-26WH | D57: 1-23-26WH | E57: WOODFORD | F57: Oil | G57: bbl | H57: Arps | I57: 1 | J57: 12/1/2020 | K57: 0 | L57: 19.5942602 | M57: 0.001 | N57: 81.12003424 | O57: 0 | P57: 7/31/2022 | Q57: 1.221661419 | R57: 121.7306709 | S57: 0 | T57: Vol;EDate
A58: A61BE2A680924536810800031 | B58: CARSON | C58: LINCOLN 1-24-25WH | D58: 1-24-25WH | E58: WOODFORD | F58: Gas | G58: Mcf | H58: Arps | I58: 1 | J58: 10/1/2020 | K58: 0 | L58: 39320.65357 | M58: 0.001 | N58: 37.24460265 | O58: 0 | P58: 5/31/2043 | Q58: 1.019997938 | R58: 986976.4274 | S58: 0 | T58: Vol;EDate
A59: A61BE2A680924536810800031 | B59: CARSON | C59: LINCOLN 1-24-25WH | D59: 1-24-25WH | E59: WOODFORD | F59: Oil | G59: bbl | H59: Arps | I59: 1 | J59: 11/1/2020 | K59: 0 | L59: 27.41849989 | M59: 0.001 | N59: 33.20252756 | O59: 0 | P59: 12/31/2028 | Q59: 1.01591481 | R59: 727.896406 | S59: 0 | T59: Vol;EDate
A60: A61BE2A680924536811300032 | B60: GILCREASE DISTRICT EAST | C60: THUNDER 1-13-25CH | D60: 1-13-25CH | E60: MISSISSIPPIAN | F60: Gas | G60: Mcf | H60: Arps | I60: 1 | J60: 2/1/2021 | K60: 0 | L60: 21065.55726 | M60: 0.001 | N60: 39.24674134 | O60: 0 | P60: 11/30/2040 | Q60: 1.075728961 | R60: 499394.8345 | S60: 0 | T60: Vol;EDate
A61: A61BE2A680924536811300032 | B61: GILCREASE DISTRICT EAST | C61: THUNDER 1-13-25CH | D61: 1-13-25CH | E61: MISSISSIPPIAN | F61: Oil | G61: bbl | H61: Arps | I61: 1 | J61: 12/1/2020 | K61: 0 | L61: 20.89662427 | M61: 0.001 | N61: 79.33155307 | O61: 0 | P61: 9/30/2022 | Q61: 1.164069197 | R61: 140.8611107 | S61: 0 | T61: Vol;EDate
A62: A61BE2A680924536811700033 | B62: GREASY CREEK | C62: THUNDER 1-18-30CH | D62: 1-18-30CH | E62: MISSISSIPPIAN | F62: Gas | G62: Mcf | H62: Arps | I62: 1 | J62: 11/1/2018 | K62: 0 | L62: 40226.6496 | M62: 1 | N62: 39.238746 | O62: 0 | P62: 10/31/2058 | Q62: 1926.095392 | R62: 2976821.07 | S62: 0 | T62: Vol;EDate
A63: A61BE2A680924536811700033 | B63: GREASY CREEK | C63: THUNDER 1-18-30CH | D63: 1-18-30CH | E63: MISSISSIPPIAN | F63: Oil | G63: bbl | H63: Arps | I63: 1 | J63: 9/1/2020 | K63: 0 | L63: 16.73119101 | M63: 0.001 | N63: 21.57243217 | O63: 0 | P63: 2/29/2032 | Q63: 1.024034823 | R63: 736.049987 | S63: 0 | T63: Vol;EDate
A64: A61BE2A680924536812000034 | B64: DUSTIN | C64: TRUMAN 4-19-18CH | D64: 4-19-18CH | E64: MISSISSIPPIAN | F64: Gas | G64: Mcf | H64: Arps | I64: 1 | J64: 2/1/2021 | K64: 0 | L64: 25467.92983 | M64: 0.001 | N64: 16.11075216 | O64: 0 | P64: 1/31/2061 | Q64: 22.6071421 | R64: 1736498.404 | S64: 0 | T64: Vol;EDate
A65: A61BE2A680924536812000034 | B65: DUSTIN | C65: TRUMAN 4-19-18CH | D65: 4-19-18CH | E65: MISSISSIPPIAN | F65: Oil | G65: bbl | H65: Arps | I65: 1 | J65: 2/1/2021 | K65: 0 | L65: 117.6104129 | M65: 0.001 | N65: 99.99985107 | O65: 0 | P65: 5/31/2021 | Q65: 1.432261604 | R65: 132 | S65: 0 | T65: Vol;EDate
A66: A61BE2A680924536813900035 | B66: DUSTIN | C66: TRUMAN 3-19-18CH | D66: 3-19-18CH | E66: MISSISSIPPIAN | F66: Gas | G66: Mcf | H66: Arps | I66: 1 | J66: 2/1/2021 | K66: 0 | L66: 28060.48544 | M66: 0.001 | N66: 14.44385209 | O66: 0 | P66: 1/31/2061 | Q66: 54.71974754 | R66: 2151628.472 | S66: 0 | T66: Vol;EDate
A67: A61BE2A680924536813900035 | B67: DUSTIN | C67: TRUMAN 3-19-18CH | D67: 3-19-18CH | E67: MISSISSIPPIAN | F67: Oil | G67: bbl | H67: Arps | I67: 1 | J67: 1/1/2021 | K67: 0 | L67: 70.29572229 | M67: 0.001 | N67: 87.83609325 | O67: 0 | P67: 12/31/2022 | Q67: 1.043103802 | R67: 338.9443392 | S67: 0 | T67: Vol;EDate
A68: A61BE2A680924536821600052 | B68: PAPOOSE NORTH | C68: CHEATWOOD 1-15-27CH | D68: 1-15-27CH | E68: MISSISSIPPIAN | F68: Oil | G68: bbl | H68: Arps | I68: 1 | J68: 1/1/2021 | K68: 0 | L68: 89.57908273 | M68: 0.001 | N68: 93.03327089 | O68: 0 | P68: 8/31/2022 | Q68: 1.062422341 | R68: 318.1781292 | S68: 0 | T68: Vol;EDate
A69: A61BE2A680924536821800053 | B69: PAPOOSE NORTH | C69: CHEATWOOD 1-16-28CH | D69: 1-16-28CH | E69: MISSISSIPPIAN | F69: Gas | G69: Mcf | H69: Arps | I69: 1 | J69: 8/1/2019 | K69: 0 | L69: 35160.14116 | M69: 1 | N69: 55.65875138 | O69: 0 | P69: 7/31/2059 | Q69: 1051.278429 | R69: 1861830.319 | S69: 0 | T69: Vol;EDate
A70: A61BE2A680924536821800053 | B70: PAPOOSE NORTH | C70: CHEATWOOD 1-16-28CH | D70: 1-16-28CH | E70: MISSISSIPPIAN | F70: Oil | G70: bbl | H70: Arps | I70: 1 | J70: 9/1/2020 | K70: 0 | L70: 11.84665009 | M70: 0.001 | N70: 2.422416861 | O70: 0 | P70: 8/31/2060 | Q70: 4.442197288 | R70: 3590.807787 | S70: 0 | T70: Vol;EDate
A71: A61BE2A680924536822000054 | B71: SCIPIO NORTHWEST | C71: OSCAR LU 2-17-20CH | D71: 2-17-20CH | E71: CANEY | F71: Gas | G71: Mcf | H71: Arps | I71: 1 | J71: 3/1/2019 | K71: 0 | L71: 134935.1308 | M71: 1 | N71: 99.99584584 | O71: 0 | P71: 2/28/2059 | Q71: 335.2137359 | R71: 1303615.2 | S71: 0 | T71: Vol;EDate
A72: A61BE2A680924536822000054 | B72: SCIPIO NORTHWEST | C72: OSCAR LU 2-17-20CH | D72: 2-17-20CH | E72: CANEY | F72: Oil | G72: bbl | H72: Arps | I72: 1 | J72: 11/1/2020 | K72: 0 | L72: 14.15023659 | M72: 0.001 | N72: 52.82363501 | O72: 0 | P72: 4/30/2024 | Q72: 1.023358124 | R72: 187.5608316 | S72: 0 | T72: Vol;EDate
A73: A61BE2A680924536822300055 | B73: WELEETKA DISTRICT EAST | C73: SCRANTON 2-19-31MH | D73: 2-19-31MH | E73: MISSISSIPPIAN | F73: Gas | G73: Mcf | H73: Arps | I73: 1 | J73: 10/1/2019 | K73: 0 | L73: 60707.32668 | M73: 1 | N73: 78.08869946 | O73: 0 | P73: 9/30/2059 | Q73: 986.5748996 | R73: 2140811.314 | S73: 0 | T73: Vol;EDate
A74: A61BE2A680924536822300055 | B74: WELEETKA DISTRICT EAST | C74: SCRANTON 2-19-31MH | D74: 2-19-31MH | E74: MISSISSIPPIAN | F74: Oil | G74: bbl | H74: Arps | I74: 1 | J74: 3/1/2021 | K74: 0 | L74: 17.01279977 | M74: 1 | N74: 10.04123994 | O74: 0 | P74: 2/28/2061 | Q74: 3.253963702 | R74: 3498.161537 | S74: 0 | T74: Vol;EDate
A75: A61BE2A680924536825300066 | B75: HANNA NORTHWEST | C75: MIFFLIN 1-15-27CH | D75: 1-15-27CH | E75: MISSISSIPPIAN | F75: Gas | G75: Mcf | H75: Arps | I75: 1 | J75: 3/1/2020 | K75: 0 | L75: 46139.53055 | M75: 1 | N75: 76.49376407 | O75: 0 | P75: 2/29/2060 | Q75: 785.5625792 | R75: 1666324.091 | S75: 0 | T75: Vol;EDate
A76: A61BE2A680924536825300066 | B76: HANNA NORTHWEST | C76: MIFFLIN 1-15-27CH | D76: 1-15-27CH | E76: MISSISSIPPIAN | F76: Oil | G76: bbl | H76: Arps | I76: 1 | J76: 2/1/2021 | K76: 0 | L76: 14.2021646 | M76: 0.001 | N76: 39.95973173 | O76: 0 | P76: 3/31/2026 | Q76: 1.020775973 | R76: 284.4313992 | S76: 0 | T76: Vol;EDate
A77: A61BE2A680924536825700067 | B77: HANNA NORTHWEST | C77: MIFFLIN 1-15-3CH | D77: 1-15-3CH | E77: MISSISSIPPIAN | F77: Gas | G77: Mcf | H77: Arps | I77: 1 | J77: 9/1/2019 | K77: 0 | L77: 65077.84828 | M77: 0.51025625 | N77: 60.34346089 | O77: 0 | P77: 8/31/2059 | Q77: 185.7352543 | R77: 1627165.692 | S77: 0 | T77: Vol;EDate
A78: A61BE2A680924536825700067 | B78: HANNA NORTHWEST | C78: MIFFLIN 1-15-3CH | D78: 1-15-3CH | E78: MISSISSIPPIAN | F78: Oil | G78: bbl | H78: Arps | I78: 1 | J78: 12/1/2020 | K78: 0 | L78: 30.22555319 | M78: 0.001 | N78: 95.96280891 | O78: 0 | P78: 11/30/2021 | Q78: 1.222947043 | R78: 112.7853271 | S78: 0 | T78: Vol;EDate
A79: A61BE2A680924536826100068 | B79: SCIPIO NORTHWEST | C79: EDISON 2-18-19WH | D79: 2-18-19WH | E79: WOODFORD | F79: Gas | G79: Mcf | H79: Arps | I79: 1 | J79: 1/1/2020 | K79: 0 | L79: 241459.1699 | M79: 1 | N79: 97.47144444 | O79: 0 | P79: 12/31/2059 | Q79: 1636.905996 | R79: 3971184.739 | S79: 0 | T79: Vol;EDate
A80: A61BE2A680924536826100068 | B80: SCIPIO NORTHWEST | C80: EDISON 2-18-19WH | D80: 2-18-19WH | E80: WOODFORD | F80: Oil | G80: bbl | H80: Arps | I80: 1 | J80: 2/1/2021 | K80: 0 | L80: 19.72730196 | M80: 0.001 | N80: 82.41106749 | O80: 0 | P80: 9/30/2022 | Q80: 1.098372711 | R80: 115.986596 | S80: 0 | T80: Vol;EDate
A81: A61BE2A680924536826500069 | B81: SCIPIO NORTHWEST | C81: EDISON 3-18-19WH | D81: 3-18-19WH | E81: WOODFORD | F81: Gas | G81: Mcf | H81: Arps | I81: 1 | J81: 9/1/2020 | K81: 0 | L81: 57399.97695 | M81: 0.001 | N81: 17.99652063 | O81: 0 | P81: 8/31/2060 | Q81: 20.5212072 | R81: 3428588.234 | S81: 0 | T81: Vol;EDate
A82: A61BE2A680924536826500069 | B82: SCIPIO NORTHWEST | C82: EDISON 3-18-19WH | D82: 3-18-19WH | E82: WOODFORD | F82: Oil | G82: bbl | H82: Arps | I82: 1 | J82: 1/1/2020 | K82: 0 | L82: 33.24998711 | M82: 1 | N82: 87.42362984 | O82: 0 | P82: 6/30/2035 | Q82: 1.006189103 | R82: 723.3995603 | S82: 0 | T82: Vol;EDate
A83: A61BE2A680924536826800070 | B83: SCIPIO NORTHWEST | C83: EDISON 4-18-19WH | D83: 4-18-19WH | E83: WOODFORD / MAYES | F83: Gas | G83: Mcf | H83: Arps | I83: 1 | J83: 1/1/2020 | K83: 0 | L83: 242871.2341 | M83: 0.76650625 | N83: 93.63595472 | O83: 0 | P83: 12/31/2059 | Q83: 733.1601639 | R83: 3256822.739 | S83: 0 | T83: Vol;EDate
A84: A61BE2A680924536826800070 | B84: SCIPIO NORTHWEST | C84: EDISON 4-18-19WH | D84: 4-18-19WH | E84: WOODFORD / MAYES | F84: Oil | G84: bbl | H84: Arps | I84: 1 | J84: 1/1/2021 | K84: 0 | L84: 25.00461081 | M84: 1 | N84: 65.96926446 | O84: 0 | P84: 2/28/2043 | Q84: 1.00700887 | R84: 889.3139387 | S84: 0 | T84: Vol;EDate
A85: A61BE2A680924536827000071 | B85: OKEMAH | C85: TIMBERWOLF 1-19-18CH | D85: 1-19-18CH | E85: MISSISSIPPIAN | F85: Gas | G85: Mcf | H85: Arps | I85: 1 | J85: 2/1/2020 | K85: 0 | L85: 69722.72881 | M85: 0.87900625 | N85: 58.75855526 | O85: 0 | P85: 1/31/2060 | Q85: 1345.394935 | R85: 2967117.114 | S85: 0 | T85: Vol;EDate
A86: A61BE2A680924536827000071 | B86: OKEMAH | C86: TIMBERWOLF 1-19-18CH | D86: 1-19-18CH | E86: MISSISSIPPIAN | F86: Oil | G86: bbl | H86: Arps | I86: 1 | J86: 12/1/2020 | K86: 0 | L86: 41.53727029 | M86: 0.001 | N86: 74.53849804 | O86: 0 | P86: 7/31/2023 | Q86: 1.085813583 | R86: 333.1206735 | S86: 0 | T86: Vol;EDate
A87: A61BE2A680924536827300072 | B87: OKEMAH | C87: TIMBERWOLF 1-24-13CH | D87: 1-24-13CH | E87: MISSISSIPPIAN | F87: Gas | G87: Mcf | H87: Arps | I87: 1 | J87: 2/1/2020 | K87: 0 | L87: 70967.4983 | M87: 0.39150625 | N87: 45.66864645 | O87: 0 | P87: 1/31/2060 | Q87: 172.5945446 | R87: 2237422.758 | S87: 0 | T87: Vol;EDate
A88: A61BE2A680924536827300072 | B88: OKEMAH | C88: TIMBERWOLF 1-24-13CH | D88: 1-24-13CH | E88: MISSISSIPPIAN | F88: Oil | G88: bbl | H88: Arps | I88: 1 | J88: 11/1/2020 | K88: 0 | L88: 45.73434232 | M88: 0.001 | N88: 23.64268873 | O88: 0 | P88: 12/31/2034 | Q88: 1.001720596 | R88: 1893.492528 | S88: 0 | T88: Vol;EDate
A89: A61BE2A680924536827500073 | B89: CARSON | C89: EISENHOWER 3-26-25WH | D89: 3-26-25WH | E89: WOODFORD | F89: Gas | G89: Mcf | H89: Arps | I89: 1 | J89: 3/1/2020 | K89: 0 | L89: 205604.2349 | M89: 0.001 | N89: 42.5983973 | O89: 0 | P89: 2/28/2042 | Q89: 1.022563946 | R89: 4347093.306 | S89: 0 | T89: Vol;EDate
A90: A61BE2A680924536827500073 | B90: CARSON | C90: EISENHOWER 3-26-25WH | D90: 3-26-25WH | E90: WOODFORD | F90: Oil | G90: bbl | H90: Arps | I90: 1 | J90: 2/1/2021 | K90: 0 | L90: 224.0994773 | M90: 0.001 | N90: 99.94881926 | O90: 0 | P90: 9/30/2021 | Q90: 1.479199895 | R90: 394.9615006 | S90: 0 | T90: Vol;EDate
A91: A61BE2A680924536827800074 | B91: CARSON | C91: EISENHOWER 4-36-25WH | D91: 4-36-25WH | E91: WOODFORD | F91: Gas | G91: Mcf | H91: Arps | I91: 1 | J91: 12/1/2020 | K91: 0 | L91: 105417.922 | M91: 0.001 | N91: 22.95874764 | O91: 0 | P91: 11/30/2060 | Q91: 3.103471843 | R91: 4830658.393 | S91: 0 | T91: Vol;EDate
A92: A61BE2A680924536827800074 | B92: CARSON | C92: EISENHOWER 4-36-25WH | D92: 4-36-25WH | E92: WOODFORD | F92: Oil | G92: bbl | H92: Arps | I92: 1 | J92: 12/1/2020 | K92: 0 | L92: 136.9476339 | M92: 0.47588125 | N92: 98.92831227 | O92: 0 | P92: 3/31/2025 | Q92: 1.008908058 | R92: 616.5633042 | S92: 0 | T92: Vol;EDate
A93: A61BE2A680924536828200075 | B93: CARSON | C93: EISENHOWER 5-36-25WH | D93: 5-36-25WH | E93: WOODFORD | F93: Gas | G93: Mcf | H93: Arps | I93: 1 | J93: 12/1/2020 | K93: 0 | L93: 93568.43442 | M93: 0.001 | N93: 15.77318094 | O93: 0 | P93: 11/30/2060 | Q93: 97.53159666 | R93: 6509519.427 | S93: 0 | T93: Vol;EDate
A94: A61BE2A680924536828200075 | B94: CARSON | C94: EISENHOWER 5-36-25WH | D94: 5-36-25WH | E94: WOODFORD | F94: Oil | G94: bbl | H94: Arps | I94: 1 | J94: 9/1/2020 | K94: 0 | L94: 138.6925444 | M94: 0.001 | N94: 80.12907886 | O94: 0 | P94: 8/31/2023 | Q94: 1.091812711 | R94: 870.8972022 | S94: 0 | T94: Vol;EDate
A95: A61BE2A680924536830300079 | B95: DUSTIN | C95: TRUMAN 3-24-13WH | D95: 3-24-13WH | E95: WOODFORD | F95: Gas | G95: Mcf | H95: Arps | I95: 1 | J95: 5/1/2020 | K95: 0 | L95: 208638.7218 | M95: 1 | N95: 93.51332207 | O95: 0 | P95: 4/30/2060 | Q95: 1896.579647 | R95: 4343061.665 | S95: 0 | T95: Vol;EDate
A96: A61BE2A680924536830300079 | B96: DUSTIN | C96: TRUMAN 3-24-13WH | D96: 3-24-13WH | E96: WOODFORD | F96: Oil | G96: bbl | H96: Arps | I96: 1 | J96: 10/1/2020 | K96: 0 | L96: 156.6578848 | M96: 0.001 | N96: 89.41281526 | O96: 0 | P96: 11/30/2022 | Q96: 1.210536554 | R96: 772.6926446 | S96: 0 | T96: Vol;EDate
A97: A61BE2A680924536830600080 | B97: DUSTIN | C97: TRUMAN 5-19-18WH | D97: 5-19-18WH | E97: WOODFORD | F97: Gas | G97: Mcf | H97: Arps | I97: 1 | J97: 5/1/2020 | K97: 0 | L97: 147602.9137 | M97: 0.61181875 | N97: 72.63677828 | O97: 0 | P97: 4/30/2060 | Q97: 493.473945 | R97: 3103635.448 | S97: 0 | T97: Vol;EDate
A98: A61BE2A680924536830600080 | B98: DUSTIN | C98: TRUMAN 5-19-18WH | D98: 5-19-18WH | E98: WOODFORD | F98: Oil | G98: bbl | H98: Arps | I98: 1 | J98: 7/1/2020 | K98: 0 | L98: 117.0728021 | M98: 0.001 | N98: 56.00200821 | O98: 0 | P98: 2/28/2026 | Q98: 1.118512972 | R98: 1773.229255 | S98: 0 | T98: Vol;EDate
A99: A61BE2A680924536830700081 | B99: DUSTIN | C99: TRUMAN 6-18-19WH | D99: 6-18-19WH | E99: WOODFORD | F99: Gas | G99: Mcf | H99: Arps | I99: 1 | J99: 5/1/2020 | K99: 0 | L99: 182495.5629 | M99: 0.68838125 | N99: 89.08379701 | O99: 0 | P99: 4/30/2060 | Q99: 454.5612717 | R99: 2659011.242 | S99: 0 | T99: Vol;EDate
A100: A61BE2A680924536830700081 | B100: DUSTIN | C100: TRUMAN 6-18-19WH | D100: 6-18-19WH | E100: WOODFORD | F100: Oil | G100: bbl | H100: Arps | I100: 1 | J100: 3/1/2021 | K100: 0 | L100: 36.19726877 | M100: 1 | N100: 10.04123994 | O100: 0 | P100: 2/28/2061 | Q100: 6.923293065 | R100: 6913.332513 | S100: 0 | T100: Vol;EDate
A101: A61BE2A680924536831000082 | B101: SCIPIO NORTHWEST | C101: TESLA 5-17-20WH | D101: 5-17-20WH | E101: WOODFORD | F101: Gas | G101: Mcf | H101: Arps | I101: 1 | J101: 6/1/2020 | K101: 0 | L101: 239300.9615 | M101: 1 | N101: 99.74165341 | O101: 0 | P101: 5/31/2060 | Q101: 1004.303585 | R101: 2870354.559 | S101: 0 | T101: Vol;EDate
A102: A61BE2A680924536833200092 | B102: DUSTIN | C102: KENNEDY 2-31-30WH | D102: 2-31-30WH | E102: WOODFORD | F102: Oil | G102: bbl | H102: Arps | I102: 1 | J102: 11/1/2020 | K102: 0 | L102: 128.0880806 | M102: 0.001 | N102: 66.23257221 | O102: 0 | P102: 2/28/2025 | Q102: 1.165714976 | R102: 1222.004913 | S102: 0 | T102: Vol;EDate
A103: A61BE2A680924536833400093 | B103: DUSTIN | C103: KENNEDY 3-31-30WH | D103: 3-31-30WH | E103: WOODFORD | F103: Gas | G103: Mcf | H103: Arps | I103: 1 | J103: 10/1/2020 | K103: 0 | L103: 163969.8509 | M103: 0.001 | N103: 75.39536663 | O103: 0 | P103: 3/31/2029 | Q103: 1.095089715 | R103: 1343038.528 | S103: 0 | T103: Vol;EDate
A104: A61BE2A680924536833400093 | B104: DUSTIN | C104: KENNEDY 3-31-30WH | D104: 3-31-30WH | E104: WOODFORD | F104: Oil | G104: bbl | H104: Arps | I104: 1 | J104: 11/1/2020 | K104: 0 | L104: 120.8473469 | M104: 0.001 | N104: 66.82945808 | O104: 0 | P104: 2/28/2025 | Q104: 1.018109364 | R104: 1131.948455 | S104: 0 | T104: Vol;EDate
A105: A61BE2A680924536833500094 | B105: CARSON EAST | C105: RAPUNZEL 1-15-22WH | D105: 1-15-22WH | E105: WOODFORD / MAYES | F105: Gas | G105: Mcf | H105: Arps | I105: 1 | J105: 12/1/2020 | K105: 0 | L105: 196599.8872 | M105: 0.001 | N105: 57.98742606 | O105: 0 | P105: 11/30/2034 | Q105: 1.050531037 | R105: 2647367.936 | S105: 0 | T105: Vol;EDate
A106: A61BE2A680924536833500094 | B106: CARSON EAST | C106: RAPUNZEL 1-15-22WH | D106: 1-15-22WH | E106: WOODFORD / MAYES | F106: Oil | G106: bbl | H106: Arps | I106: 1 | J106: 12/1/2020 | K106: 0 | L106: 178.3589435 | M106: 0.001 | N106: 73.6935529 | O106: 0 | P106: 9/30/2024 | Q106: 1.067575141 | R106: 1359.652706 | S106: 0 | T106: Vol;EDate
A107: A61BE2A680924536833700095 | B107: CARSON EAST | C107: RAPUNZEL 2-15-22WH | D107: 2-15-22WH | E107: WOODFORD / MAYES | F107: Gas | G107: Mcf | H107: Arps | I107: 1 | J107: 12/1/2020 | K107: 0 | L107: 202961.164 | M107: 0.001 | N107: 53.45045772 | O107: 0 | P107: 9/30/2036 | Q107: 1.120780755 | R107: 3119428.545 | S107: 0 | T107: Vol;EDate
A108: A61BE2A680924536833700095 | B108: CARSON EAST | C108: RAPUNZEL 2-15-22WH | D108: 2-15-22WH | E108: WOODFORD / MAYES | F108: Oil | G108: bbl | H108: Arps | I108: 1 | J108: 12/1/2020 | K108: 0 | L108: 202.9289251 | M108: 0.001 | N108: 71.62210337 | O108: 0 | P108: 1/31/2025 | Q108: 1.06269817 | R108: 1658.201206 | S108: 0 | T108: Vol;EDate
A109: A61BE2A680924536814400036 | B109: PAPOOSE | C109: THUNDER 1-13-1CH | D109: 1-13-1CH | E109: MISSISSIPPIAN | F109: Gas | G109: Mcf | H109: Arps | I109: 1 | J109: 11/1/2018 | K109: 0 | L109: 58186.10289 | M109: 0.54463125 | N109: 35.23711076 | O109: 0 | P109: 10/31/2058 | Q109: 780.7688012 | R109: 3035303.194 | S109: 0 | T109: Vol;EDate
A110: A61BE2A680924536814400036 | B110: PAPOOSE | C110: THUNDER 1-13-1CH | D110: 1-13-1CH | E110: MISSISSIPPIAN | F110: Oil | G110: bbl | H110: Arps | I110: 1 | J110: 2/1/2021 | K110: 0 | L110: 111.5720512 | M110: 0.001 | N110: 10 | O110: 0 | P110: 1/31/2061 | Q110: 1.649133428 | R110: 12422.18053 | S110: 0 | T110: Vol;EDate
A111: A61BE2A680924536814700037 | B111: CARSON | C111: ROOSEVELT 1-5-18WH | D111: 1-5-18WH | E111: WOODFORD | F111: Gas | G111: Mcf | H111: Arps | I111: 1 | J111: 5/1/2019 | K111: 0 | L111: 78870.44747 | M111: 0.43525625 | N111: 67.70808021 | O111: 0 | P111: 4/30/2059 | Q111: 74.89514511 | R111: 1527071.108 | S111: 0 | T111: Vol;EDate
A112: A61BE2A680924536814700037 | B112: CARSON | C112: ROOSEVELT 1-5-18WH | D112: 1-5-18WH | E112: WOODFORD | F112: Oil | G112: bbl | H112: Arps | I112: 1 | J112: 2/1/2021 | K112: 0 | L112: 16.09614981 | M112: 1 | N112: 10.04123994 | O112: 0 | P112: 1/31/2061 | Q112: 3.078640078 | R112: 3092.462101 | S112: 0 | T112: Vol;EDate
A113: A61BE2A680924536815000038 | B113: CARSON | C113: ROOSEVELT 2-5-18WH | D113: 2-5-18WH | E113: WOODFORD | F113: Gas | G113: Mcf | H113: Arps | I113: 1 | J113: 6/1/2019 | K113: 0 | L113: 142475.3168 | M113: 0.85556875 | N113: 86.56174668 | O113: 0 | P113: 5/31/2059 | Q113: 998.7058577 | R113: 3130380.097 | S113: 0 | T113: Vol;EDate
A114: A61BE2A680924536815000038 | B114: CARSON | C114: ROOSEVELT 2-5-18WH | D114: 2-5-18WH | E114: WOODFORD | F114: Oil | G114: bbl | H114: Arps | I114: 1 | J114: 3/1/2021 | K114: 0 | L114: 202.1734899 | M114: 0.001 | N114: 32.9040382 | O114: 0 | P114: 4/30/2034 | Q114: 1.056702067 | R114: 5712.055255 | S114: 0 | T114: Vol;EDate
A115: A61BE2A680924536815200039 | B115: CARSON | C115: ROOSEVELT 3-5-18CH | D115: 3-5-18CH | E115: CANEY | F115: Gas | G115: Mcf | H115: Arps | I115: 1 | J115: 5/1/2019 | K115: 0 | L115: 26039.11824 | M115: 1 | N115: 59.70131089 | O115: 0 | P115: 4/30/2059 | Q115: 698.9358329 | R115: 1418657.699 | S115: 0 | T115: Vol;EDate
A116: A61BE2A680924536815200039 | B116: CARSON | C116: ROOSEVELT 3-5-18CH | D116: 3-5-18CH | E116: CANEY | F116: Oil | G116: bbl | H116: Arps | I116: 1 | J116: 3/1/2021 | K116: 0 | L116: 7.017657737 | M116: 1 | N116: 10.04123994 | O116: 0 | P116: 2/28/2061 | Q116: 1.34223666 | R116: 1393.9193 | S116: 0 | T116: Vol;EDate
A117: A61BE2A680924536815800040 | B117: CARSON | C117: ROOSEVELT 4-5-18CH | D117: 4-5-18CH | E117: CANEY | F117: Gas | G117: Mcf | H117: Arps | I117: 1 | J117: 5/1/2019 | K117: 0 | L117: 38546.3875 | M117: 0.001 | N117: 10.74696526 | O117: 0 | P117: 4/30/2059 | Q117: 408.228529 | R117: 4023683.483 | S117: 0 | T117: Vol;EDate
A118: A61BE2A680924536815800040 | B118: CARSON | C118: ROOSEVELT 4-5-18CH | D118: 4-5-18CH | E118: CANEY | F118: Oil | G118: bbl | H118: Arps | I118: 1 | J118: 2/1/2021 | K118: 0 | L118: 30.31447913 | M118: 0.001 | N118: 81.91983567 | O118: 0 | P118: 11/30/2022 | Q118: 1.327881053 | R118: 182.8113057 | S118: 0 | T118: Vol;EDate
A119: A61BE2A680924536816100041 | B119: VERNON NORTHWEST | C119: SCHRUTE FARMS 1-16-4CH | D119: 1-16-4CH | E119: MISSISSIPPIAN | F119: Gas | G119: Mcf | H119: Arps | I119: 1 | J119: 2/1/2021 | K119: 0 | L119: 31495.32296 | M119: 1 | N119: 98.8874821 | O119: 0 | P119: 1/31/2061 | Q119: 174.7959059 | R119: 467434.839 | S119: 0 | T119: Vol;EDate
A120: A61BE2A680924536816100041 | B120: VERNON NORTHWEST | C120: SCHRUTE FARMS 1-16-4CH | D120: 1-16-4CH | E120: MISSISSIPPIAN | F120: Oil | G120: bbl | H120: Arps | I120: 1 | J120: 11/1/2020 | K120: 0 | L120: 18.17263533 | M120: 0.001 | N120: 25.65829661 | O120: 0 | P120: 6/30/2030 | Q120: 1.03581559 | R120: 655.3721648 | S120: 0 | T120: Vol;EDate
A121: A61BE2A680924536816700042 | B121: VERNON NORTHWEST | C121: SCHRUTE FARMS 1-17-5CH | D121: 1-17-5CH | E121: MISSISSIPPIAN | F121: Gas | G121: Mcf | H121: Arps | I121: 1 | J121: 7/1/2019 | K121: 0 | L121: 43716.74424 | M121: 1 | N121: 59.31289199 | O121: 0 | P121: 6/30/2059 | Q121: 1185.600969 | R121: 2139311.041 | S121: 0 | T121: Vol;EDate
A122: A61BE2A680924536816700042 | B122: VERNON NORTHWEST | C122: SCHRUTE FARMS 1-17-5CH | D122: 1-17-5CH | E122: MISSISSIPPIAN | F122: Oil | G122: bbl | H122: Arps | I122: 1 | J122: 12/1/2020 | K122: 0 | L122: 23.60505102 | M122: 0.001 | N122: 82.95615378 | O122: 0 | P122: 7/31/2022 | Q122: 1.241258337 | R122: 143.91372 | S122: 0 | T122: Vol;EDate
A123: A61BE2A680924536817000043 | B123: VERNON NORTHWEST | C123: SCHRUTE FARMS 1-16-28CH | D123: 1-16-28CH | E123: MISSISSIPPIAN | F123: Gas | G123: Mcf | H123: Arps | I123: 1 | J123: 1/1/2019 | K123: 0 | L123: 110568.6638 | M123: 1 | N123: 67.74529873 | O123: 0 | P123: 12/31/2058 | Q123: 2396.973916 | R123: 4556762.563 | S123: 0 | T123: Vol;EDate
A124: A61BE2A680924536817000043 | B124: VERNON NORTHWEST | C124: SCHRUTE FARMS 1-16-28CH | D124: 1-16-28CH | E124: MISSISSIPPIAN | F124: Oil | G124: bbl | H124: Arps | I124: 1 | J124: 3/1/2021 | K124: 0 | L124: 19.15775672 | M124: 1 | N124: 10.04123994 | O124: 0 | P124: 2/28/2061 | Q124: 3.664220224 | R124: 3704.287624 | S124: 0 | T124: Vol;EDate
A125: A61BE2A680924536817300044 | B125: VERNON NORTHWEST | C125: SCHRUTE FARMS 1-17-29CH | D125: 1-17-29CH | E125: MISSISSIPPIAN | F125: Gas | G125: Mcf | H125: Arps | I125: 1 | J125: 7/1/2019 | K125: 0 | L125: 63897.74425 | M125: 1 | N125: 82.11212561 | O125: 0 | P125: 6/30/2059 | Q125: 917.8768438 | R125: 2225307.316 | S125: 0 | T125: Vol;EDate
A126: A61BE2A680924536817300044 | B126: VERNON NORTHWEST | C126: SCHRUTE FARMS 1-17-29CH | D126: 1-17-29CH | E126: MISSISSIPPIAN | F126: Oil | G126: bbl | H126: Arps | I126: 1 | J126: 3/1/2021 | K126: 0 | L126: 18.08601972 | M126: 0.69306875 | N126: 10.02851748 | O126: 0 | P126: 2/28/2061 | Q126: 2.510565588 | R126: 3080.264981 | S126: 0 | T126: Vol;EDate
A127: A61BE2A680924536817700045 | B127: PAPOOSE | C127: MAVERICK 1-10-3CH | D127: 1-10-3CH | E127: MISSISSIPPIAN | F127: Gas | G127: Mcf | H127: Arps | I127: 1 | J127: 2/1/2021 | K127: 0 | L127: 22294.87012 | M127: 1 | N127: 99.81913621 | O127: 0 | P127: 1/31/2061 | Q127: 88.31065536 | R127: 253609.2117 | S127: 0 | T127: Vol;EDate
A128: A61BE2A680924536817700045 | B128: PAPOOSE | C128: MAVERICK 1-10-3CH | D128: 1-10-3CH | E128: MISSISSIPPIAN | F128: Oil | G128: bbl | H128: Arps | I128: 1 | J128: 2/1/2021 | K128: 0 | L128: 12.34009738 | M128: 1 | N128: 10.04123994 | O128: 0 | P128: 1/31/2061 | Q128: 2.36023638 | R128: 2626.102581 | S128: 0 | T128: Vol;EDate
A129: A61BE2A680924536817900046 | B129: FUHRMAN | C129: MAVERICK 1-14-23CH | D129: 1-14-23CH | E129: MISSISSIPPIAN | F129: Gas | G129: Mcf | H129: Arps | I129: 1 | J129: 2/1/2021 | K129: 0 | L129: 14527.89996 | M129: 1 | N129: 46.18021002 | O129: 0 | P129: 1/31/2061 | Q129: 564.7984365 | R129: 911448.4965 | S129: 0 | T129: Vol;EDate
A130: A61BE2A680924536817900046 | B130: FUHRMAN | C130: MAVERICK 1-14-23CH | D130: 1-14-23CH | E130: MISSISSIPPIAN | F130: Oil | G130: bbl | H130: Arps | I130: 1 | J130: 11/1/2020 | K130: 0 | L130: 11.72987643 | M130: 0.001 | N130: 22.26868041 | O130: 0 | P130: 6/30/2030 | Q130: 1.028598789 | R130: 648.8663976 | S130: 0 | T130: Vol;EDate
A131: A61BE2A680924536818100047 | B131: FUHRMAN | C131: MAVERICK 1-15-22CH | D131: 1-15-22CH | E131: MISSISSIPPIAN | F131: Gas | G131: Mcf | H131: Arps | I131: 1 | J131: 2/1/2019 | K131: 0 | L131: 42149.17184 | M131: 0.93681875 | N131: 63.12785689 | O131: 0 | P131: 1/31/2059 | Q131: 858.5444741 | R131: 1752069.465 | S131: 0 | T131: Vol;EDate
A132: A61BE2A680924536818100047 | B132: FUHRMAN | C132: MAVERICK 1-15-22CH | D132: 1-15-22CH | E132: MISSISSIPPIAN | F132: Oil | G132: bbl | H132: Arps | I132: 1 | J132: 11/1/2020 | K132: 0 | L132: 15.27290889 | M132: 0.001 | N132: 57.61111467 | O132: 0 | P132: 12/31/2023 | Q132: 1.009696645 | R132: 332.3092939 | S132: 0 | T132: Vol;EDate
A133: A61BE2A680924536818300048 | B133: PAPOOSE | C133: MAVERICK 1-11-2CH | D133: 1-11-2CH | E133: MISSISSIPPIAN | F133: Gas | G133: Mcf | H133: Arps | I133: 1 | J133: 2/1/2021 | K133: 0 | L133: 19193.21291 | M133: 0.001 | N133: 54.23613471 | O133: 0 | P133: 7/31/2033 | Q133: 1.099491181 | R133: 288572.4712 | S133: 0 | T133: Vol;EDate
A134: A61BE2A680924536818300048 | B134: PAPOOSE | C134: MAVERICK 1-11-2CH | D134: 1-11-2CH | E134: MISSISSIPPIAN | F134: Oil | G134: bbl | H134: Arps | I134: 1 | J134: 11/1/2020 | K134: 0 | L134: 16.96826506 | M134: 0.001 | N134: 55.12775725 | O134: 0 | P134: 4/30/2024 | Q134: 1.030077266 | R134: 213.1707762 | S134: 0 | T134: Vol;EDate
A135: A61BE2A680924536818600049 | B135: SCIPIO NORTHWEST | C135: OSCAR LU 1-17-20WH | D135: 1-17-20WH | E135: WOODFORD | F135: Gas | G135: Mcf | H135: Arps | I135: 1 | J135: 7/1/2020 | K135: 0 | L135: 42241.42514 | M135: 0.001 | N135: 10 | O135: 0 | P135: 6/30/2060 | Q135: 624.3655602 | R135: 4758551.772 | S135: 0 | T135: Vol;EDate
A136: A61BE2A680924536818600049 | B136: SCIPIO NORTHWEST | C136: OSCAR LU 1-17-20WH | D136: 1-17-20WH | E136: WOODFORD | F136: Oil | G136: bbl | H136: Arps | I136: 1 | J136: 1/1/2021 | K136: 0 | L136: 10.89923585 | M136: 0.001 | N136: 31.90266347 | O136: 0 | P136: 2/28/2027 | Q136: 1.021998395 | R136: 298.432436 | S136: 0 | T136: Vol;EDate
A137: A61BE2A680924536820200050 | B137: SCIPIO NORTHWEST | C137: OSCAR LU 1-18-19WH | D137: 1-18-19WH | E137: WOODFORD | F137: Gas | G137: Mcf | H137: Arps | I137: 1 | J137: 3/1/2020 | K137: 0 | L137: 50885.49499 | M137: 0.001 | N137: 8.327070197 | O137: 0 | P137: 2/29/2060 | Q137: 1571.225274 | R137: 6807975.113 | S137: 0 | T137: Vol;EDate
A138: A61BE2A680924536820200050 | B138: SCIPIO NORTHWEST | C138: OSCAR LU 1-18-19WH | D138: 1-18-19WH | E138: WOODFORD | F138: Oil | G138: bbl | H138: Arps | I138: 1 | J138: 2/1/2021 | K138: 0 | L138: 16.47552909 | M138: 0.001 | N138: 78.67054692 | O138: 0 | P138: 9/30/2022 | Q138: 1.26382591 | R138: 106.6881674 | S138: 0 | T138: Vol;EDate
A139: A61BE2A680924536821400051 | B139: BEARDEN NORTH | C139: CHEATWOOD 1-16-9CH | D139: 1-16-9CH | E139: MISSISSIPPIAN | F139: Gas | G139: Mcf | H139: Arps | I139: 1 | J139: 8/1/2019 | K139: 0 | L139: 40022.35412 | M139: 1 | N139: 29.24413862 | O139: 0 | P139: 7/31/2059 | Q139: 2702.158428 | R139: 3773077.636 | S139: 0 | T139: Vol;EDate
A140: A61BE2A680924536821400051 | B140: BEARDEN NORTH | C140: CHEATWOOD 1-16-9CH | D140: 1-16-9CH | E140: MISSISSIPPIAN | F140: Oil | G140: bbl | H140: Arps | I140: 1 | J140: 2/1/2021 | K140: 0 | L140: 51.73146377 | M140: 0.001 | N140: 99.99343829 | O140: 0 | P140: 5/31/2021 | Q140: 2.185086729 | R140: 84 | S140: 0 | T140: Vol;EDate
A141: A61BE2A680924536821600052 | B141: PAPOOSE NORTH | C141: CHEATWOOD 1-15-27CH | D141: 1-15-27CH | E141: MISSISSIPPIAN | F141: Gas | G141: Mcf | H141: Arps | I141: 1 | J141: 8/1/2019 | K141: 0 | L141: 45754.54192 | M141: 0.82900625 | N141: 39.13250128 | O141: 0 | P141: 7/31/2059 | Q141: 1452.474896 | R141: 2911259.095 | S141: 0 | T141: Vol;EDate
A142: A61BE2A680924536822600056 | B142: GREGORY | C142: SCRANTON 1-19-31WH | D142: 1-19-31WH | E142: MISSISSIPPIAN | F142: Gas | G142: Mcf | H142: Arps | I142: 1 | J142: 10/1/2019 | K142: 0 | L142: 62555.36385 | M142: 1 | N142: 48.16446734 | O142: 0 | P142: 9/30/2059 | Q142: 2298.141931 | R142: 3929677.842 | S142: 0 | T142: Vol;EDate
A143: A61BE2A680924536822600056 | B143: GREGORY | C143: SCRANTON 1-19-31WH | D143: 1-19-31WH | E143: MISSISSIPPIAN | F143: Oil | G143: bbl | H143: Arps | I143: 1 | J143: 11/1/2020 | K143: 0 | L143: 57.37280433 | M143: 0.26806875 | N143: 74.33065946 | O143: 0 | P143: 2/28/2026 | Q143: 1.024165054 | R143: 595.9250929 | S143: 0 | T143: Vol;EDate
A144: A61BE2A680924536822900057 | B144: WELEETKA DISTRICT EAST | C144: SCRANTON 1-19-7CH | D144: 1-19-7CH | E144: MISSISSIPPIAN | F144: Gas | G144: Mcf | H144: Arps | I144: 1 | J144: 10/1/2019 | K144: 0 | L144: 25294.07916 | M144: 1 | N144: 59.50753025 | O144: 0 | P144: 9/30/2059 | Q144: 682.439885 | R144: 1269693.436 | S144: 0 | T144: Vol;EDate
A145: A61BE2A680924536822900057 | B145: WELEETKA DISTRICT EAST | C145: SCRANTON 1-19-7CH | D145: 1-19-7CH | E145: MISSISSIPPIAN | F145: Oil | G145: bbl | H145: Arps | I145: 1 | J145: 11/1/2020 | K145: 0 | L145: 17.38313302 | M145: 0.001 | N145: 62.75244658 | O145: 0 | P145: 8/31/2023 | Q145: 1.061530564 | R145: 176.0638411 | S145: 0 | T145: Vol;EDate
A146: A61BE2A680924536823200058 | B146: VERNON NORTHWEST | C146: DUNDER 1-18-6CH | D146: 1-18-6CH | E146: MISSISSIPPIAN | F146: Gas | G146: Mcf | H146: Arps | I146: 1 | J146: 5/1/2019 | K146: 0 | L146: 75048.57382 | M146: 1 | N146: 95.97518158 | O146: 0 | P146: 4/30/2059 | Q146: 581.7374518 | R146: 1600451.899 | S146: 0 | T146: Vol;EDate
A147: A61BE2A680924536823200058 | B147: VERNON NORTHWEST | C147: DUNDER 1-18-6CH | D147: 1-18-6CH | E147: MISSISSIPPIAN | F147: Oil | G147: bbl | H147: Arps | I147: 1 | J147: 11/1/2020 | K147: 0 | L147: 26.67773494 | M147: 0.001 | N147: 54.06895196 | O147: 0 | P147: 12/31/2024 | Q147: 1.042660998 | R147: 352.9468634 | S147: 0 | T147: Vol;EDate
A148: A61BE2A680924536823500059 | B148: VERNON NORTHWEST | C148: DUNDER 1-18-30CH | D148: 1-18-30CH | E148: MISSISSIPPIAN | F148: Gas | G148: Mcf | H148: Arps | I148: 1 | J148: 5/1/2019 | K148: 0 | L148: 92053.89978 | M148: 1 | N148: 97.33361526 | O148: 0 | P148: 4/30/2059 | Q148: 633.1208704 | R148: 1783970.013 | S148: 0 | T148: Vol;EDate
A149: A61BE2A680924536823500059 | B149: VERNON NORTHWEST | C149: DUNDER 1-18-30CH | D149: 1-18-30CH | E149: MISSISSIPPIAN | F149: Oil | G149: bbl | H149: Arps | I149: 1 | J149: 11/1/2020 | K149: 0 | L149: 34.79083023 | M149: 0.001 | N149: 54.2732851 | O149: 0 | P149: 4/30/2025 | Q149: 1.032147363 | R149: 462.4531369 | S149: 0 | T149: Vol;EDate
A150: A61BE2A680924536823900060 | B150: SCIPIO NORTHWEST | C150: TWAIN 1-9-4WH | D150: 1-9-4WH | E150: WOODFORD | F150: Gas | G150: Mcf | H150: Arps | I150: 1 | J150: 8/1/2020 | K150: 0 | L150: 9478.227208 | M150: 0.001 | N150: 60.35333169 | O150: 0 | P150: 5/31/2030 | Q150: 1.062789294 | R150: 76770.38289 | S150: 0 | T150: Vol;EDate
A151: A61BE2A680924536823900060 | B151: SCIPIO NORTHWEST | C151: TWAIN 1-9-4WH | D151: 1-9-4WH | E151: WOODFORD | F151: Oil | G151: bbl | H151: Arps | I151: 1 | J151: 3/1/2020 | K151: 0 | L151: 1.345937944 | M151: 0.001 | N151: 22.61448321 | O151: 0 | P151: 2/28/2021 | Q151: 1.041743819 | R151: 139 | S151: 0 | T151: Vol;EDate
A152: A61BE2A680924536824100061 | B152: SCIPIO NORTHWEST | C152: TWAIN 2-9-4CH | D152: 2-9-4CH | E152: CANEY | F152: Gas | G152: Mcf | H152: Arps | I152: 1 | J152: 12/1/2019 | K152: 0 | L152: 54854.73813 | M152: 0.65713125 | N152: 49.97508502 | O152: 0 | P152: 11/30/2059 | Q152: 611.093827 | R152: 2214676.483 | S152: 0 | T152: Vol;EDate
A153: A61BE2A680924536824100061 | B153: SCIPIO NORTHWEST | C153: TWAIN 2-9-4CH | D153: 2-9-4CH | E153: CANEY | F153: Oil | G153: bbl | H153: Arps | I153: 1 | J153: 2/1/2021 | K153: 0 | L153: 5.013922468 | M153: 1 | N153: 10.04123994 | O153: 0 | P153: 11/30/2058 | Q153: 1.002992956 | R153: 914.6612249 | S153: 0 | T153: Vol;EDate
A154: A61BE2A680924536824300062 | B154: SCIPIO NORTHWEST | C154: TWAIN 1-10-3WH | D154: 1-10-3WH | E154: WOODFORD | F154: Gas | G154: Mcf | H154: Arps | I154: 1 | J154: 4/1/2021 | K154: 0 | L154: 25835.17904 | M154: 0.001 | N154: 69.24503258 | O154: 0 | P154: 9/30/2029 | Q154: 1.145422019 | R154: 251677.4388 | S154: 0 | T154: Vol;EDate
A155: A61BE2A680924536824300062 | B155: SCIPIO NORTHWEST | C155: TWAIN 1-10-3WH | D155: 1-10-3WH | E155: WOODFORD | F155: Oil | G155: bbl | H155: Arps | I155: 1 | J155: 2/1/2021 | K155: 0 | L155: 2.792649236 | M155: 0.001 | N155: 10 | O155: 0 | P155: 9/30/2030 | Q155: 1.009051232 | R155: 226.9615706 | S155: 0 | T155: Vol;EDate
A156: A61BE2A680924536824500063 | B156: SCIPIO NORTHWEST | C156: MOSE 1-6-7WH | D156: 1-6-7WH | E156: WOODFORD / MAYES | F156: Gas | G156: Mcf | H156: Arps | I156: 1 | J156: 1/1/2020 | K156: 0 | L156: 32447.57709 | M156: 1 | N156: 67.58744309 | O156: 0 | P156: 12/31/2059 | Q156: 706.3971584 | R156: 1359192.469 | S156: 0 | T156: Vol;EDate
A157: A61BE2A680924536824500063 | B157: SCIPIO NORTHWEST | C157: MOSE 1-6-7WH | D157: 1-6-7WH | E157: WOODFORD / MAYES | F157: Oil | G157: bbl | H157: Arps | I157: 1 | J157: 12/1/2020 | K157: 0 | L157: 9.466100254 | M157: 0.001 | N157: 89.32916363 | O157: 0 | P157: 11/30/2021 | Q157: 1.011660333 | R157: 47.42637192 | S157: 0 | T157: Vol;EDate
A158: A61BE2A680924536824800064 | B158: SCIPIO NORTHWEST | C158: MOSE 1-5-8WH | D158: 1-5-8WH | E158: WOODFORD / MAYES | F158: Gas | G158: Mcf | H158: Arps | I158: 1 | J158: 1/1/2020 | K158: 0 | L158: 67590.5605 | M158: 1 | N158: 51.93257568 | O158: 0 | P158: 12/31/2059 | Q158: 2235.972898 | R158: 3818488.145 | S158: 0 | T158: Vol;EDate
A159: A61BE2A680924536824800064 | B159: SCIPIO NORTHWEST | C159: MOSE 1-5-8WH | D159: 1-5-8WH | E159: WOODFORD / MAYES | F159: Oil | G159: bbl | H159: Arps | I159: 1 | J159: 11/1/2020 | K159: 0 | L159: 18.8426818 | M159: 0.001 | N159: 69.52372704 | O159: 0 | P159: 2/28/2023 | Q159: 1.186403962 | R159: 157.3112599 | S159: 0 | T159: Vol;EDate
A160: A61BE2A680924536825100065 | B160: HANNA NORTHWEST | C160: MIFFLIN 1-14-26CH | D160: 1-14-26CH | E160: MISSISSIPPIAN | F160: Gas | G160: Mcf | H160: Arps | I160: 1 | J160: 3/1/2020 | K160: 0 | L160: 57515.98234 | M160: 1 | N160: 68.21462525 | O160: 0 | P160: 2/29/2060 | Q160: 1231.276199 | R160: 2410083.025 | S160: 0 | T160: Vol;EDate
A161: A61BE2A680924536825100065 | B161: HANNA NORTHWEST | C161: MIFFLIN 1-14-26CH | D161: 1-14-26CH | E161: MISSISSIPPIAN | F161: Oil | G161: bbl | H161: Arps | I161: 1 | J161: 9/1/2020 | K161: 0 | L161: 15.18794906 | M161: 0.001 | N161: 34.96578389 | O161: 0 | P161: 10/31/2026 | Q161: 1.070038545 | R161: 360.9691988 | S161: 0 | T161: Vol;EDate
A162: A61BE2A680924536829500076 | B162: CARSON | C162: HAMILTON 4-14-2WH | D162: 4-14-2WH | E162: SYLVAN | F162: Gas | G162: Mcf | H162: Arps | I162: 1 | J162: 4/1/2020 | K162: 0 | L162: 337073.5721 | M162: 1 | N162: 99.97141459 | O162: 0 | P162: 3/31/2060 | Q162: 1034.486276 | R162: 3233009.467 | S162: 0 | T162: Vol;EDate
A163: A61BE2A680924536829500076 | B163: CARSON | C163: HAMILTON 4-14-2WH | D163: 4-14-2WH | E163: SYLVAN | F163: Oil | G163: bbl | H163: Arps | I163: 1 | J163: 12/1/2020 | K163: 0 | L163: 64.15544665 | M163: 0.001 | N163: 18.06821929 | O163: 0 | P163: 9/30/2041 | Q163: 1.009827664 | R163: 3659.676231 | S163: 0 | T163: Vol;EDate
A164: A61BE2A680924536829800077 | B164: CARSON | C164: HAMILTON 3-14-2WH | D164: 3-14-2WH | E164: WOODFORD / MAYES | F164: Gas | G164: Mcf | H164: Arps | I164: 1 | J164: 4/1/2020 | K164: 0 | L164: 311539.0496 | M164: 1 | N164: 99.83624154 | O164: 0 | P164: 3/31/2060 | Q164: 1214.995517 | R164: 3520951.381 | S164: 0 | T164: Vol;EDate
A165: A61BE2A680924536829800077 | B165: CARSON | C165: HAMILTON 3-14-2WH | D165: 3-14-2WH | E165: WOODFORD / MAYES | F165: Oil | G165: bbl | H165: Arps | I165: 1 | J165: 2/1/2021 | K165: 0 | L165: 58.05803706 | M165: 0.001 | N165: 79.2500608 | O165: 0 | P165: 7/31/2023 | Q165: 1.149153303 | R165: 397.4506168 | S165: 0 | T165: Vol;EDate
A166: A61BE2A680924536830000078 | B166: CARSON | C166: HAMILTON 2-14-2WH | D166: 2-14-2WH | E166: WOODFORD | F166: Gas | G166: Mcf | H166: Arps | I166: 1 | J166: 4/1/2020 | K166: 0 | L166: 169711.7023 | M166: 0.001 | N166: 50.00839649 | O166: 0 | P166: 7/31/2037 | Q166: 1.024694223 | R166: 2851375.268 | S166: 0 | T166: Vol;EDate
A167: A61BE2A680924536830000078 | B167: CARSON | C167: HAMILTON 2-14-2WH | D167: 2-14-2WH | E167: WOODFORD | F167: Oil | G167: bbl | H167: Arps | I167: 1 | J167: 2/1/2021 | K167: 0 | L167: 62.51961718 | M167: 0.001 | N167: 88.40990133 | O167: 0 | P167: 11/30/2022 | Q167: 1.214338985 | R167: 310.8994296 | S167: 0 | T167: Vol;EDate
A168: A61BE2A680924536831000082 | B168: SCIPIO NORTHWEST | C168: TESLA 5-17-20WH | D168: 5-17-20WH | E168: WOODFORD | F168: Oil | G168: bbl | H168: Arps | I168: 1 | J168: 2/1/2021 | K168: 0 | L168: 51.27961145 | M168: 0.001 | N168: 87.46088684 | O168: 0 | P168: 11/30/2022 | Q168: 1.150215061 | R168: 236.27225 | S168: 0 | T168: Vol;EDate
A169: A61BE2A680924536831200083 | B169: SCIPIO NORTHWEST | C169: TESLA 4-17-20WH | D169: 4-17-20WH | E169: WOODFORD | F169: Gas | G169: Mcf | H169: Arps | I169: 1 | J169: 6/1/2020 | K169: 0 | L169: 291105.4725 | M169: 1 | N169: 99.84968699 | O169: 0 | P169: 5/31/2060 | Q169: 1120.413762 | R169: 3043344.948 | S169: 0 | T169: Vol;EDate
A170: A61BE2A680924536831200083 | B170: SCIPIO NORTHWEST | C170: TESLA 4-17-20WH | D170: 4-17-20WH | E170: WOODFORD | F170: Oil | G170: bbl | H170: Arps | I170: 1 | J170: 9/1/2020 | K170: 0 | L170: 16.58984671 | M170: 0.001 | N170: 38.62813551 | O170: 0 | P170: 4/30/2026 | Q170: 1.045565059 | R170: 349.228142 | S170: 0 | T170: Vol;EDate
A171: A61BE2A680924536831300084 | B171: SCIPIO NORTHWEST | C171: TESLA 3-17-20WH | D171: 3-17-20WH | E171: WOODFORD | F171: Gas | G171: Mcf | H171: Arps | I171: 1 | J171: 6/1/2020 | K171: 0 | L171: 233255.9384 | M171: 1 | N171: 98.35838806 | O171: 0 | P171: 5/31/2060 | Q171: 1416.236729 | R171: 3561456.809 | S171: 0 | T171: Vol;EDate
A172: A61BE2A680924536831300084 | B172: SCIPIO NORTHWEST | C172: TESLA 3-17-20WH | D172: 3-17-20WH | E172: WOODFORD | F172: Oil | G172: bbl | H172: Arps | I172: 1 | J172: 11/1/2020 | K172: 0 | L172: 26.83656339 | M172: 0.001 | N172: 74.50190563 | O172: 0 | P172: 2/28/2023 | Q172: 1.11575181 | R172: 199.0582336 | S172: 0 | T172: Vol;EDate
A173: A61BE2A680924536831700085 | B173: CARSON | C173: HAMILTON 4-14-26WH | D173: 4-14-26WH | E173: WOODFORD / MAYES | F173: Gas | G173: Mcf | H173: Arps | I173: 1 | J173: 9/1/2020 | K173: 0 | L173: 85599.46842 | M173: 0.001 | N173: 31.90266347 | O173: 0 | P173: 2/28/2050 | Q173: 1.024864383 | R173: 2797250.705 | S173: 0 | T173: Vol;EDate
A174: A61BE2A680924536831700085 | B174: CARSON | C174: HAMILTON 4-14-26WH | D174: 4-14-26WH | E174: WOODFORD / MAYES | F174: Oil | G174: bbl | H174: Arps | I174: 1 | J174: 12/1/2020 | K174: 0 | L174: 59.87162006 | M174: 0.001 | N174: 28.04583996 | O174: 0 | P174: 3/31/2033 | Q174: 1.034040127 | R174: 2029.857753 | S174: 0 | T174: Vol;EDate
A175: A61BE2A680924536832100086 | B175: CARSON | C175: HAMILTON 3-14-26WH | D175: 3-14-26WH | E175: WOODFORD / MAYES | F175: Gas | G175: Mcf | H175: Arps | I175: 1 | J175: 7/1/2020 | K175: 0 | L175: 346673.3815 | M175: 1 | N175: 99.9989169 | O175: 0 | P175: 6/30/2060 | Q175: 760.2802999 | R175: 2560512.354 | S175: 0 | T175: Vol;EDate
A176: A61BE2A680924536832100086 | B176: CARSON | C176: HAMILTON 3-14-26WH | D176: 3-14-26WH | E176: WOODFORD / MAYES | F176: Oil | G176: bbl | H176: Arps | I176: 1 | J176: 2/1/2021 | K176: 0 | L176: 64.3147257 | M176: 0.001 | N176: 92.96853028 | O176: 0 | P176: 7/31/2022 | Q176: 1.215621136 | R176: 272.5091506 | S176: 0 | T176: Vol;EDate
A177: A61BE2A680924536832300087 | B177: CARSON | C177: HAMILTON 2-14-26WH | D177: 2-14-26WH | E177: WOODFORD | F177: Gas | G177: Mcf | H177: Arps | I177: 1 | J177: 7/1/2020 | K177: 0 | L177: 237726.516 | M177: 1 | N177: 97.7002675 | O177: 0 | P177: 6/30/2060 | Q177: 1571.384444 | R177: 3879468.455 | S177: 0 | T177: Vol;EDate
A178: A61BE2A680924536832300087 | B178: CARSON | C178: HAMILTON 2-14-26WH | D178: 2-14-26WH | E178: WOODFORD | F178: Oil | G178: bbl | H178: Arps | I178: 1 | J178: 2/1/2021 | K178: 0 | L178: 6.361241794 | M178: 0.001 | N178: 96.31215496 | O178: 0 | P178: 7/31/2021 | Q178: 1.239665957 | R178: 62 | S178: 0 | T178: Vol;EDate
A179: A61BE2A680924536832400088 | B179: CARSON EAST | C179: FRANKLIN 2-12-24WH | D179: 2-12-24WH | E179: WOODFORD | F179: Gas | G179: Mcf | H179: Arps | I179: 1 | J179: 10/1/2020 | K179: 0 | L179: 173884.7301 | M179: 0.001 | N179: 61.91275865 | O179: 0 | P179: 3/31/2033 | Q179: 1.001665631 | R179: 2107882.392 | S179: 0 | T179: Vol;EDate
A180: A61BE2A680924536832400088 | B180: CARSON EAST | C180: FRANKLIN 2-12-24WH | D180: 2-12-24WH | E180: WOODFORD | F180: Oil | G180: bbl | H180: Arps | I180: 1 | J180: 2/1/2021 | K180: 0 | L180: 84.31745771 | M180: 0.001 | N180: 99.99987815 | O180: 0 | P180: 3/31/2021 | Q180: 9.345023029 | R180: 98 | S180: 0 | T180: Vol;EDate
A181: A61BE2A680924536832600089 | B181: CARSON EAST | C181: FRANKLIN 3-12-24WH | D181: 3-12-24WH | E181: WOODFORD | F181: Gas | G181: Mcf | H181: Arps | I181: 1 | J181: 11/1/2020 | K181: 0 | L181: 202940.9625 | M181: 1 | N181: 96.51354319 | O181: 0 | P181: 10/31/2060 | Q181: 1506.352533 | R181: 3690411.235 | S181: 0 | T181: Vol;EDate
A182: A61BE2A680924536832600089 | B182: CARSON EAST | C182: FRANKLIN 3-12-24WH | D182: 3-12-24WH | E182: WOODFORD | F182: Oil | G182: bbl | H182: Arps | I182: 1 | J182: 2/1/2021 | K182: 0 | L182: 62.65918349 | M182: 0.001 | N182: 10 | O182: 0 | P182: 3/31/2060 | Q182: 1.011625869 | R182: 6919.277861 | S182: 0 | T182: Vol;EDate
A183: A61BE2A680924536832900090 | B183: CARSON EAST | C183: FRANKLIN 4-12-24WH | D183: 4-12-24WH | E183: WOODFORD | F183: Gas | G183: Mcf | H183: Arps | I183: 1 | J183: 12/1/2020 | K183: 0 | L183: 40877.92335 | M183: 0.001 | N183: 22.61448321 | O183: 0 | P183: 11/30/2060 | Q183: 1.438388871 | R183: 1889230.562 | S183: 0 | T183: Vol;EDate
A184: A61BE2A680924536832900090 | B184: CARSON EAST | C184: FRANKLIN 4-12-24WH | D184: 4-12-24WH | E184: WOODFORD | F184: Oil | G184: bbl | H184: Arps | I184: 1 | J184: 12/1/2020 | K184: 0 | L184: 27.85869833 | M184: 0.001 | N184: 60.88010886 | O184: 0 | P184: 5/31/2024 | Q184: 1.044169576 | R184: 300.4206021 | S184: 0 | T184: Vol;EDate
A185: A61BE2A680924536833100091 | B185: DUSTIN | C185: KENNEDY 1-31-30WH | D185: 1-31-30WH | E185: WOODFORD | F185: Gas | G185: Mcf | H185: Arps | I185: 1 | J185: 10/1/2020 | K185: 0 | L185: 208496.8084 | M185: 0.66338125 | N185: 82.18049466 | O185: 0 | P185: 9/30/2060 | Q185: 633.4933941 | R185: 3623387.729 | S185: 0 | T185: Vol;EDate
A186: A61BE2A680924536833100091 | B186: DUSTIN | C186: KENNEDY 1-31-30WH | D186: 1-31-30WH | E186: WOODFORD | F186: Oil | G186: bbl | H186: Arps | I186: 1 | J186: 10/1/2020 | K186: 0 | L186: 148.748254 | M186: 0.001 | N186: 65.93011353 | O186: 0 | P186: 3/31/2025 | Q186: 1.17197987 | R186: 1371.496291 | S186: 0 | T186: Vol;EDate
A187: A61BE2A680924536833200092 | B187: DUSTIN | C187: KENNEDY 2-31-30WH | D187: 2-31-30WH | E187: WOODFORD | F187: Gas | G187: Mcf | H187: Arps | I187: 1 | J187: 10/1/2020 | K187: 0 | L187: 188190.8828 | M187: 0.59463125 | N187: 83.45291346 | O187: 0 | P187: 9/30/2060 | Q187: 326.8104433 | R187: 2797303.293 | S187: 0 | T187: Vol;EDate
A188: A61BE2A680924536833900096 | B188: CARSON EAST | C188: RAPUNZEL 3-15-22WH | D188: 3-15-22WH | E188: WOODFORD | F188: Gas | G188: Mcf | H188: Arps | I188: 1 | J188: 12/1/2020 | K188: 0 | L188: 159496.1684 | M188: 0.001 | N188: 44.11363037 | O188: 0 | P188: 5/31/2041 | Q188: 1.054274203 | R188: 3260391.502 | S188: 0 | T188: Vol;EDate
